Workbook

Sheet Roster
R1: Roster Destruct Button
S2: Just clears names for the next week !!
B3: Participant | C3: Monday | E3: Tuesday | G3: Wednesday | I3: Thursday | K3: Friday | M3: Saturday | O3: Sunday
C4: 2021-08-16 | E4: 2021-08-17 | G4: 2021-08-18 | I4: 2021-08-19 | K4: 2021-08-20 | M4: 2021-08-21 | O4: 2021-08-22 | Q4: Hours | S4: Hours tallied weekly | AM4: Name | AN4: Refers to
B5: =_xlfn.LET( _xlpm.n, ROWS(ClientTbl[]), _xlpm.k, _xlfn.SEQUENCE(2*_xlpm.n), _xlpm.client, INDEX(ClientTbl[], 1+QUOTIENT(_xlpm.k-1,2)), IF(ISODD(_xlpm.k), _xlpm.client, "")) -> Client 1 | Q5: =IF(_xlfn.SINGLE(ClientHdr)="", _xlfn.LET( _xlpm.cols, _xlfn.SEQUENCE(1,7,1,2), _xlpm.start, INDEX(currentRow,_xlpm.cols), _xlpm.finish, INDEX(currentRow, 1+_xlpm.cols), SUM(24*(_xlpm.finish-_xlpm.start))), "") ->  | S5: =StaffTbl[] -> Staff 1 | T5: =_xlfn.LET( _xlpm.r, _xlfn.SEQUENCE(ROWS(ClientTbl[]),1,1,2), _xlpm.c, _xlfn.SEQUENCE(1,7,2,2), _xlpm.staff, INDEX(Roster, _xlpm.r, _xlpm.c), _xlpm.hrsWeek, IF(_xlpm.staff=_xlfn.SINGLE(StaffList), _xlfn.LET( _xlpm.start, INDEX(Roster, _xlpm.r+1, _xlpm.c), _xlpm.finish, INDEX(Roster, _xlpm.r+1, _xlpm.c+1), 24*(_xlpm.finish - _xlpm.start) ), ""), SUM(_xlpm.hrsWeek)) -> 0 | AM5: conflict? | AN5: = IF(ISTEXT(currentAssigned), COUNTIFS( otherAssigned, currentAssigned, otherStart, "<"&currentFinish, otherFinish, ">"&currentStart ) > 1)
I6: 09:00:00 | J6: 12:00:00 | K6: 09:00:00 | L6: 12:00:00 | Q6: =IF(_xlfn.SINGLE(ClientHdr)="", _xlfn.LET( _xlpm.cols, _xlfn.SEQUENCE(1,7,2,2), _xlpm.start, INDEX(currentRow,_xlpm.cols), _xlpm.finish, INDEX(currentRow, 1+_xlpm.cols), SUM(24*(_xlpm.finish-_xlpm.start))), "") -> 6 | S6: Staff 2 | T6: =_xlfn.LET( _xlpm.r, _xlfn.SEQUENCE(ROWS(ClientTbl[]),1,1,2), _xlpm.c, _xlfn.SEQUENCE(1,7,2,2), _xlpm.staff, INDEX(Roster, _xlpm.r, _xlpm.c), _xlpm.hrsWeek, IF(_xlpm.staff=_xlfn.SINGLE(StaffList), _xlfn.LET( _xlpm.start, INDEX(Roster, _xlpm.r+1, _xlpm.c), _xlpm.finish, INDEX(Roster, _xlpm.r+1, _xlpm.c+1), 24*(_xlpm.finish - _xlpm.start) ), ""), SUM(_xlpm.hrsWeek)) -> 0 | AM6: validationList | AN6: = XLOOKUP(@ClientHdr, clientValidation, Deployable, validTimes)
B7: Client 2 | Q7: =IF(_xlfn.SINGLE(ClientHdr)="", _xlfn.LET( _xlpm.cols, _xlfn.SEQUENCE(1,7,2,2), _xlpm.start, INDEX(currentRow,_xlpm.cols), _xlpm.finish, INDEX(currentRow, 1+_xlpm.cols), SUM(24*(_xlpm.finish-_xlpm.start))), "") ->  | S7: Staff 3 | T7: =_xlfn.LET( _xlpm.r, _xlfn.SEQUENCE(ROWS(ClientTbl[]),1,1,2), _xlpm.c, _xlfn.SEQUENCE(1,7,2,2), _xlpm.staff, INDEX(Roster, _xlpm.r, _xlpm.c), _xlpm.hrsWeek, IF(_xlpm.staff=_xlfn.SINGLE(StaffList), _xlfn.LET( _xlpm.start, INDEX(Roster, _xlpm.r+1, _xlpm.c), _xlpm.finish, INDEX(Roster, _xlpm.r+1, _xlpm.c+1), 24*(_xlpm.finish - _xlpm.start) ), ""), SUM(_xlpm.hrsWeek)) -> 0 | AM7: validTimes | AN7: =Data!$B$2:$B$72
Q8: =IF(_xlfn.SINGLE(ClientHdr)="", _xlfn.LET( _xlpm.cols, _xlfn.SEQUENCE(1,7,2,2), _xlpm.start, INDEX(currentRow,_xlpm.cols), _xlpm.finish, INDEX(currentRow, 1+_xlpm.cols), SUM(24*(_xlpm.finish-_xlpm.start))), "") -> 0 | S8: Staff 4 | T8: =_xlfn.LET( _xlpm.r, _xlfn.SEQUENCE(ROWS(ClientTbl[]),1,1,2), _xlpm.c, _xlfn.SEQUENCE(1,7,2,2), _xlpm.staff, INDEX(Roster, _xlpm.r, _xlpm.c), _xlpm.hrsWeek, IF(_xlpm.staff=_xlfn.SINGLE(StaffList), _xlfn.LET( _xlpm.start, INDEX(Roster, _xlpm.r+1, _xlpm.c), _xlpm.finish, INDEX(Roster, _xlpm.r+1, _xlpm.c+1), 24*(_xlpm.finish - _xlpm.start) ), ""), SUM(_xlpm.hrsWeek)) -> 0 | AM8: ClientLst | AN8: =Roster!#REF!
B9: Client 3 | Q9: =IF(_xlfn.SINGLE(ClientHdr)="", _xlfn.LET( _xlpm.cols, _xlfn.SEQUENCE(1,7,2,2), _xlpm.start, INDEX(currentRow,_xlpm.cols), _xlpm.finish, INDEX(currentRow, 1+_xlpm.cols), SUM(24*(_xlpm.finish-_xlpm.start))), "") ->  | S9: Staff 5 | T9: =_xlfn.LET( _xlpm.r, _xlfn.SEQUENCE(ROWS(ClientTbl[]),1,1,2), _xlpm.c, _xlfn.SEQUENCE(1,7,2,2), _xlpm.staff, INDEX(Roster, _xlpm.r, _xlpm.c), _xlpm.hrsWeek, IF(_xlpm.staff=_xlfn.SINGLE(StaffList), _xlfn.LET( _xlpm.start, INDEX(Roster, _xlpm.r+1, _xlpm.c), _xlpm.finish, INDEX(Roster, _xlpm.r+1, _xlpm.c+1), 24*(_xlpm.finish - _xlpm.start) ), ""), SUM(_xlpm.hrsWeek)) -> 0 | AM9: ClientHdr | AN9: =Roster!$B$5:$B$36
G10: 09:00:00 | H10: 15:00:00 | Q10: =IF(_xlfn.SINGLE(ClientHdr)="", _xlfn.LET( _xlpm.cols, _xlfn.SEQUENCE(1,7,2,2), _xlpm.start, INDEX(currentRow,_xlpm.cols), _xlpm.finish, INDEX(currentRow, 1+_xlpm.cols), SUM(24*(_xlpm.finish-_xlpm.start))), "") -> 6 | S10: Staff 6 | T10: =_xlfn.LET( _xlpm.r, _xlfn.SEQUENCE(ROWS(ClientTbl[]),1,1,2), _xlpm.c, _xlfn.SEQUENCE(1,7,2,2), _xlpm.staff, INDEX(Roster, _xlpm.r, _xlpm.c), _xlpm.hrsWeek, IF(_xlpm.staff=_xlfn.SINGLE(StaffList), _xlfn.LET( _xlpm.start, INDEX(Roster, _xlpm.r+1, _xlpm.c), _xlpm.finish, INDEX(Roster, _xlpm.r+1, _xlpm.c+1), 24*(_xlpm.finish - _xlpm.start) ), ""), SUM(_xlpm.hrsWeek)) -> 0 | AM10: startTime | AN10: =Roster!$D$16:$Q$37
B11: Client 4 | Q11: =IF(_xlfn.SINGLE(ClientHdr)="", _xlfn.LET( _xlpm.cols, _xlfn.SEQUENCE(1,7,2,2), _xlpm.start, INDEX(currentRow,_xlpm.cols), _xlpm.finish, INDEX(currentRow, 1+_xlpm.cols), SUM(24*(_xlpm.finish-_xlpm.start))), "") ->  | S11: Staff 7 | T11: =_xlfn.LET( _xlpm.r, _xlfn.SEQUENCE(ROWS(ClientTbl[]),1,1,2), _xlpm.c, _xlfn.SEQUENCE(1,7,2,2), _xlpm.staff, INDEX(Roster, _xlpm.r, _xlpm.c), _xlpm.hrsWeek, IF(_xlpm.staff=_xlfn.SINGLE(StaffList), _xlfn.LET( _xlpm.start, INDEX(Roster, _xlpm.r+1, _xlpm.c), _xlpm.finish, INDEX(Roster, _xlpm.r+1, _xlpm.c+1), 24*(_xlpm.finish - _xlpm.start) ), ""), SUM(_xlpm.hrsWeek)) -> 0 | AM11: DateHdr | AN11: =Roster!$D$4:$Q$4
E12: 09:00:00 | F12: 14:00:00 | G12: 09:00:00 | H12: 14:00:00 | I12: 09:00:00 | J12: 14:00:00 | K12: 09:00:00 | L12: 14:00:00 | Q12: =IF(_xlfn.SINGLE(ClientHdr)="", _xlfn.LET( _xlpm.cols, _xlfn.SEQUENCE(1,7,2,2), _xlpm.start, INDEX(currentRow,_xlpm.cols), _xlpm.finish, INDEX(currentRow, 1+_xlpm.cols), SUM(24*(_xlpm.finish-_xlpm.start))), "") -> 20 | S12: Staff 8 | T12: =_xlfn.LET( _xlpm.r, _xlfn.SEQUENCE(ROWS(ClientTbl[]),1,1,2), _xlpm.c, _xlfn.SEQUENCE(1,7,2,2), _xlpm.staff, INDEX(Roster, _xlpm.r, _xlpm.c), _xlpm.hrsWeek, IF(_xlpm.staff=_xlfn.SINGLE(StaffList), _xlfn.LET( _xlpm.start, INDEX(Roster, _xlpm.r+1, _xlpm.c), _xlpm.finish, INDEX(Roster, _xlpm.r+1, _xlpm.c+1), 24*(_xlpm.finish - _xlpm.start) ), ""), SUM(_xlpm.hrsWeek)) -> 0 | AM12: Roster | AN12: =Roster!$D$5:$Q$36
B13: Client 5 | Q13: =IF(_xlfn.SINGLE(ClientHdr)="", _xlfn.LET( _xlpm.cols, _xlfn.SEQUENCE(1,7,2,2), _xlpm.start, INDEX(currentRow,_xlpm.cols), _xlpm.finish, INDEX(currentRow, 1+_xlpm.cols), SUM(24*(_xlpm.finish-_xlpm.start))), "") ->  | S13: Staff 9 | T13: =_xlfn.LET( _xlpm.r, _xlfn.SEQUENCE(ROWS(ClientTbl[]),1,1,2), _xlpm.c, _xlfn.SEQUENCE(1,7,2,2), _xlpm.staff, INDEX(Roster, _xlpm.r, _xlpm.c), _xlpm.hrsWeek, IF(_xlpm.staff=_xlfn.SINGLE(StaffList), _xlfn.LET( _xlpm.start, INDEX(Roster, _xlpm.r+1, _xlpm.c), _xlpm.finish, INDEX(Roster, _xlpm.r+1, _xlpm.c+1), 24*(_xlpm.finish - _xlpm.start) ), ""), SUM(_xlpm.hrsWeek)) -> 0 | AM13: currentRow | AN13: =Roster!$D11:$Q11
E14: 09:00:00 | F14: 14:00:00 | I14: 09:00:00 | J14: 13:30:00 | K14: 09:00:00 | L14: 14:00:00 | Q14: =IF(_xlfn.SINGLE(ClientHdr)="", _xlfn.LET( _xlpm.cols, _xlfn.SEQUENCE(1,7,2,2), _xlpm.start, INDEX(currentRow,_xlpm.cols), _xlpm.finish, INDEX(currentRow, 1+_xlpm.cols), SUM(24*(_xlpm.finish-_xlpm.start))), "") -> 14.5 | S14: Staff 10 | T14: =_xlfn.LET( _xlpm.r, _xlfn.SEQUENCE(ROWS(ClientTbl[]),1,1,2), _xlpm.c, _xlfn.SEQUENCE(1,7,2,2), _xlpm.staff, INDEX(Roster, _xlpm.r, _xlpm.c), _xlpm.hrsWeek, IF(_xlpm.staff=_xlfn.SINGLE(StaffList), _xlfn.LET( _xlpm.start, INDEX(Roster, _xlpm.r+1, _xlpm.c), _xlpm.finish, INDEX(Roster, _xlpm.r+1, _xlpm.c+1), 24*(_xlpm.finish - _xlpm.start) ), ""), SUM(_xlpm.hrsWeek)) -> 0 | AM14: otherAssigned | AN14: =Roster!X$5:X$36
B15: Client 6 | Q15: =IF(_xlfn.SINGLE(ClientHdr)="", _xlfn.LET( _xlpm.cols, _xlfn.SEQUENCE(1,7,2,2), _xlpm.start, INDEX(currentRow,_xlpm.cols), _xlpm.finish, INDEX(currentRow, 1+_xlpm.cols), SUM(24*(_xlpm.finish-_xlpm.start))), "") ->  | S15: Staff 11 | T15: =_xlfn.LET( _xlpm.r, _xlfn.SEQUENCE(ROWS(ClientTbl[]),1,1,2), _xlpm.c, _xlfn.SEQUENCE(1,7,2,2), _xlpm.staff, INDEX(Roster, _xlpm.r, _xlpm.c), _xlpm.hrsWeek, IF(_xlpm.staff=_xlfn.SINGLE(StaffList), _xlfn.LET( _xlpm.start, INDEX(Roster, _xlpm.r+1, _xlpm.c), _xlpm.finish, INDEX(Roster, _xlpm.r+1, _xlpm.c+1), 24*(_xlpm.finish - _xlpm.start) ), ""), SUM(_xlpm.hrsWeek)) -> 0 | AM15: otherStart | AN15: =Roster!X$6:X$37
C16: 12:00:00 | D16: 15:00:00 | E16: 12:00:00 | F16: 15:00:00 | I16: 12:00:00 | J16: 15:00:00 | K16: 12:00:00 | L16: 15:00:00 | Q16: =IF(_xlfn.SINGLE(ClientHdr)="", _xlfn.LET( _xlpm.cols, _xlfn.SEQUENCE(1,7,2,2), _xlpm.start, INDEX(currentRow,_xlpm.cols), _xlpm.finish, INDEX(currentRow, 1+_xlpm.cols), SUM(24*(_xlpm.finish-_xlpm.start))), "") -> 12 | S16: Staff 12 | T16: =_xlfn.LET( _xlpm.r, _xlfn.SEQUENCE(ROWS(ClientTbl[]),1,1,2), _xlpm.c, _xlfn.SEQUENCE(1,7,2,2), _xlpm.staff, INDEX(Roster, _xlpm.r, _xlpm.c), _xlpm.hrsWeek, IF(_xlpm.staff=_xlfn.SINGLE(StaffList), _xlfn.LET( _xlpm.start, INDEX(Roster, _xlpm.r+1, _xlpm.c), _xlpm.finish, INDEX(Roster, _xlpm.r+1, _xlpm.c+1), 24*(_xlpm.finish - _xlpm.start) ), ""), SUM(_xlpm.hrsWeek)) -> 0 | AM16: currentStart | AN16: =Roster!X13
B17: Client 7 | Q17: =IF(_xlfn.SINGLE(ClientHdr)="", _xlfn.LET( _xlpm.cols, _xlfn.SEQUENCE(1,7,2,2), _xlpm.start, INDEX(currentRow,_xlpm.cols), _xlpm.finish, INDEX(currentRow, 1+_xlpm.cols), SUM(24*(_xlpm.finish-_xlpm.start))), "") ->  | S17: Staff 13 | T17: =_xlfn.LET( _xlpm.r, _xlfn.SEQUENCE(ROWS(ClientTbl[]),1,1,2), _xlpm.c, _xlfn.SEQUENCE(1,7,2,2), _xlpm.staff, INDEX(Roster, _xlpm.r, _xlpm.c), _xlpm.hrsWeek, IF(_xlpm.staff=_xlfn.SINGLE(StaffList), _xlfn.LET( _xlpm.start, INDEX(Roster, _xlpm.r+1, _xlpm.c), _xlpm.finish, INDEX(Roster, _xlpm.r+1, _xlpm.c+1), 24*(_xlpm.finish - _xlpm.start) ), ""), SUM(_xlpm.hrsWeek)) -> 0 | AM17: currentAssigned | AN17: =Roster!X9
C18: 15:00:00 | D18: 18:30:00 | E18: 15:00:00 | F18: 18:30:00 | I18: 15:00:00 | J18: 18:30:00 | K18: 15:00:00 | L18: 18:30:00 | Q18: =IF(_xlfn.SINGLE(ClientHdr)="", _xlfn.LET( _xlpm.cols, _xlfn.SEQUENCE(1,7,2,2), _xlpm.start, INDEX(currentRow,_xlpm.cols), _xlpm.finish, INDEX(currentRow, 1+_xlpm.cols), SUM(24*(_xlpm.finish-_xlpm.start))), "") -> 14 | S18: Staff 14 | T18: =_xlfn.LET( _xlpm.r, _xlfn.SEQUENCE(ROWS(ClientTbl[]),1,1,2), _xlpm.c, _xlfn.SEQUENCE(1,7,2,2), _xlpm.staff, INDEX(Roster, _xlpm.r, _xlpm.c), _xlpm.hrsWeek, IF(_xlpm.staff=_xlfn.SINGLE(StaffList), _xlfn.LET( _xlpm.start, INDEX(Roster, _xlpm.r+1, _xlpm.c), _xlpm.finish, INDEX(Roster, _xlpm.r+1, _xlpm.c+1), 24*(_xlpm.finish - _xlpm.start) ), ""), SUM(_xlpm.hrsWeek)) -> 0 | AM18: otherFinish | AN18: =Roster!Y$6:Y$37
B19: Client 8 | Q19: =IF(_xlfn.SINGLE(ClientHdr)="", _xlfn.LET( _xlpm.cols, _xlfn.SEQUENCE(1,7,2,2), _xlpm.start, INDEX(currentRow,_xlpm.cols), _xlpm.finish, INDEX(currentRow, 1+_xlpm.cols), SUM(24*(_xlpm.finish-_xlpm.start))), "") ->  | S19: Staff 15 | T19: =_xlfn.LET( _xlpm.r, _xlfn.SEQUENCE(ROWS(ClientTbl[]),1,1,2), _xlpm.c, _xlfn.SEQUENCE(1,7,2,2), _xlpm.staff, INDEX(Roster, _xlpm.r, _xlpm.c), _xlpm.hrsWeek, IF(_xlpm.staff=_xlfn.SINGLE(StaffList), _xlfn.LET( _xlpm.start, INDEX(Roster, _xlpm.r+1, _xlpm.c), _xlpm.finish, INDEX(Roster, _xlpm.r+1, _xlpm.c+1), 24*(_xlpm.finish - _xlpm.start) ), ""), SUM(_xlpm.hrsWeek)) -> 0 | AM19: currentFinish | AN19: =Roster!Y11
M20: 09:00:00 | N20: 13:00:00 | Q20: =IF(_xlfn.SINGLE(ClientHdr)="", _xlfn.LET( _xlpm.cols, _xlfn.SEQUENCE(1,7,2,2), _xlpm.start, INDEX(currentRow,_xlpm.cols), _xlpm.finish, INDEX(currentRow, 1+_xlpm.cols), SUM(24*(_xlpm.finish-_xlpm.start))), "") -> 4 | S20: Staff 16 | T20: =_xlfn.LET( _xlpm.r, _xlfn.SEQUENCE(ROWS(ClientTbl[]),1,1,2), _xlpm.c, _xlfn.SEQUENCE(1,7,2,2), _xlpm.staff, INDEX(Roster, _xlpm.r, _xlpm.c), _xlpm.hrsWeek, IF(_xlpm.staff=_xlfn.SINGLE(StaffList), _xlfn.LET( _xlpm.start, INDEX(Roster, _xlpm.r+1, _xlpm.c), _xlpm.finish, INDEX(Roster, _xlpm.r+1, _xlpm.c+1), 24*(_xlpm.finish - _xlpm.start) ), ""), SUM(_xlpm.hrsWeek)) -> 0 | AM20: clientValidation | AN20: =Teams!#REF!
B21: Client 9 | Q21: =IF(_xlfn.SINGLE(ClientHdr)="", _xlfn.LET( _xlpm.cols, _xlfn.SEQUENCE(1,7,2,2), _xlpm.start, INDEX(currentRow,_xlpm.cols), _xlpm.finish, INDEX(currentRow, 1+_xlpm.cols), SUM(24*(_xlpm.finish-_xlpm.start))), "") ->  | S21: Staff 17 | T21: =_xlfn.LET( _xlpm.r, _xlfn.SEQUENCE(ROWS(ClientTbl[]),1,1,2), _xlpm.c, _xlfn.SEQUENCE(1,7,2,2), _xlpm.staff, INDEX(Roster, _xlpm.r, _xlpm.c), _xlpm.hrsWeek, IF(_xlpm.staff=_xlfn.SINGLE(StaffList), _xlfn.LET( _xlpm.start, INDEX(Roster, _xlpm.r+1, _xlpm.c), _xlpm.finish, INDEX(Roster, _xlpm.r+1, _xlpm.c+1), 24*(_xlpm.finish - _xlpm.start) ), ""), SUM(_xlpm.hrsWeek)) -> 0 | AM21: Deployable | AN21: =Teams!#REF!
Q22: =IF(_xlfn.SINGLE(ClientHdr)="", _xlfn.LET( _xlpm.cols, _xlfn.SEQUENCE(1,7,2,2), _xlpm.start, INDEX(currentRow,_xlpm.cols), _xlpm.finish, INDEX(currentRow, 1+_xlpm.cols), SUM(24*(_xlpm.finish-_xlpm.start))), "") -> 0 | S22: Staff 18 | T22: =_xlfn.LET( _xlpm.r, _xlfn.SEQUENCE(ROWS(ClientTbl[]),1,1,2), _xlpm.c, _xlfn.SEQUENCE(1,7,2,2), _xlpm.staff, INDEX(Roster, _xlpm.r, _xlpm.c), _xlpm.hrsWeek, IF(_xlpm.staff=_xlfn.SINGLE(StaffList), _xlfn.LET( _xlpm.start, INDEX(Roster, _xlpm.r+1, _xlpm.c), _xlpm.finish, INDEX(Roster, _xlpm.r+1, _xlpm.c+1), 24*(_xlpm.finish - _xlpm.start) ), ""), SUM(_xlpm.hrsWeek)) -> 0 | AM22: StaffList | AN22: =Roster!$S$5:$S$54 -> 
B23: Client 10 | Q23: =IF(_xlfn.SINGLE(ClientHdr)="", _xlfn.LET( _xlpm.cols, _xlfn.SEQUENCE(1,7,2,2), _xlpm.start, INDEX(currentRow,_xlpm.cols), _xlpm.finish, INDEX(currentRow, 1+_xlpm.cols), SUM(24*(_xlpm.finish-_xlpm.start))), "") ->  | S23: Staff 19 | T23: =_xlfn.LET( _xlpm.r, _xlfn.SEQUENCE(ROWS(ClientTbl[]),1,1,2), _xlpm.c, _xlfn.SEQUENCE(1,7,2,2), _xlpm.staff, INDEX(Roster, _xlpm.r, _xlpm.c), _xlpm.hrsWeek, IF(_xlpm.staff=_xlfn.SINGLE(StaffList), _xlfn.LET( _xlpm.start, INDEX(Roster, _xlpm.r+1, _xlpm.c), _xlpm.finish, INDEX(Roster, _xlpm.r+1, _xlpm.c+1), 24*(_xlpm.finish - _xlpm.start) ), ""), SUM(_xlpm.hrsWeek)) -> 0
E24: 14:30:00 | F24: 16:30:00 | I24: 09:00:00 | J24: 11:00:00 | K24: 14:30:00 | L24: 16:30:00 | Q24: =IF(_xlfn.SINGLE(ClientHdr)="", _xlfn.LET( _xlpm.cols, _xlfn.SEQUENCE(1,7,2,2), _xlpm.start, INDEX(currentRow,_xlpm.cols), _xlpm.finish, INDEX(currentRow, 1+_xlpm.cols), SUM(24*(_xlpm.finish-_xlpm.start))), "") -> 6 | S24: Staff 20 | T24: =_xlfn.LET( _xlpm.r, _xlfn.SEQUENCE(ROWS(ClientTbl[]),1,1,2), _xlpm.c, _xlfn.SEQUENCE(1,7,2,2), _xlpm.staff, INDEX(Roster, _xlpm.r, _xlpm.c), _xlpm.hrsWeek, IF(_xlpm.staff=_xlfn.SINGLE(StaffList), _xlfn.LET( _xlpm.start, INDEX(Roster, _xlpm.r+1, _xlpm.c), _xlpm.finish, INDEX(Roster, _xlpm.r+1, _xlpm.c+1), 24*(_xlpm.finish - _xlpm.start) ), ""), SUM(_xlpm.hrsWeek)) -> 0
B25: Client 11 | Q25: =IF(_xlfn.SINGLE(ClientHdr)="", _xlfn.LET( _xlpm.cols, _xlfn.SEQUENCE(1,7,2,2), _xlpm.start, INDEX(currentRow,_xlpm.cols), _xlpm.finish, INDEX(currentRow, 1+_xlpm.cols), SUM(24*(_xlpm.finish-_xlpm.start))), "") ->  | S25: Staff 21 | T25: =_xlfn.LET( _xlpm.r, _xlfn.SEQUENCE(ROWS(ClientTbl[]),1,1,2), _xlpm.c, _xlfn.SEQUENCE(1,7,2,2), _xlpm.staff, INDEX(Roster, _xlpm.r, _xlpm.c), _xlpm.hrsWeek, IF(_xlpm.staff=_xlfn.SINGLE(StaffList), _xlfn.LET( _xlpm.start, INDEX(Roster, _xlpm.r+1, _xlpm.c), _xlpm.finish, INDEX(Roster, _xlpm.r+1, _xlpm.c+1), 24*(_xlpm.finish - _xlpm.start) ), ""), SUM(_xlpm.hrsWeek)) -> 0
E26: 09:00:00 | F26: 14:00:00 | K26: 09:00:00 | L26: 14:00:00 | Q26: =IF(_xlfn.SINGLE(ClientHdr)="", _xlfn.LET( _xlpm.cols, _xlfn.SEQUENCE(1,7,2,2), _xlpm.start, INDEX(currentRow,_xlpm.cols), _xlpm.finish, INDEX(currentRow, 1+_xlpm.cols), SUM(24*(_xlpm.finish-_xlpm.start))), "") -> 10 | S26: Staff 22 | T26: =_xlfn.LET( _xlpm.r, _xlfn.SEQUENCE(ROWS(ClientTbl[]),1,1,2), _xlpm.c, _xlfn.SEQUENCE(1,7,2,2), _xlpm.staff, INDEX(Roster, _xlpm.r, _xlpm.c), _xlpm.hrsWeek, IF(_xlpm.staff=_xlfn.SINGLE(StaffList), _xlfn.LET( _xlpm.start, INDEX(Roster, _xlpm.r+1, _xlpm.c), _xlpm.finish, INDEX(Roster, _xlpm.r+1, _xlpm.c+1), 24*(_xlpm.finish - _xlpm.start) ), ""), SUM(_xlpm.hrsWeek)) -> 0
B27: Client 12 | Q27: =IF(_xlfn.SINGLE(ClientHdr)="", _xlfn.LET( _xlpm.cols, _xlfn.SEQUENCE(1,7,2,2), _xlpm.start, INDEX(currentRow,_xlpm.cols), _xlpm.finish, INDEX(currentRow, 1+_xlpm.cols), SUM(24*(_xlpm.finish-_xlpm.start))), "") ->  | S27: Staff 23 | T27: =_xlfn.LET( _xlpm.r, _xlfn.SEQUENCE(ROWS(ClientTbl[]),1,1,2), _xlpm.c, _xlfn.SEQUENCE(1,7,2,2), _xlpm.staff, INDEX(Roster, _xlpm.r, _xlpm.c), _xlpm.hrsWeek, IF(_xlpm.staff=_xlfn.SINGLE(StaffList), _xlfn.LET( _xlpm.start, INDEX(Roster, _xlpm.r+1, _xlpm.c), _xlpm.finish, INDEX(Roster, _xlpm.r+1, _xlpm.c+1), 24*(_xlpm.finish - _xlpm.start) ), ""), SUM(_xlpm.hrsWeek)) -> 0
C28: 09:00:00 | D28: 11:00:00 | M28: 09:00:00 | N28: 11:00:00 | Q28: =IF(_xlfn.SINGLE(ClientHdr)="", _xlfn.LET( _xlpm.cols, _xlfn.SEQUENCE(1,7,2,2), _xlpm.start, INDEX(currentRow,_xlpm.cols), _xlpm.finish, INDEX(currentRow, 1+_xlpm.cols), SUM(24*(_xlpm.finish-_xlpm.start))), "") -> 4 | S28: Staff 24 | T28: =_xlfn.LET( _xlpm.r, _xlfn.SEQUENCE(ROWS(ClientTbl[]),1,1,2), _xlpm.c, _xlfn.SEQUENCE(1,7,2,2), _xlpm.staff, INDEX(Roster, _xlpm.r, _xlpm.c), _xlpm.hrsWeek, IF(_xlpm.staff=_xlfn.SINGLE(StaffList), _xlfn.LET( _xlpm.start, INDEX(Roster, _xlpm.r+1, _xlpm.c), _xlpm.finish, INDEX(Roster, _xlpm.r+1, _xlpm.c+1), 24*(_xlpm.finish - _xlpm.start) ), ""), SUM(_xlpm.hrsWeek)) -> 0
B29: Client 13 | Q29: =IF(_xlfn.SINGLE(ClientHdr)="", _xlfn.LET( _xlpm.cols, _xlfn.SEQUENCE(1,7,2,2), _xlpm.start, INDEX(currentRow,_xlpm.cols), _xlpm.finish, INDEX(currentRow, 1+_xlpm.cols), SUM(24*(_xlpm.finish-_xlpm.start))), "") ->  | S29: Staff 25 | T29: =_xlfn.LET( _xlpm.r, _xlfn.SEQUENCE(ROWS(ClientTbl[]),1,1,2), _xlpm.c, _xlfn.SEQUENCE(1,7,2,2), _xlpm.staff, INDEX(Roster, _xlpm.r, _xlpm.c), _xlpm.hrsWeek, IF(_xlpm.staff=_xlfn.SINGLE(StaffList), _xlfn.LET( _xlpm.start, INDEX(Roster, _xlpm.r+1, _xlpm.c), _xlpm.finish, INDEX(Roster, _xlpm.r+1, _xlpm.c+1), 24*(_xlpm.finish - _xlpm.start) ), ""), SUM(_xlpm.hrsWeek)) -> 0
G30: 10:00:00 | H30: 12:00:00 | Q30: =IF(_xlfn.SINGLE(ClientHdr)="", _xlfn.LET( _xlpm.cols, _xlfn.SEQUENCE(1,7,2,2), _xlpm.start, INDEX(currentRow,_xlpm.cols), _xlpm.finish, INDEX(currentRow, 1+_xlpm.cols), SUM(24*(_xlpm.finish-_xlpm.start))), "") -> 2 | S30: Staff 26 | T30: =_xlfn.LET( _xlpm.r, _xlfn.SEQUENCE(ROWS(ClientTbl[]),1,1,2), _xlpm.c, _xlfn.SEQUENCE(1,7,2,2), _xlpm.staff, INDEX(Roster, _xlpm.r, _xlpm.c), _xlpm.hrsWeek, IF(_xlpm.staff=_xlfn.SINGLE(StaffList), _xlfn.LET( _xlpm.start, INDEX(Roster, _xlpm.r+1, _xlpm.c), _xlpm.finish, INDEX(Roster, _xlpm.r+1, _xlpm.c+1), 24*(_xlpm.finish - _xlpm.start) ), ""), SUM(_xlpm.hrsWeek)) -> 0
B31: Client 14 | Q31: =IF(_xlfn.SINGLE(ClientHdr)="", _xlfn.LET( _xlpm.cols, _xlfn.SEQUENCE(1,7,2,2), _xlpm.start, INDEX(currentRow,_xlpm.cols), _xlpm.finish, INDEX(currentRow, 1+_xlpm.cols), SUM(24*(_xlpm.finish-_xlpm.start))), "") ->  | S31: Staff 27 | T31: =_xlfn.LET( _xlpm.r, _xlfn.SEQUENCE(ROWS(ClientTbl[]),1,1,2), _xlpm.c, _xlfn.SEQUENCE(1,7,2,2), _xlpm.staff, INDEX(Roster, _xlpm.r, _xlpm.c), _xlpm.hrsWeek, IF(_xlpm.staff=_xlfn.SINGLE(StaffList), _xlfn.LET( _xlpm.start, INDEX(Roster, _xlpm.r+1, _xlpm.c), _xlpm.finish, INDEX(Roster, _xlpm.r+1, _xlpm.c+1), 24*(_xlpm.finish - _xlpm.start) ), ""), SUM(_xlpm.hrsWeek)) -> 0
C32: 10:00:00 | D32: 16:00:00 | I32: 09:30:00 | J32: 15:30:00 | K32: 09:30:00 | L32: 15:30:00 | M32: 13:00:00 | N32: 17:00:00 | Q32: =IF(_xlfn.SINGLE(ClientHdr)="", _xlfn.LET( _xlpm.cols, _xlfn.SEQUENCE(1,7,2,2), _xlpm.start, INDEX(currentRow,_xlpm.cols), _xlpm.finish, INDEX(currentRow, 1+_xlpm.cols), SUM(24*(_xlpm.finish-_xlpm.start))), "") -> 22 | S32: Staff 28 | T32: =_xlfn.LET( _xlpm.r, _xlfn.SEQUENCE(ROWS(ClientTbl[]),1,1,2), _xlpm.c, _xlfn.SEQUENCE(1,7,2,2), _xlpm.staff, INDEX(Roster, _xlpm.r, _xlpm.c), _xlpm.hrsWeek, IF(_xlpm.staff=_xlfn.SINGLE(StaffList), _xlfn.LET( _xlpm.start, INDEX(Roster, _xlpm.r+1, _xlpm.c), _xlpm.finish, INDEX(Roster, _xlpm.r+1, _xlpm.c+1), 24*(_xlpm.finish - _xlpm.start) ), ""), SUM(_xlpm.hrsWeek)) -> 0
B33: Client 15 | Q33: =IF(_xlfn.SINGLE(ClientHdr)="", _xlfn.LET( _xlpm.cols, _xlfn.SEQUENCE(1,7,2,2), _xlpm.start, INDEX(currentRow,_xlpm.cols), _xlpm.finish, INDEX(currentRow, 1+_xlpm.cols), SUM(24*(_xlpm.finish-_xlpm.start))), "") ->  | S33: Staff 29 | T33: =_xlfn.LET( _xlpm.r, _xlfn.SEQUENCE(ROWS(ClientTbl[]),1,1,2), _xlpm.c, _xlfn.SEQUENCE(1,7,2,2), _xlpm.staff, INDEX(Roster, _xlpm.r, _xlpm.c), _xlpm.hrsWeek, IF(_xlpm.staff=_xlfn.SINGLE(StaffList), _xlfn.LET( _xlpm.start, INDEX(Roster, _xlpm.r+1, _xlpm.c), _xlpm.finish, INDEX(Roster, _xlpm.r+1, _xlpm.c+1), 24*(_xlpm.finish - _xlpm.start) ), ""), SUM(_xlpm.hrsWeek)) -> 0
K34: 09:00:00 | L34: 13:30:00 | Q34: =IF(_xlfn.SINGLE(ClientHdr)="", _xlfn.LET( _xlpm.cols, _xlfn.SEQUENCE(1,7,2,2), _xlpm.start, INDEX(currentRow,_xlpm.cols), _xlpm.finish, INDEX(currentRow, 1+_xlpm.cols), SUM(24*(_xlpm.finish-_xlpm.start))), "") -> 4.5 | S34: Staff 30 | T34: =_xlfn.LET( _xlpm.r, _xlfn.SEQUENCE(ROWS(ClientTbl[]),1,1,2), _xlpm.c, _xlfn.SEQUENCE(1,7,2,2), _xlpm.staff, INDEX(Roster, _xlpm.r, _xlpm.c), _xlpm.hrsWeek, IF(_xlpm.staff=_xlfn.SINGLE(StaffList), _xlfn.LET( _xlpm.start, INDEX(Roster, _xlpm.r+1, _xlpm.c), _xlpm.finish, INDEX(Roster, _xlpm.r+1, _xlpm.c+1), 24*(_xlpm.finish - _xlpm.start) ), ""), SUM(_xlpm.hrsWeek)) -> 0
B35: Client 16 | Q35: =IF(_xlfn.SINGLE(ClientHdr)="", _xlfn.LET( _xlpm.cols, _xlfn.SEQUENCE(1,7,2,2), _xlpm.start, INDEX(currentRow,_xlpm.cols), _xlpm.finish, INDEX(currentRow, 1+_xlpm.cols), SUM(24*(_xlpm.finish-_xlpm.start))), "") ->  | S35: Staff 31 | T35: =_xlfn.LET( _xlpm.r, _xlfn.SEQUENCE(ROWS(ClientTbl[]),1,1,2), _xlpm.c, _xlfn.SEQUENCE(1,7,2,2), _xlpm.staff, INDEX(Roster, _xlpm.r, _xlpm.c), _xlpm.hrsWeek, IF(_xlpm.staff=_xlfn.SINGLE(StaffList), _xlfn.LET( _xlpm.start, INDEX(Roster, _xlpm.r+1, _xlpm.c), _xlpm.finish, INDEX(Roster, _xlpm.r+1, _xlpm.c+1), 24*(_xlpm.finish - _xlpm.start) ), ""), SUM(_xlpm.hrsWeek)) -> 0
C36: 12:00:00 | D36: 14:00:00 | E36: 12:00:00 | F36: 14:00:00 | G36: 12:00:00 | H36: 15:00:00 | I36: 12:00:00 | J36: 14:00:00 | K36: 12:00:00 | L36: 14:00:00 | Q36: =IF(_xlfn.SINGLE(ClientHdr)="", _xlfn.LET( _xlpm.cols, _xlfn.SEQUENCE(1,7,2,2), _xlpm.start, INDEX(currentRow,_xlpm.cols), _xlpm.finish, INDEX(currentRow, 1+_xlpm.cols), SUM(24*(_xlpm.finish-_xlpm.start))), "") -> 11 | S36: Staff 32 | T36: =_xlfn.LET( _xlpm.r, _xlfn.SEQUENCE(ROWS(ClientTbl[]),1,1,2), _xlpm.c, _xlfn.SEQUENCE(1,7,2,2), _xlpm.staff, INDEX(Roster, _xlpm.r, _xlpm.c), _xlpm.hrsWeek, IF(_xlpm.staff=_xlfn.SINGLE(StaffList), _xlfn.LET( _xlpm.start, INDEX(Roster, _xlpm.r+1, _xlpm.c), _xlpm.finish, INDEX(Roster, _xlpm.r+1, _xlpm.c+1), 24*(_xlpm.finish - _xlpm.start) ), ""), SUM(_xlpm.hrsWeek)) -> 0
B37: Client 17 | Q37: =IF(_xlfn.SINGLE(ClientHdr)="", _xlfn.LET( _xlpm.cols, _xlfn.SEQUENCE(1,7,2,2), _xlpm.start, INDEX(currentRow,_xlpm.cols), _xlpm.finish, INDEX(currentRow, 1+_xlpm.cols), SUM(24*(_xlpm.finish-_xlpm.start))), "") ->  | S37: Staff 33 | T37: =_xlfn.LET( _xlpm.r, _xlfn.SEQUENCE(ROWS(ClientTbl[]),1,1,2), _xlpm.c, _xlfn.SEQUENCE(1,7,2,2), _xlpm.staff, INDEX(Roster, _xlpm.r, _xlpm.c), _xlpm.hrsWeek, IF(_xlpm.staff=_xlfn.SINGLE(StaffList), _xlfn.LET( _xlpm.start, INDEX(Roster, _xlpm.r+1, _xlpm.c), _xlpm.finish, INDEX(Roster, _xlpm.r+1, _xlpm.c+1), 24*(_xlpm.finish - _xlpm.start) ), ""), SUM(_xlpm.hrsWeek)) -> 0
I38: 09:00:00 | J38: 15:00:00 | Q38: =IF(_xlfn.SINGLE(ClientHdr)="", _xlfn.LET( _xlpm.cols, _xlfn.SEQUENCE(1,7,2,2), _xlpm.start, INDEX(currentRow,_xlpm.cols), _xlpm.finish, INDEX(currentRow, 1+_xlpm.cols), SUM(24*(_xlpm.finish-_xlpm.start))), "") -> 6 | S38: Staff 34 | T38: =_xlfn.LET( _xlpm.r, _xlfn.SEQUENCE(ROWS(ClientTbl[]),1,1,2), _xlpm.c, _xlfn.SEQUENCE(1,7,2,2), _xlpm.staff, INDEX(Roster, _xlpm.r, _xlpm.c), _xlpm.hrsWeek, IF(_xlpm.staff=_xlfn.SINGLE(StaffList), _xlfn.LET( _xlpm.start, INDEX(Roster, _xlpm.r+1, _xlpm.c), _xlpm.finish, INDEX(Roster, _xlpm.r+1, _xlpm.c+1), 24*(_xlpm.finish - _xlpm.start) ), ""), SUM(_xlpm.hrsWeek)) -> 0
B39: Client 18 | Q39: =IF(_xlfn.SINGLE(ClientHdr)="", _xlfn.LET( _xlpm.cols, _xlfn.SEQUENCE(1,7,2,2), _xlpm.start, INDEX(currentRow,_xlpm.cols), _xlpm.finish, INDEX(currentRow, 1+_xlpm.cols), SUM(24*(_xlpm.finish-_xlpm.start))), "") ->  | S39: Staff 35 | T39: =_xlfn.LET( _xlpm.r, _xlfn.SEQUENCE(ROWS(ClientTbl[]),1,1,2), _xlpm.c, _xlfn.SEQUENCE(1,7,2,2), _xlpm.staff, INDEX(Roster, _xlpm.r, _xlpm.c), _xlpm.hrsWeek, IF(_xlpm.staff=_xlfn.SINGLE(StaffList), _xlfn.LET( _xlpm.start, INDEX(Roster, _xlpm.r+1, _xlpm.c), _xlpm.finish, INDEX(Roster, _xlpm.r+1, _xlpm.c+1), 24*(_xlpm.finish - _xlpm.start) ), ""), SUM(_xlpm.hrsWeek)) -> 0
C40: 09:00:00 | D40: 12:00:00 | E40: 09:00:00 | F40: 12:00:00 | Q40: =IF(_xlfn.SINGLE(ClientHdr)="", _xlfn.LET( _xlpm.cols, _xlfn.SEQUENCE(1,7,2,2), _xlpm.start, INDEX(currentRow,_xlpm.cols), _xlpm.finish, INDEX(currentRow, 1+_xlpm.cols), SUM(24*(_xlpm.finish-_xlpm.start))), "") -> 6 | S40: Staff 36 | T40: =_xlfn.LET( _xlpm.r, _xlfn.SEQUENCE(ROWS(ClientTbl[]),1,1,2), _xlpm.c, _xlfn.SEQUENCE(1,7,2,2), _xlpm.staff, INDEX(Roster, _xlpm.r, _xlpm.c), _xlpm.hrsWeek, IF(_xlpm.staff=_xlfn.SINGLE(StaffList), _xlfn.LET( _xlpm.start, INDEX(Roster, _xlpm.r+1, _xlpm.c), _xlpm.finish, INDEX(Roster, _xlpm.r+1, _xlpm.c+1), 24*(_xlpm.finish - _xlpm.start) ), ""), SUM(_xlpm.hrsWeek)) -> 0
B41: Client 19 | Q41: =IF(_xlfn.SINGLE(ClientHdr)="", _xlfn.LET( _xlpm.cols, _xlfn.SEQUENCE(1,7,2,2), _xlpm.start, INDEX(currentRow,_xlpm.cols), _xlpm.finish, INDEX(currentRow, 1+_xlpm.cols), SUM(24*(_xlpm.finish-_xlpm.start))), "") ->  | S41: Staff 37 | T41: =_xlfn.LET( _xlpm.r, _xlfn.SEQUENCE(ROWS(ClientTbl[]),1,1,2), _xlpm.c, _xlfn.SEQUENCE(1,7,2,2), _xlpm.staff, INDEX(Roster, _xlpm.r, _xlpm.c), _xlpm.hrsWeek, IF(_xlpm.staff=_xlfn.SINGLE(StaffList), _xlfn.LET( _xlpm.start, INDEX(Roster, _xlpm.r+1, _xlpm.c), _xlpm.finish, INDEX(Roster, _xlpm.r+1, _xlpm.c+1), 24*(_xlpm.finish - _xlpm.start) ), ""), SUM(_xlpm.hrsWeek)) -> 0
M42: 14:00:00 | N42: 20:00:00 | Q42: =IF(_xlfn.SINGLE(ClientHdr)="", _xlfn.LET( _xlpm.cols, _xlfn.SEQUENCE(1,7,2,2), _xlpm.start, INDEX(currentRow,_xlpm.cols), _xlpm.finish, INDEX(currentRow, 1+_xlpm.cols), SUM(24*(_xlpm.finish-_xlpm.start))), "") -> 6 | S42: Staff 38 | T42: =_xlfn.LET( _xlpm.r, _xlfn.SEQUENCE(ROWS(ClientTbl[]),1,1,2), _xlpm.c, _xlfn.SEQUENCE(1,7,2,2), _xlpm.staff, INDEX(Roster, _xlpm.r, _xlpm.c), _xlpm.hrsWeek, IF(_xlpm.staff=_xlfn.SINGLE(StaffList), _xlfn.LET( _xlpm.start, INDEX(Roster, _xlpm.r+1, _xlpm.c), _xlpm.finish, INDEX(Roster, _xlpm.r+1, _xlpm.c+1), 24*(_xlpm.finish - _xlpm.start) ), ""), SUM(_xlpm.hrsWeek)) -> 0
B43: Client 20 | Q43: =IF(_xlfn.SINGLE(ClientHdr)="", _xlfn.LET( _xlpm.cols, _xlfn.SEQUENCE(1,7,2,2), _xlpm.start, INDEX(currentRow,_xlpm.cols), _xlpm.finish, INDEX(currentRow, 1+_xlpm.cols), SUM(24*(_xlpm.finish-_xlpm.start))), "") ->  | S43: Staff 39 | T43: =_xlfn.LET( _xlpm.r, _xlfn.SEQUENCE(ROWS(ClientTbl[]),1,1,2), _xlpm.c, _xlfn.SEQUENCE(1,7,2,2), _xlpm.staff, INDEX(Roster, _xlpm.r, _xlpm.c), _xlpm.hrsWeek, IF(_xlpm.staff=_xlfn.SINGLE(StaffList), _xlfn.LET( _xlpm.start, INDEX(Roster, _xlpm.r+1, _xlpm.c), _xlpm.finish, INDEX(Roster, _xlpm.r+1, _xlpm.c+1), 24*(_xlpm.finish - _xlpm.start) ), ""), SUM(_xlpm.hrsWeek)) -> 0
Q44: =IF(_xlfn.SINGLE(ClientHdr)="", _xlfn.LET( _xlpm.cols, _xlfn.SEQUENCE(1,7,2,2), _xlpm.start, INDEX(currentRow,_xlpm.cols), _xlpm.finish, INDEX(currentRow, 1+_xlpm.cols), SUM(24*(_xlpm.finish-_xlpm.start))), "") -> 0 | S44: Staff 40 | T44: =_xlfn.LET( _xlpm.r, _xlfn.SEQUENCE(ROWS(ClientTbl[]),1,1,2), _xlpm.c, _xlfn.SEQUENCE(1,7,2,2), _xlpm.staff, INDEX(Roster, _xlpm.r, _xlpm.c), _xlpm.hrsWeek, IF(_xlpm.staff=_xlfn.SINGLE(StaffList), _xlfn.LET( _xlpm.start, INDEX(Roster, _xlpm.r+1, _xlpm.c), _xlpm.finish, INDEX(Roster, _xlpm.r+1, _xlpm.c+1), 24*(_xlpm.finish - _xlpm.start) ), ""), SUM(_xlpm.hrsWeek)) -> 0
B45: Client 21 | Q45: =IF(_xlfn.SINGLE(ClientHdr)="", _xlfn.LET( _xlpm.cols, _xlfn.SEQUENCE(1,7,2,2), _xlpm.start, INDEX(currentRow,_xlpm.cols), _xlpm.finish, INDEX(currentRow, 1+_xlpm.cols), SUM(24*(_xlpm.finish-_xlpm.start))), "") ->  | S45: Staff 41 | T45: =_xlfn.LET( _xlpm.r, _xlfn.SEQUENCE(ROWS(ClientTbl[]),1,1,2), _xlpm.c, _xlfn.SEQUENCE(1,7,2,2), _xlpm.staff, INDEX(Roster, _xlpm.r, _xlpm.c), _xlpm.hrsWeek, IF(_xlpm.staff=_xlfn.SINGLE(StaffList), _xlfn.LET( _xlpm.start, INDEX(Roster, _xlpm.r+1, _xlpm.c), _xlpm.finish, INDEX(Roster, _xlpm.r+1, _xlpm.c+1), 24*(_xlpm.finish - _xlpm.start) ), ""), SUM(_xlpm.hrsWeek)) -> 0
Q46: =IF(_xlfn.SINGLE(ClientHdr)="", _xlfn.LET( _xlpm.cols, _xlfn.SEQUENCE(1,7,2,2), _xlpm.start, INDEX(currentRow,_xlpm.cols), _xlpm.finish, INDEX(currentRow, 1+_xlpm.cols), SUM(24*(_xlpm.finish-_xlpm.start))), "") -> 0 | S46: Staff 42 | T46: =_xlfn.LET( _xlpm.r, _xlfn.SEQUENCE(ROWS(ClientTbl[]),1,1,2), _xlpm.c, _xlfn.SEQUENCE(1,7,2,2), _xlpm.staff, INDEX(Roster, _xlpm.r, _xlpm.c), _xlpm.hrsWeek, IF(_xlpm.staff=_xlfn.SINGLE(StaffList), _xlfn.LET( _xlpm.start, INDEX(Roster, _xlpm.r+1, _xlpm.c), _xlpm.finish, INDEX(Roster, _xlpm.r+1, _xlpm.c+1), 24*(_xlpm.finish - _xlpm.start) ), ""), SUM(_xlpm.hrsWeek)) -> 0
B47: Client 22 | Q47: =IF(_xlfn.SINGLE(ClientHdr)="", _xlfn.LET( _xlpm.cols, _xlfn.SEQUENCE(1,7,2,2), _xlpm.start, INDEX(currentRow,_xlpm.cols), _xlpm.finish, INDEX(currentRow, 1+_xlpm.cols), SUM(24*(_xlpm.finish-_xlpm.start))), "") ->  | S47: Staff 43 | T47: =_xlfn.LET( _xlpm.r, _xlfn.SEQUENCE(ROWS(ClientTbl[]),1,1,2), _xlpm.c, _xlfn.SEQUENCE(1,7,2,2), _xlpm.staff, INDEX(Roster, _xlpm.r, _xlpm.c), _xlpm.hrsWeek, IF(_xlpm.staff=_xlfn.SINGLE(StaffList), _xlfn.LET( _xlpm.start, INDEX(Roster, _xlpm.r+1, _xlpm.c), _xlpm.finish, INDEX(Roster, _xlpm.r+1, _xlpm.c+1), 24*(_xlpm.finish - _xlpm.start) ), ""), SUM(_xlpm.hrsWeek)) -> 0
Q48: =IF(_xlfn.SINGLE(ClientHdr)="", _xlfn.LET( _xlpm.cols, _xlfn.SEQUENCE(1,7,2,2), _xlpm.start, INDEX(currentRow,_xlpm.cols), _xlpm.finish, INDEX(currentRow, 1+_xlpm.cols), SUM(24*(_xlpm.finish-_xlpm.start))), "") -> 0 | S48: Staff 44 | T48: =_xlfn.LET( _xlpm.r, _xlfn.SEQUENCE(ROWS(ClientTbl[]),1,1,2), _xlpm.c, _xlfn.SEQUENCE(1,7,2,2), _xlpm.staff, INDEX(Roster, _xlpm.r, _xlpm.c), _xlpm.hrsWeek, IF(_xlpm.staff=_xlfn.SINGLE(StaffList), _xlfn.LET( _xlpm.start, INDEX(Roster, _xlpm.r+1, _xlpm.c), _xlpm.finish, INDEX(Roster, _xlpm.r+1, _xlpm.c+1), 24*(_xlpm.finish - _xlpm.start) ), ""), SUM(_xlpm.hrsWeek)) -> 0
B49: Client 23 | Q49: =IF(_xlfn.SINGLE(ClientHdr)="", _xlfn.LET( _xlpm.cols, _xlfn.SEQUENCE(1,7,2,2), _xlpm.start, INDEX(currentRow,_xlpm.cols), _xlpm.finish, INDEX(currentRow, 1+_xlpm.cols), SUM(24*(_xlpm.finish-_xlpm.start))), "") ->  | S49: Staff 45 | T49: =_xlfn.LET( _xlpm.r, _xlfn.SEQUENCE(ROWS(ClientTbl[]),1,1,2), _xlpm.c, _xlfn.SEQUENCE(1,7,2,2), _xlpm.staff, INDEX(Roster, _xlpm.r, _xlpm.c), _xlpm.hrsWeek, IF(_xlpm.staff=_xlfn.SINGLE(StaffList), _xlfn.LET( _xlpm.start, INDEX(Roster, _xlpm.r+1, _xlpm.c), _xlpm.finish, INDEX(Roster, _xlpm.r+1, _xlpm.c+1), 24*(_xlpm.finish - _xlpm.start) ), ""), SUM(_xlpm.hrsWeek)) -> 0
C50: 07:00:00 | D50: 09:00:00 | E50: 07:00:00 | F50: 09:00:00 | G50: 07:00:00 | H50: 09:00:00 | I50: 07:00:00 | J50: 09:00:00 | K50: 07:00:00 | L50: 09:00:00 | M50: 07:00:00 | N50: 09:00:00 | O50: 08:00:00 | P50: 10:00:00 | Q50: =IF(_xlfn.SINGLE(ClientHdr)="", _xlfn.LET( _xlpm.cols, _xlfn.SEQUENCE(1,7,2,2), _xlpm.start, INDEX(currentRow,_xlpm.cols), _xlpm.finish, INDEX(currentRow, 1+_xlpm.cols), SUM(24*(_xlpm.finish-_xlpm.start))), "") -> 14 | S50: Staff 46 | T50: =_xlfn.LET( _xlpm.r, _xlfn.SEQUENCE(ROWS(ClientTbl[]),1,1,2), _xlpm.c, _xlfn.SEQUENCE(1,7,2,2), _xlpm.staff, INDEX(Roster, _xlpm.r, _xlpm.c), _xlpm.hrsWeek, IF(_xlpm.staff=_xlfn.SINGLE(StaffList), _xlfn.LET( _xlpm.start, INDEX(Roster, _xlpm.r+1, _xlpm.c), _xlpm.finish, INDEX(Roster, _xlpm.r+1, _xlpm.c+1), 24*(_xlpm.finish - _xlpm.start) ), ""), SUM(_xlpm.hrsWeek)) -> 0
B51: Client 24 | Q51: =IF(_xlfn.SINGLE(ClientHdr)="", _xlfn.LET( _xlpm.cols, _xlfn.SEQUENCE(1,7,2,2), _xlpm.start, INDEX(currentRow,_xlpm.cols), _xlpm.finish, INDEX(currentRow, 1+_xlpm.cols), SUM(24*(_xlpm.finish-_xlpm.start))), "") ->  | S51: Staff 47 | T51: =_xlfn.LET( _xlpm.r, _xlfn.SEQUENCE(ROWS(ClientTbl[]),1,1,2), _xlpm.c, _xlfn.SEQUENCE(1,7,2,2), _xlpm.staff, INDEX(Roster, _xlpm.r, _xlpm.c), _xlpm.hrsWeek, IF(_xlpm.staff=_xlfn.SINGLE(StaffList), _xlfn.LET( _xlpm.start, INDEX(Roster, _xlpm.r+1, _xlpm.c), _xlpm.finish, INDEX(Roster, _xlpm.r+1, _xlpm.c+1), 24*(_xlpm.finish - _xlpm.start) ), ""), SUM(_xlpm.hrsWeek)) -> 0
C52: 15:00:00 | D52: 18:00:00 | E52: 15:00:00 | F52: 18:00:00 | G52: 15:00:00 | H52: 18:00:00 | I52: 15:00:00 | J52: 18:00:00 | K52: 15:00:00 | L52: 18:00:00 | M52: 13:00:00 | N52: 15:00:00 | O52: 13:00:00 | P52: 15:00:00 | Q52: =IF(_xlfn.SINGLE(ClientHdr)="", _xlfn.LET( _xlpm.cols, _xlfn.SEQUENCE(1,7,2,2), _xlpm.start, INDEX(currentRow,_xlpm.cols), _xlpm.finish, INDEX(currentRow, 1+_xlpm.cols), SUM(24*(_xlpm.finish-_xlpm.start))), "") -> 19 | S52: Staff 48 | T52: =_xlfn.LET( _xlpm.r, _xlfn.SEQUENCE(ROWS(ClientTbl[]),1,1,2), _xlpm.c, _xlfn.SEQUENCE(1,7,2,2), _xlpm.staff, INDEX(Roster, _xlpm.r, _xlpm.c), _xlpm.hrsWeek, IF(_xlpm.staff=_xlfn.SINGLE(StaffList), _xlfn.LET( _xlpm.start, INDEX(Roster, _xlpm.r+1, _xlpm.c), _xlpm.finish, INDEX(Roster, _xlpm.r+1, _xlpm.c+1), 24*(_xlpm.finish - _xlpm.start) ), ""), SUM(_xlpm.hrsWeek)) -> 0
B53: Client 25 | Q53: =IF(_xlfn.SINGLE(ClientHdr)="", _xlfn.LET( _xlpm.cols, _xlfn.SEQUENCE(1,7,2,2), _xlpm.start, INDEX(currentRow,_xlpm.cols), _xlpm.finish, INDEX(currentRow, 1+_xlpm.cols), SUM(24*(_xlpm.finish-_xlpm.start))), "") ->  | S53: Staff 49 | T53: =_xlfn.LET( _xlpm.r, _xlfn.SEQUENCE(ROWS(ClientTbl[]),1,1,2), _xlpm.c, _xlfn.SEQUENCE(1,7,2,2), _xlpm.staff, INDEX(Roster, _xlpm.r, _xlpm.c), _xlpm.hrsWeek, IF(_xlpm.staff=_xlfn.SINGLE(StaffList), _xlfn.LET( _xlpm.start, INDEX(Roster, _xlpm.r+1, _xlpm.c), _xlpm.finish, INDEX(Roster, _xlpm.r+1, _xlpm.c+1), 24*(_xlpm.finish - _xlpm.start) ), ""), SUM(_xlpm.hrsWeek)) -> 0
C54: 18:00:00 | D54: 20:00:00 | E54: 18:00:00 | F54: 19:00:00 | G54: 18:00:00 | H54: 19:00:00 | I54: 18:00:00 | J54: 19:00:00 | K54: 18:00:00 | L54: 19:00:00 | M54: 18:00:00 | N54: 19:00:00 | O54: 18:00:00 | P54: 19:00:00 | Q54: =IF(_xlfn.SINGLE(ClientHdr)="", _xlfn.LET( _xlpm.cols, _xlfn.SEQUENCE(1,7,2,2), _xlpm.start, INDEX(currentRow,_xlpm.cols), _xlpm.finish, INDEX(currentRow, 1+_xlpm.cols), SUM(24*(_xlpm.finish-_xlpm.start))), "") -> 8 | S54: Staff 50 | T54: =_xlfn.LET( _xlpm.r, _xlfn.SEQUENCE(ROWS(ClientTbl[]),1,1,2), _xlpm.c, _xlfn.SEQUENCE(1,7,2,2), _xlpm.staff, INDEX(Roster, _xlpm.r, _xlpm.c), _xlpm.hrsWeek, IF(_xlpm.staff=_xlfn.SINGLE(StaffList), _xlfn.LET( _xlpm.start, INDEX(Roster, _xlpm.r+1, _xlpm.c), _xlpm.finish, INDEX(Roster, _xlpm.r+1, _xlpm.c+1), 24*(_xlpm.finish - _xlpm.start) ), ""), SUM(_xlpm.hrsWeek)) -> 0
B55: Client 26 | Q55: =IF(_xlfn.SINGLE(ClientHdr)="", _xlfn.LET( _xlpm.cols, _xlfn.SEQUENCE(1,7,2,2), _xlpm.start, INDEX(currentRow,_xlpm.cols), _xlpm.finish, INDEX(currentRow, 1+_xlpm.cols), SUM(24*(_xlpm.finish-_xlpm.start))), "") -> 
E56: 19:00:00 | F56: 20:00:00 | G56: 19:00:00 | H56: 20:00:00 | I56: 19:00:00 | J56: 20:00:00 | K56: 19:00:00 | L56: 20:00:00 | M56: 19:00:00 | N56: 20:00:00 | O56: 19:00:00 | P56: 20:00:00 | Q56: =IF(_xlfn.SINGLE(ClientHdr)="", _xlfn.LET( _xlpm.cols, _xlfn.SEQUENCE(1,7,2,2), _xlpm.start, INDEX(currentRow,_xlpm.cols), _xlpm.finish, INDEX(currentRow, 1+_xlpm.cols), SUM(24*(_xlpm.finish-_xlpm.start))), "") -> 6
B57: Client 27 | Q57: =IF(_xlfn.SINGLE(ClientHdr)="", _xlfn.LET( _xlpm.cols, _xlfn.SEQUENCE(1,7,2,2), _xlpm.start, INDEX(currentRow,_xlpm.cols), _xlpm.finish, INDEX(currentRow, 1+_xlpm.cols), SUM(24*(_xlpm.finish-_xlpm.start))), "") -> 
C58: 08:00:00 | D58: 10:00:00 | E58: 07:00:00 | F58: 08:30:00 | G58: 08:30:00 | H58: 14:00:00 | I58: 08:00:00 | J58: 14:30:00 | K58: 08:00:00 | L58: 10:00:00 | M58: 08:30:00 | N58: 10:30:00 | O58: 08:30:00 | P58: 14:30:00 | Q58: =IF(_xlfn.SINGLE(ClientHdr)="", _xlfn.LET( _xlpm.cols, _xlfn.SEQUENCE(1,7,2,2), _xlpm.start, INDEX(currentRow,_xlpm.cols), _xlpm.finish, INDEX(currentRow, 1+_xlpm.cols), SUM(24*(_xlpm.finish-_xlpm.start))), "") -> 25.5
B59: Client 28 | Q59: =IF(_xlfn.SINGLE(ClientHdr)="", _xlfn.LET( _xlpm.cols, _xlfn.SEQUENCE(1,7,2,2), _xlpm.start, INDEX(currentRow,_xlpm.cols), _xlpm.finish, INDEX(currentRow, 1+_xlpm.cols), SUM(24*(_xlpm.finish-_xlpm.start))), "") -> 
Q60: =IF(_xlfn.SINGLE(ClientHdr)="", _xlfn.LET( _xlpm.cols, _xlfn.SEQUENCE(1,7,2,2), _xlpm.start, INDEX(currentRow,_xlpm.cols), _xlpm.finish, INDEX(currentRow, 1+_xlpm.cols), SUM(24*(_xlpm.finish-_xlpm.start))), "") -> 0
B61: Client 29 | Q61: =IF(_xlfn.SINGLE(ClientHdr)="", _xlfn.LET( _xlpm.cols, _xlfn.SEQUENCE(1,7,2,2), _xlpm.start, INDEX(currentRow,_xlpm.cols), _xlpm.finish, INDEX(currentRow, 1+_xlpm.cols), SUM(24*(_xlpm.finish-_xlpm.start))), "") -> 
Q62: =IF(_xlfn.SINGLE(ClientHdr)="", _xlfn.LET( _xlpm.cols, _xlfn.SEQUENCE(1,7,2,2), _xlpm.start, INDEX(currentRow,_xlpm.cols), _xlpm.finish, INDEX(currentRow, 1+_xlpm.cols), SUM(24*(_xlpm.finish-_xlpm.start))), "") -> 0
B63: Client 30 | Q63: =IF(_xlfn.SINGLE(ClientHdr)="", _xlfn.LET( _xlpm.cols, _xlfn.SEQUENCE(1,7,2,2), _xlpm.start, INDEX(currentRow,_xlpm.cols), _xlpm.finish, INDEX(currentRow, 1+_xlpm.cols), SUM(24*(_xlpm.finish-_xlpm.start))), "") -> 
C64: 07:00:00 | D64: 09:00:00 | E64: 07:00:00 | F64: 09:00:00 | G64: 07:00:00 | H64: 09:00:00 | I64: 07:00:00 | J64: 09:00:00 | K64: 07:00:00 | L64: 09:00:00 | M64: 07:00:00 | N64: 15:00:00 | O64: 07:00:00 | P64: 15:00:00 | Q64: =IF(_xlfn.SINGLE(ClientHdr)="", _xlfn.LET( _xlpm.cols, _xlfn.SEQUENCE(1,7,2,2), _xlpm.start, INDEX(currentRow,_xlpm.cols), _xlpm.finish, INDEX(currentRow, 1+_xlpm.cols), SUM(24*(_xlpm.finish-_xlpm.start))), "") -> 26
B65: Client 31 | Q65: =IF(_xlfn.SINGLE(ClientHdr)="", _xlfn.LET( _xlpm.cols, _xlfn.SEQUENCE(1,7,2,2), _xlpm.start, INDEX(currentRow,_xlpm.cols), _xlpm.finish, INDEX(currentRow, 1+_xlpm.cols), SUM(24*(_xlpm.finish-_xlpm.start))), "") -> 
C66: 09:00:00 | D66: 15:00:00 | E66: 09:00:00 | F66: 15:00:00 | G66: 09:00:00 | H66: 15:00:00 | I66: 09:00:00 | J66: 15:00:00 | K66: 09:00:00 | L66: 15:00:00 | Q66: =IF(_xlfn.SINGLE(ClientHdr)="", _xlfn.LET( _xlpm.cols, _xlfn.SEQUENCE(1,7,2,2), _xlpm.start, INDEX(currentRow,_xlpm.cols), _xlpm.finish, INDEX(currentRow, 1+_xlpm.cols), SUM(24*(_xlpm.finish-_xlpm.start))), "") -> 30
B67: Client 32 | Q67: =IF(_xlfn.SINGLE(ClientHdr)="", _xlfn.LET( _xlpm.cols, _xlfn.SEQUENCE(1,7,2,2), _xlpm.start, INDEX(currentRow,_xlpm.cols), _xlpm.finish, INDEX(currentRow, 1+_xlpm.cols), SUM(24*(_xlpm.finish-_xlpm.start))), "") -> 
C68: 15:00:00 | D68: 23:00:00 | E68: 15:00:00 | F68: 23:00:00 | G68: 15:00:00 | H68: 23:00:00 | I68: 15:00:00 | J68: 23:00:00 | K68: 15:00:00 | L68: 23:00:00 | M68: 15:00:00 | N68: 23:00:00 | O68: 15:00:00 | P68: 23:00:00 | Q68: =IF(_xlfn.SINGLE(ClientHdr)="", _xlfn.LET( _xlpm.cols, _xlfn.SEQUENCE(1,7,2,2), _xlpm.start, INDEX(currentRow,_xlpm.cols), _xlpm.finish, INDEX(currentRow, 1+_xlpm.cols), SUM(24*(_xlpm.finish-_xlpm.start))), "") -> 56
B69: Client 33 | Q69: =IF(_xlfn.SINGLE(ClientHdr)="", _xlfn.LET( _xlpm.cols, _xlfn.SEQUENCE(1,7,2,2), _xlpm.start, INDEX(currentRow,_xlpm.cols), _xlpm.finish, INDEX(currentRow, 1+_xlpm.cols), SUM(24*(_xlpm.finish-_xlpm.start))), "") -> 
C70: 07:00:00 | D70: 08:30:00 | Q70: =IF(_xlfn.SINGLE(ClientHdr)="", _xlfn.LET( _xlpm.cols, _xlfn.SEQUENCE(1,7,2,2), _xlpm.start, INDEX(currentRow,_xlpm.cols), _xlpm.finish, INDEX(currentRow, 1+_xlpm.cols), SUM(24*(_xlpm.finish-_xlpm.start))), "") -> 1.5
B71: Client 34 | Q71: =IF(_xlfn.SINGLE(ClientHdr)="", _xlfn.LET( _xlpm.cols, _xlfn.SEQUENCE(1,7,2,2), _xlpm.start, INDEX(currentRow,_xlpm.cols), _xlpm.finish, INDEX(currentRow, 1+_xlpm.cols), SUM(24*(_xlpm.finish-_xlpm.start))), "") -> 
Q72: =IF(_xlfn.SINGLE(ClientHdr)="", _xlfn.LET( _xlpm.cols, _xlfn.SEQUENCE(1,7,2,2), _xlpm.start, INDEX(currentRow,_xlpm.cols), _xlpm.finish, INDEX(currentRow, 1+_xlpm.cols), SUM(24*(_xlpm.finish-_xlpm.start))), "") -> 0
B73: Client 35 | Q73: =IF(_xlfn.SINGLE(ClientHdr)="", _xlfn.LET( _xlpm.cols, _xlfn.SEQUENCE(1,7,2,2), _xlpm.start, INDEX(currentRow,_xlpm.cols), _xlpm.finish, INDEX(currentRow, 1+_xlpm.cols), SUM(24*(_xlpm.finish-_xlpm.start))), "") -> 
C74: 09:00:00 | D74: 14:00:00 | E74: 09:00:00 | F74: 14:00:00 | G74: 09:00:00 | H74: 14:00:00 | I74: 09:00:00 | J74: 14:00:00 | K74: 09:00:00 | L74: 14:00:00 | Q74: =IF(_xlfn.SINGLE(ClientHdr)="", _xlfn.LET( _xlpm.cols, _xlfn.SEQUENCE(1,7,2,2), _xlpm.start, INDEX(currentRow,_xlpm.cols), _xlpm.finish, INDEX(currentRow, 1+_xlpm.cols), SUM(24*(_xlpm.finish-_xlpm.start))), "") -> 25
B75: Client 36 | Q75: =IF(_xlfn.SINGLE(ClientHdr)="", _xlfn.LET( _xlpm.cols, _xlfn.SEQUENCE(1,7,2,2), _xlpm.start, INDEX(currentRow,_xlpm.cols), _xlpm.finish, INDEX(currentRow, 1+_xlpm.cols), SUM(24*(_xlpm.finish-_xlpm.start))), "") -> 
E76: 06:00:00 | F76: 10:00:00 | G76: 06:00:00 | H76: 10:00:00 | I76: 06:00:00 | J76: 10:00:00 | K76: 06:00:00 | L76: 10:00:00 | Q76: =IF(_xlfn.SINGLE(ClientHdr)="", _xlfn.LET( _xlpm.cols, _xlfn.SEQUENCE(1,7,2,2), _xlpm.start, INDEX(currentRow,_xlpm.cols), _xlpm.finish, INDEX(currentRow, 1+_xlpm.cols), SUM(24*(_xlpm.finish-_xlpm.start))), "") -> 16
B77: Client 37 | Q77: =IF(_xlfn.SINGLE(ClientHdr)="", _xlfn.LET( _xlpm.cols, _xlfn.SEQUENCE(1,7,2,2), _xlpm.start, INDEX(currentRow,_xlpm.cols), _xlpm.finish, INDEX(currentRow, 1+_xlpm.cols), SUM(24*(_xlpm.finish-_xlpm.start))), "") -> 
C78: 15:00:00 | D78: 17:00:00 | E78: 11:00:00 | F78: 14:00:00 | G78: 09:00:00 | H78: 12:00:00 | I78: 15:00:00 | J78: 18:00:00 | K78: 10:00:00 | L78: 14:00:00 | M78: 11:00:00 | N78: 13:00:00 | Q78: =IF(_xlfn.SINGLE(ClientHdr)="", _xlfn.LET( _xlpm.cols, _xlfn.SEQUENCE(1,7,2,2), _xlpm.start, INDEX(currentRow,_xlpm.cols), _xlpm.finish, INDEX(currentRow, 1+_xlpm.cols), SUM(24*(_xlpm.finish-_xlpm.start))), "") -> 17
B79: Client 38 | Q79: =IF(_xlfn.SINGLE(ClientHdr)="", _xlfn.LET( _xlpm.cols, _xlfn.SEQUENCE(1,7,2,2), _xlpm.start, INDEX(currentRow,_xlpm.cols), _xlpm.finish, INDEX(currentRow, 1+_xlpm.cols), SUM(24*(_xlpm.finish-_xlpm.start))), "") -> 
C80: 17:00:00 | D80: 21:00:00 | E80: 18:00:00 | F80: 20:00:00 | G80: 18:00:00 | H80: 20:00:00 | I80: 18:00:00 | J80: 21:00:00 | K80: 18:00:00 | L80: 20:00:00 | M80: 18:00:00 | N80: 20:00:00 | O80: 18:00:00 | P80: 20:00:00 | Q80: =IF(_xlfn.SINGLE(ClientHdr)="", _xlfn.LET( _xlpm.cols, _xlfn.SEQUENCE(1,7,2,2), _xlpm.start, INDEX(currentRow,_xlpm.cols), _xlpm.finish, INDEX(currentRow, 1+_xlpm.cols), SUM(24*(_xlpm.finish-_xlpm.start))), "") -> 17
B81: Client 39 | Q81: =IF(_xlfn.SINGLE(ClientHdr)="", _xlfn.LET( _xlpm.cols, _xlfn.SEQUENCE(1,7,2,2), _xlpm.start, INDEX(currentRow,_xlpm.cols), _xlpm.finish, INDEX(currentRow, 1+_xlpm.cols), SUM(24*(_xlpm.finish-_xlpm.start))), "") -> 
Q82: =IF(_xlfn.SINGLE(ClientHdr)="", _xlfn.LET( _xlpm.cols, _xlfn.SEQUENCE(1,7,2,2), _xlpm.start, INDEX(currentRow,_xlpm.cols), _xlpm.finish, INDEX(currentRow, 1+_xlpm.cols), SUM(24*(_xlpm.finish-_xlpm.start))), "") -> 0
B83: Client 40 | Q83: =IF(_xlfn.SINGLE(ClientHdr)="", _xlfn.LET( _xlpm.cols, _xlfn.SEQUENCE(1,7,2,2), _xlpm.start, INDEX(currentRow,_xlpm.cols), _xlpm.finish, INDEX(currentRow, 1+_xlpm.cols), SUM(24*(_xlpm.finish-_xlpm.start))), "") -> 
G84: 15:00:00 | H84: 17:00:00 | K84: 15:00:00 | L84: 17:00:00 | Q84: =IF(_xlfn.SINGLE(ClientHdr)="", _xlfn.LET( _xlpm.cols, _xlfn.SEQUENCE(1,7,2,2), _xlpm.start, INDEX(currentRow,_xlpm.cols), _xlpm.finish, INDEX(currentRow, 1+_xlpm.cols), SUM(24*(_xlpm.finish-_xlpm.start))), "") -> 4
B85: Client 41 | Q85: =IF(_xlfn.SINGLE(ClientHdr)="", _xlfn.LET( _xlpm.cols, _xlfn.SEQUENCE(1,7,2,2), _xlpm.start, INDEX(currentRow,_xlpm.cols), _xlpm.finish, INDEX(currentRow, 1+_xlpm.cols), SUM(24*(_xlpm.finish-_xlpm.start))), "") -> 
Q86: =IF(_xlfn.SINGLE(ClientHdr)="", _xlfn.LET( _xlpm.cols, _xlfn.SEQUENCE(1,7,2,2), _xlpm.start, INDEX(currentRow,_xlpm.cols), _xlpm.finish, INDEX(currentRow, 1+_xlpm.cols), SUM(24*(_xlpm.finish-_xlpm.start))), "") -> 0
B87: Client 42 | Q87: =IF(_xlfn.SINGLE(ClientHdr)="", _xlfn.LET( _xlpm.cols, _xlfn.SEQUENCE(1,7,2,2), _xlpm.start, INDEX(currentRow,_xlpm.cols), _xlpm.finish, INDEX(currentRow, 1+_xlpm.cols), SUM(24*(_xlpm.finish-_xlpm.start))), "") -> 
M88: 12:00:00 | N88: 17:00:00 | Q88: =IF(_xlfn.SINGLE(ClientHdr)="", _xlfn.LET( _xlpm.cols, _xlfn.SEQUENCE(1,7,2,2), _xlpm.start, INDEX(currentRow,_xlpm.cols), _xlpm.finish, INDEX(currentRow, 1+_xlpm.cols), SUM(24*(_xlpm.finish-_xlpm.start))), "") -> 5
B89: Client 43 | Q89: =IF(_xlfn.SINGLE(ClientHdr)="", _xlfn.LET( _xlpm.cols, _xlfn.SEQUENCE(1,7,2,2), _xlpm.start, INDEX(currentRow,_xlpm.cols), _xlpm.finish, INDEX(currentRow, 1+_xlpm.cols), SUM(24*(_xlpm.finish-_xlpm.start))), "") -> 
M90: 10:00:00 | N90: 14:00:00 | Q90: =IF(_xlfn.SINGLE(ClientHdr)="", _xlfn.LET( _xlpm.cols, _xlfn.SEQUENCE(1,7,2,2), _xlpm.start, INDEX(currentRow,_xlpm.cols), _xlpm.finish, INDEX(currentRow, 1+_xlpm.cols), SUM(24*(_xlpm.finish-_xlpm.start))), "") -> 4
B91: Client 44 | Q91: =IF(_xlfn.SINGLE(ClientHdr)="", _xlfn.LET( _xlpm.cols, _xlfn.SEQUENCE(1,7,2,2), _xlpm.start, INDEX(currentRow,_xlpm.cols), _xlpm.finish, INDEX(currentRow, 1+_xlpm.cols), SUM(24*(_xlpm.finish-_xlpm.start))), "") -> 
K92: 18:30:00 | L92: 22:30:00 | Q92: =IF(_xlfn.SINGLE(ClientHdr)="", _xlfn.LET( _xlpm.cols, _xlfn.SEQUENCE(1,7,2,2), _xlpm.start, INDEX(currentRow,_xlpm.cols), _xlpm.finish, INDEX(currentRow, 1+_xlpm.cols), SUM(24*(_xlpm.finish-_xlpm.start))), "") -> 4
B93: Client 45 | Q93: =IF(_xlfn.SINGLE(ClientHdr)="", _xlfn.LET( _xlpm.cols, _xlfn.SEQUENCE(1,7,2,2), _xlpm.start, INDEX(currentRow,_xlpm.cols), _xlpm.finish, INDEX(currentRow, 1+_xlpm.cols), SUM(24*(_xlpm.finish-_xlpm.start))), "") -> 
C94: 15:00:00 | D94: 19:00:00 | E94: 15:00:00 | F94: 19:00:00 | G94: 15:00:00 | H94: 19:00:00 | I94: 15:00:00 | J94: 19:00:00 | K94: 15:00:00 | L94: 19:00:00 | M94: 09:00:00 | N94: 12:00:00 | Q94: =IF(_xlfn.SINGLE(ClientHdr)="", _xlfn.LET( _xlpm.cols, _xlfn.SEQUENCE(1,7,2,2), _xlpm.start, INDEX(currentRow,_xlpm.cols), _xlpm.finish, INDEX(currentRow, 1+_xlpm.cols), SUM(24*(_xlpm.finish-_xlpm.start))), "") -> 23
B95: Client 46 | Q95: =IF(_xlfn.SINGLE(ClientHdr)="", _xlfn.LET( _xlpm.cols, _xlfn.SEQUENCE(1,7,2,2), _xlpm.start, INDEX(currentRow,_xlpm.cols), _xlpm.finish, INDEX(currentRow, 1+_xlpm.cols), SUM(24*(_xlpm.finish-_xlpm.start))), "") -> 
E96: 10:00:00 | F96: 12:00:00 | I96: 13:00:00 | J96: 15:00:00 | K96: 13:00:00 | L96: 15:00:00 | Q96: =IF(_xlfn.SINGLE(ClientHdr)="", _xlfn.LET( _xlpm.cols, _xlfn.SEQUENCE(1,7,2,2), _xlpm.start, INDEX(currentRow,_xlpm.cols), _xlpm.finish, INDEX(currentRow, 1+_xlpm.cols), SUM(24*(_xlpm.finish-_xlpm.start))), "") -> 6
B97: Client 47 | Q97: =IF(_xlfn.SINGLE(ClientHdr)="", _xlfn.LET( _xlpm.cols, _xlfn.SEQUENCE(1,7,2,2), _xlpm.start, INDEX(currentRow,_xlpm.cols), _xlpm.finish, INDEX(currentRow, 1+_xlpm.cols), SUM(24*(_xlpm.finish-_xlpm.start))), "") -> 
M98: 10:00:00 | N98: 14:00:00 | Q98: =IF(_xlfn.SINGLE(ClientHdr)="", _xlfn.LET( _xlpm.cols, _xlfn.SEQUENCE(1,7,2,2), _xlpm.start, INDEX(currentRow,_xlpm.cols), _xlpm.finish, INDEX(currentRow, 1+_xlpm.cols), SUM(24*(_xlpm.finish-_xlpm.start))), "") -> 4
B99: Client 48 | Q99: =IF(_xlfn.SINGLE(ClientHdr)="", _xlfn.LET( _xlpm.cols, _xlfn.SEQUENCE(1,7,2,2), _xlpm.start, INDEX(currentRow,_xlpm.cols), _xlpm.finish, INDEX(currentRow, 1+_xlpm.cols), SUM(24*(_xlpm.finish-_xlpm.start))), "") -> 
C100: 09:00:00 | D100: 11:00:00 | G100: 09:00:00 | H100: 14:00:00 | K100: 09:00:00 | L100: 11:00:00 | Q100: =IF(_xlfn.SINGLE(ClientHdr)="", _xlfn.LET( _xlpm.cols, _xlfn.SEQUENCE(1,7,2,2), _xlpm.start, INDEX(currentRow,_xlpm.cols), _xlpm.finish, INDEX(currentRow, 1+_xlpm.cols), SUM(24*(_xlpm.finish-_xlpm.start))), "") -> 9
B101: Client 49 | Q101: =IF(_xlfn.SINGLE(ClientHdr)="", _xlfn.LET( _xlpm.cols, _xlfn.SEQUENCE(1,7,2,2), _xlpm.start, INDEX(currentRow,_xlpm.cols), _xlpm.finish, INDEX(currentRow, 1+_xlpm.cols), SUM(24*(_xlpm.finish-_xlpm.start))), "") -> 
C102: 12:00:00 | D102: 16:30:00 | E102: 09:00:00 | F102: 14:00:00 | G102: 09:00:00 | H102: 16:30:00 | I102: 09:00:00 | J102: 16:30:00 | Q102: =IF(_xlfn.SINGLE(ClientHdr)="", _xlfn.LET( _xlpm.cols, _xlfn.SEQUENCE(1,7,2,2), _xlpm.start, INDEX(currentRow,_xlpm.cols), _xlpm.finish, INDEX(currentRow, 1+_xlpm.cols), SUM(24*(_xlpm.finish-_xlpm.start))), "") -> 24.5
B103: Client 50 | Q103: =IF(_xlfn.SINGLE(ClientHdr)="", _xlfn.LET( _xlpm.cols, _xlfn.SEQUENCE(1,7,2,2), _xlpm.start, INDEX(currentRow,_xlpm.cols), _xlpm.finish, INDEX(currentRow, 1+_xlpm.cols), SUM(24*(_xlpm.finish-_xlpm.start))), "") -> 
Q104: =IF(_xlfn.SINGLE(ClientHdr)="", _xlfn.LET( _xlpm.cols, _xlfn.SEQUENCE(1,7,2,2), _xlpm.start, INDEX(currentRow,_xlpm.cols), _xlpm.finish, INDEX(currentRow, 1+_xlpm.cols), SUM(24*(_xlpm.finish-_xlpm.start))), "") -> 0
B105: Client 51 | Q105: =IF(_xlfn.SINGLE(ClientHdr)="", _xlfn.LET( _xlpm.cols, _xlfn.SEQUENCE(1,7,2,2), _xlpm.start, INDEX(currentRow,_xlpm.cols), _xlpm.finish, INDEX(currentRow, 1+_xlpm.cols), SUM(24*(_xlpm.finish-_xlpm.start))), "") -> 
E106: 14:30:00 | F106: 16:30:00 | Q106: =IF(_xlfn.SINGLE(ClientHdr)="", _xlfn.LET( _xlpm.cols, _xlfn.SEQUENCE(1,7,2,2), _xlpm.start, INDEX(currentRow,_xlpm.cols), _xlpm.finish, INDEX(currentRow, 1+_xlpm.cols), SUM(24*(_xlpm.finish-_xlpm.start))), "") -> 2
B107: Client 52 | Q107: =IF(_xlfn.SINGLE(ClientHdr)="", _xlfn.LET( _xlpm.cols, _xlfn.SEQUENCE(1,7,2,2), _xlpm.start, INDEX(currentRow,_xlpm.cols), _xlpm.finish, INDEX(currentRow, 1+_xlpm.cols), SUM(24*(_xlpm.finish-_xlpm.start))), "") -> 
I108: 10:00:00 | J108: 16:00:00 | Q108: =IF(_xlfn.SINGLE(ClientHdr)="", _xlfn.LET( _xlpm.cols, _xlfn.SEQUENCE(1,7,2,2), _xlpm.start, INDEX(currentRow,_xlpm.cols), _xlpm.finish, INDEX(currentRow, 1+_xlpm.cols), SUM(24*(_xlpm.finish-_xlpm.start))), "") -> 6
B109: Client 53 | Q109: =IF(_xlfn.SINGLE(ClientHdr)="", _xlfn.LET( _xlpm.cols, _xlfn.SEQUENCE(1,7,2,2), _xlpm.start, INDEX(currentRow,_xlpm.cols), _xlpm.finish, INDEX(currentRow, 1+_xlpm.cols), SUM(24*(_xlpm.finish-_xlpm.start))), "") -> 
Q110: =IF(_xlfn.SINGLE(ClientHdr)="", _xlfn.LET( _xlpm.cols, _xlfn.SEQUENCE(1,7,2,2), _xlpm.start, INDEX(currentRow,_xlpm.cols), _xlpm.finish, INDEX(currentRow, 1+_xlpm.cols), SUM(24*(_xlpm.finish-_xlpm.start))), "") -> 0
B111: Client 54 | Q111: =IF(_xlfn.SINGLE(ClientHdr)="", _xlfn.LET( _xlpm.cols, _xlfn.SEQUENCE(1,7,2,2), _xlpm.start, INDEX(currentRow,_xlpm.cols), _xlpm.finish, INDEX(currentRow, 1+_xlpm.cols), SUM(24*(_xlpm.finish-_xlpm.start))), "") -> 
C112: 09:00:00 | D112: 12:00:00 | G112: 09:00:00 | H112: 12:00:00 | Q112: =IF(_xlfn.SINGLE(ClientHdr)="", _xlfn.LET( _xlpm.cols, _xlfn.SEQUENCE(1,7,2,2), _xlpm.start, INDEX(currentRow,_xlpm.cols), _xlpm.finish, INDEX(currentRow, 1+_xlpm.cols), SUM(24*(_xlpm.finish-_xlpm.start))), "") -> 6
B113: Client 55 | Q113: =IF(_xlfn.SINGLE(ClientHdr)="", _xlfn.LET( _xlpm.cols, _xlfn.SEQUENCE(1,7,2,2), _xlpm.start, INDEX(currentRow,_xlpm.cols), _xlpm.finish, INDEX(currentRow, 1+_xlpm.cols), SUM(24*(_xlpm.finish-_xlpm.start))), "") -> 
E114: 14:00:00 | F114: 16:00:00 | G114: 12:15:00 | H114: 15:00:00 | Q114: =IF(_xlfn.SINGLE(ClientHdr)="", _xlfn.LET( _xlpm.cols, _xlfn.SEQUENCE(1,7,2,2), _xlpm.start, INDEX(currentRow,_xlpm.cols), _xlpm.finish, INDEX(currentRow, 1+_xlpm.cols), SUM(24*(_xlpm.finish-_xlpm.start))), "") -> 4.75
B115: Client 56 | Q115: =IF(_xlfn.SINGLE(ClientHdr)="", _xlfn.LET( _xlpm.cols, _xlfn.SEQUENCE(1,7,2,2), _xlpm.start, INDEX(currentRow,_xlpm.cols), _xlpm.finish, INDEX(currentRow, 1+_xlpm.cols), SUM(24*(_xlpm.finish-_xlpm.start))), "") -> 
E116: 09:00:00 | F116: 13:30:00 | K116: 09:00:00 | L116: 13:30:00 | M116: 09:00:00 | N116: 13:00:00 | Q116: =IF(_xlfn.SINGLE(ClientHdr)="", _xlfn.LET( _xlpm.cols, _xlfn.SEQUENCE(1,7,2,2), _xlpm.start, INDEX(currentRow,_xlpm.cols), _xlpm.finish, INDEX(currentRow, 1+_xlpm.cols), SUM(24*(_xlpm.finish-_xlpm.start))), "") -> 13
B117: Client 57 | Q117: =IF(_xlfn.SINGLE(ClientHdr)="", _xlfn.LET( _xlpm.cols, _xlfn.SEQUENCE(1,7,2,2), _xlpm.start, INDEX(currentRow,_xlpm.cols), _xlpm.finish, INDEX(currentRow, 1+_xlpm.cols), SUM(24*(_xlpm.finish-_xlpm.start))), "") -> 
C118: 10:00:00 | D118: 12:00:00 | E118: 10:00:00 | F118: 12:00:00 | G118: 10:00:00 | H118: 12:00:00 | I118: 10:00:00 | J118: 12:00:00 | K118: 10:00:00 | L118: 12:00:00 | Q118: =IF(_xlfn.SINGLE(ClientHdr)="", _xlfn.LET( _xlpm.cols, _xlfn.SEQUENCE(1,7,2,2), _xlpm.start, INDEX(currentRow,_xlpm.cols), _xlpm.finish, INDEX(currentRow, 1+_xlpm.cols), SUM(24*(_xlpm.finish-_xlpm.start))), "") -> 10
B119: Client 58 | Q119: =IF(_xlfn.SINGLE(ClientHdr)="", _xlfn.LET( _xlpm.cols, _xlfn.SEQUENCE(1,7,2,2), _xlpm.start, INDEX(currentRow,_xlpm.cols), _xlpm.finish, INDEX(currentRow, 1+_xlpm.cols), SUM(24*(_xlpm.finish-_xlpm.start))), "") -> 
C120: 15:00:00 | D120: 18:00:00 | E120: 15:00:00 | F120: 18:00:00 | G120: 15:00:00 | H120: 18:00:00 | I120: 15:00:00 | J120: 18:00:00 | K120: 15:00:00 | L120: 18:00:00 | M120: 10:00:00 | N120: 13:00:00 | O120: 10:00:00 | P120: 13:00:00 | Q120: =IF(_xlfn.SINGLE(ClientHdr)="", _xlfn.LET( _xlpm.cols, _xlfn.SEQUENCE(1,7,2,2), _xlpm.start, INDEX(currentRow,_xlpm.cols), _xlpm.finish, INDEX(currentRow, 1+_xlpm.cols), SUM(24*(_xlpm.finish-_xlpm.start))), "") -> 21
B121: Client 59 | Q121: =IF(_xlfn.SINGLE(ClientHdr)="", _xlfn.LET( _xlpm.cols, _xlfn.SEQUENCE(1,7,2,2), _xlpm.start, INDEX(currentRow,_xlpm.cols), _xlpm.finish, INDEX(currentRow, 1+_xlpm.cols), SUM(24*(_xlpm.finish-_xlpm.start))), "") -> 
C122: 14:45:00 | D122: 17:00:00 | Q122: =IF(_xlfn.SINGLE(ClientHdr)="", _xlfn.LET( _xlpm.cols, _xlfn.SEQUENCE(1,7,2,2), _xlpm.start, INDEX(currentRow,_xlpm.cols), _xlpm.finish, INDEX(currentRow, 1+_xlpm.cols), SUM(24*(_xlpm.finish-_xlpm.start))), "") -> 2.25
B123: Client 60 | Q123: =IF(_xlfn.SINGLE(ClientHdr)="", _xlfn.LET( _xlpm.cols, _xlfn.SEQUENCE(1,7,2,2), _xlpm.start, INDEX(currentRow,_xlpm.cols), _xlpm.finish, INDEX(currentRow, 1+_xlpm.cols), SUM(24*(_xlpm.finish-_xlpm.start))), "") -> 
C124: 13:00:00 | D124: 16:00:00 | E124: 09:15:00 | F124: 12:15:00 | G124: 13:00:00 | H124: 17:00:00 | I124: 13:00:00 | J124: 16:00:00 | K124: 09:15:00 | L124: 12:15:00 | Q124: =IF(_xlfn.SINGLE(ClientHdr)="", _xlfn.LET( _xlpm.cols, _xlfn.SEQUENCE(1,7,2,2), _xlpm.start, INDEX(currentRow,_xlpm.cols), _xlpm.finish, INDEX(currentRow, 1+_xlpm.cols), SUM(24*(_xlpm.finish-_xlpm.start))), "") -> 16
B125: Client 61 | Q125: =IF(_xlfn.SINGLE(ClientHdr)="", _xlfn.LET( _xlpm.cols, _xlfn.SEQUENCE(1,7,2,2), _xlpm.start, INDEX(currentRow,_xlpm.cols), _xlpm.finish, INDEX(currentRow, 1+_xlpm.cols), SUM(24*(_xlpm.finish-_xlpm.start))), "") -> 
G126: 09:30:00 | H126: 11:30:00 | I126: 13:00:00 | J126: 16:00:00 | Q126: =IF(_xlfn.SINGLE(ClientHdr)="", _xlfn.LET( _xlpm.cols, _xlfn.SEQUENCE(1,7,2,2), _xlpm.start, INDEX(currentRow,_xlpm.cols), _xlpm.finish, INDEX(currentRow, 1+_xlpm.cols), SUM(24*(_xlpm.finish-_xlpm.start))), "") -> 5
B127: Client 62 | Q127: =IF(_xlfn.SINGLE(ClientHdr)="", _xlfn.LET( _xlpm.cols, _xlfn.SEQUENCE(1,7,2,2), _xlpm.start, INDEX(currentRow,_xlpm.cols), _xlpm.finish, INDEX(currentRow, 1+_xlpm.cols), SUM(24*(_xlpm.finish-_xlpm.start))), "") -> 
C128: 13:00:00 | D128: 15:00:00 | E128: 13:00:00 | F128: 15:00:00 | Q128: =IF(_xlfn.SINGLE(ClientHdr)="", _xlfn.LET( _xlpm.cols, _xlfn.SEQUENCE(1,7,2,2), _xlpm.start, INDEX(currentRow,_xlpm.cols), _xlpm.finish, INDEX(currentRow, 1+_xlpm.cols), SUM(24*(_xlpm.finish-_xlpm.start))), "") -> 4
B129: Client 63 | Q129: =IF(_xlfn.SINGLE(ClientHdr)="", _xlfn.LET( _xlpm.cols, _xlfn.SEQUENCE(1,7,2,2), _xlpm.start, INDEX(currentRow,_xlpm.cols), _xlpm.finish, INDEX(currentRow, 1+_xlpm.cols), SUM(24*(_xlpm.finish-_xlpm.start))), "") -> 
C130: 14:00:00 | D130: 16:00:00 | G130: 14:00:00 | H130: 16:00:00 | K130: 14:00:00 | L130: 16:00:00 | Q130: =IF(_xlfn.SINGLE(ClientHdr)="", _xlfn.LET( _xlpm.cols, _xlfn.SEQUENCE(1,7,2,2), _xlpm.start, INDEX(currentRow,_xlpm.cols), _xlpm.finish, INDEX(currentRow, 1+_xlpm.cols), SUM(24*(_xlpm.finish-_xlpm.start))), "") -> 6
B131: Client 64 | Q131: =IF(_xlfn.SINGLE(ClientHdr)="", _xlfn.LET( _xlpm.cols, _xlfn.SEQUENCE(1,7,2,2), _xlpm.start, INDEX(currentRow,_xlpm.cols), _xlpm.finish, INDEX(currentRow, 1+_xlpm.cols), SUM(24*(_xlpm.finish-_xlpm.start))), "") -> 
C132: 09:30:00 | D132: 13:30:00 | I132: 10:00:00 | J132: 13:00:00 | K132: 08:00:00 | L132: 13:00:00 | M132: 12:30:00 | N132: 15:30:00 | Q132: =IF(_xlfn.SINGLE(ClientHdr)="", _xlfn.LET( _xlpm.cols, _xlfn.SEQUENCE(1,7,2,2), _xlpm.start, INDEX(currentRow,_xlpm.cols), _xlpm.finish, INDEX(currentRow, 1+_xlpm.cols), SUM(24*(_xlpm.finish-_xlpm.start))), "") -> 15
B133: Client 65 | Q133: =IF(_xlfn.SINGLE(ClientHdr)="", _xlfn.LET( _xlpm.cols, _xlfn.SEQUENCE(1,7,2,2), _xlpm.start, INDEX(currentRow,_xlpm.cols), _xlpm.finish, INDEX(currentRow, 1+_xlpm.cols), SUM(24*(_xlpm.finish-_xlpm.start))), "") -> 
E134: 10:00:00 | F134: 12:00:00 | I134: 11:00:00 | J134: 13:00:00 | Q134: =IF(_xlfn.SINGLE(ClientHdr)="", _xlfn.LET( _xlpm.cols, _xlfn.SEQUENCE(1,7,2,2), _xlpm.start, INDEX(currentRow,_xlpm.cols), _xlpm.finish, INDEX(currentRow, 1+_xlpm.cols), SUM(24*(_xlpm.finish-_xlpm.start))), "") -> 4
B135: Client 66 | Q135: =IF(_xlfn.SINGLE(ClientHdr)="", _xlfn.LET( _xlpm.cols, _xlfn.SEQUENCE(1,7,2,2), _xlpm.start, INDEX(currentRow,_xlpm.cols), _xlpm.finish, INDEX(currentRow, 1+_xlpm.cols), SUM(24*(_xlpm.finish-_xlpm.start))), "") -> 
C136: 14:00:00 | D136: 16:00:00 | E136: 15:00:00 | F136: 17:00:00 | I136: 16:00:00 | J136: 18:00:00 | K136: 16:00:00 | L136: 18:00:00 | M136: 10:00:00 | N136: 13:00:00 | Q136: =IF(_xlfn.SINGLE(ClientHdr)="", _xlfn.LET( _xlpm.cols, _xlfn.SEQUENCE(1,7,2,2), _xlpm.start, INDEX(currentRow,_xlpm.cols), _xlpm.finish, INDEX(currentRow, 1+_xlpm.cols), SUM(24*(_xlpm.finish-_xlpm.start))), "") -> 11
B137: Client 67 | Q137: =IF(_xlfn.SINGLE(ClientHdr)="", _xlfn.LET( _xlpm.cols, _xlfn.SEQUENCE(1,7,2,2), _xlpm.start, INDEX(currentRow,_xlpm.cols), _xlpm.finish, INDEX(currentRow, 1+_xlpm.cols), SUM(24*(_xlpm.finish-_xlpm.start))), "") -> 
C138: 10:30:00 | D138: 13:30:00 | E138: 09:30:00 | F138: 12:30:00 | G138: 09:30:00 | H138: 12:30:00 | I138: 09:30:00 | J138: 12:30:00 | K138: 10:30:00 | L138: 13:30:00 | M138: 09:30:00 | N138: 12:30:00 | Q138: =IF(_xlfn.SINGLE(ClientHdr)="", _xlfn.LET( _xlpm.cols, _xlfn.SEQUENCE(1,7,2,2), _xlpm.start, INDEX(currentRow,_xlpm.cols), _xlpm.finish, INDEX(currentRow, 1+_xlpm.cols), SUM(24*(_xlpm.finish-_xlpm.start))), "") -> 18
B139: Client 68 | Q139: =IF(_xlfn.SINGLE(ClientHdr)="", _xlfn.LET( _xlpm.cols, _xlfn.SEQUENCE(1,7,2,2), _xlpm.start, INDEX(currentRow,_xlpm.cols), _xlpm.finish, INDEX(currentRow, 1+_xlpm.cols), SUM(24*(_xlpm.finish-_xlpm.start))), "") -> 
E140: 09:00:00 | F140: 14:00:00 | I140: 09:00:00 | J140: 14:00:00 | Q140: =IF(_xlfn.SINGLE(ClientHdr)="", _xlfn.LET( _xlpm.cols, _xlfn.SEQUENCE(1,7,2,2), _xlpm.start, INDEX(currentRow,_xlpm.cols), _xlpm.finish, INDEX(currentRow, 1+_xlpm.cols), SUM(24*(_xlpm.finish-_xlpm.start))), "") -> 10
B141: Client 69 | Q141: =IF(_xlfn.SINGLE(ClientHdr)="", _xlfn.LET( _xlpm.cols, _xlfn.SEQUENCE(1,7,2,2), _xlpm.start, INDEX(currentRow,_xlpm.cols), _xlpm.finish, INDEX(currentRow, 1+_xlpm.cols), SUM(24*(_xlpm.finish-_xlpm.start))), "") -> 
C142: 10:00:00 | D142: 13:30:00 | E142: 10:00:00 | F142: 13:00:00 | G142: 10:00:00 | H142: 13:00:00 | I142: 10:00:00 | J142: 13:00:00 | K142: 12:00:00 | L142: 17:00:00 | M142: 11:00:00 | N142: 13:00:00 | Q142: =IF(_xlfn.SINGLE(ClientHdr)="", _xlfn.LET( _xlpm.cols, _xlfn.SEQUENCE(1,7,2,2), _xlpm.start, INDEX(currentRow,_xlpm.cols), _xlpm.finish, INDEX(currentRow, 1+_xlpm.cols), SUM(24*(_xlpm.finish-_xlpm.start))), "") -> 19.5
B143: Client 70 | Q143: =IF(_xlfn.SINGLE(ClientHdr)="", _xlfn.LET( _xlpm.cols, _xlfn.SEQUENCE(1,7,2,2), _xlpm.start, INDEX(currentRow,_xlpm.cols), _xlpm.finish, INDEX(currentRow, 1+_xlpm.cols), SUM(24*(_xlpm.finish-_xlpm.start))), "") -> 
Q144: =IF(_xlfn.SINGLE(ClientHdr)="", _xlfn.LET( _xlpm.cols, _xlfn.SEQUENCE(1,7,2,2), _xlpm.start, INDEX(currentRow,_xlpm.cols), _xlpm.finish, INDEX(currentRow, 1+_xlpm.cols), SUM(24*(_xlpm.finish-_xlpm.start))), "") -> 0
B145: Client 71 | Q145: =IF(_xlfn.SINGLE(ClientHdr)="", _xlfn.LET( _xlpm.cols, _xlfn.SEQUENCE(1,7,2,2), _xlpm.start, INDEX(currentRow,_xlpm.cols), _xlpm.finish, INDEX(currentRow, 1+_xlpm.cols), SUM(24*(_xlpm.finish-_xlpm.start))), "") -> 
Q146: =IF(_xlfn.SINGLE(ClientHdr)="", _xlfn.LET( _xlpm.cols, _xlfn.SEQUENCE(1,7,2,2), _xlpm.start, INDEX(currentRow,_xlpm.cols), _xlpm.finish, INDEX(currentRow, 1+_xlpm.cols), SUM(24*(_xlpm.finish-_xlpm.start))), "") -> 0
B147: Client 72 | Q147: =IF(_xlfn.SINGLE(ClientHdr)="", _xlfn.LET( _xlpm.cols, _xlfn.SEQUENCE(1,7,2,2), _xlpm.start, INDEX(currentRow,_xlpm.cols), _xlpm.finish, INDEX(currentRow, 1+_xlpm.cols), SUM(24*(_xlpm.finish-_xlpm.start))), "") -> 
Q148: =IF(_xlfn.SINGLE(ClientHdr)="", _xlfn.LET( _xlpm.cols, _xlfn.SEQUENCE(1,7,2,2), _xlpm.start, INDEX(currentRow,_xlpm.cols), _xlpm.finish, INDEX(currentRow, 1+_xlpm.cols), SUM(24*(_xlpm.finish-_xlpm.start))), "") -> 0
B149: Client 73 | Q149: =IF(_xlfn.SINGLE(ClientHdr)="", _xlfn.LET( _xlpm.cols, _xlfn.SEQUENCE(1,7,2,2), _xlpm.start, INDEX(currentRow,_xlpm.cols), _xlpm.finish, INDEX(currentRow, 1+_xlpm.cols), SUM(24*(_xlpm.finish-_xlpm.start))), "") -> 
Q150: =IF(_xlfn.SINGLE(ClientHdr)="", _xlfn.LET( _xlpm.cols, _xlfn.SEQUENCE(1,7,2,2), _xlpm.start, INDEX(currentRow,_xlpm.cols), _xlpm.finish, INDEX(currentRow, 1+_xlpm.cols), SUM(24*(_xlpm.finish-_xlpm.start))), "") -> 0
B151: Client 74 | Q151: =IF(_xlfn.SINGLE(ClientHdr)="", _xlfn.LET( _xlpm.cols, _xlfn.SEQUENCE(1,7,2,2), _xlpm.start, INDEX(currentRow,_xlpm.cols), _xlpm.finish, INDEX(currentRow, 1+_xlpm.cols), SUM(24*(_xlpm.finish-_xlpm.start))), "") -> 
Q152: =IF(_xlfn.SINGLE(ClientHdr)="", _xlfn.LET( _xlpm.cols, _xlfn.SEQUENCE(1,7,2,2), _xlpm.start, INDEX(currentRow,_xlpm.cols), _xlpm.finish, INDEX(currentRow, 1+_xlpm.cols), SUM(24*(_xlpm.finish-_xlpm.start))), "") -> 0
B153: Client 75 | Q153: =IF(_xlfn.SINGLE(ClientHdr)="", _xlfn.LET( _xlpm.cols, _xlfn.SEQUENCE(1,7,2,2), _xlpm.start, INDEX(currentRow,_xlpm.cols), _xlpm.finish, INDEX(currentRow, 1+_xlpm.cols), SUM(24*(_xlpm.finish-_xlpm.start))), "") -> 
Q154: =IF(_xlfn.SINGLE(ClientHdr)="", _xlfn.LET( _xlpm.cols, _xlfn.SEQUENCE(1,7,2,2), _xlpm.start, INDEX(currentRow,_xlpm.cols), _xlpm.finish, INDEX(currentRow, 1+_xlpm.cols), SUM(24*(_xlpm.finish-_xlpm.start))), "") -> 0

Sheet Shift Frequencies
R1: CQ Shift Frequencies | AH1: Custom Time Frequency
B3: Monday | D3: Tuesday | F3: Wednesday | H3: Thursday | J3: Friday | L3: Saturday | N3: Sunday | S3: Mon | U3: Tue | W3: Wed | Y3: Thu | AA3: Fri | AC3: Sat | AE3: Sun | AH3: Mon | AJ3: Tue | AL3: Wed | AN3: Thu | AP3: Fri | AR3: Sat | AT3: Sun
A4: Time | B4: =Roster!C6 -> 00:00:00 | C4: =Roster!D6 -> 00:00:00 | D4: =Roster!E6 -> 00:00:00 | E4: =Roster!F6 -> 00:00:00 | F4: =Roster!G6 -> 00:00:00 | G4: =Roster!H6 -> 00:00:00 | H4: =Roster!I6 -> 09:00:00 | I4: =Roster!J6 -> 12:00:00 | J4: =Roster!K6 -> 09:00:00 | K4: =Roster!L6 -> 12:00:00 | L4: =Roster!M6 -> 00:00:00 | M4: =Roster!N6 -> 00:00:00 | N4: =Roster!O6 -> 00:00:00 | O4: =Roster!P6 -> 00:00:00 | P4: 08:00:00 | R4: 08:00:00 | S4: =COUNTIFS(B$4:B$171,"<="&$R4,C$4:C$171,">="&$R5) -> 2 | U4: =COUNTIFS(D$4:D$171,"<="&$R4,E$4:E$171,">="&$R5) -> 3 | W4: =COUNTIFS(F$4:F$171,"<="&$R4,G$4:G$171,">="&$R5) -> 3 | Y4: =COUNTIFS(H$4:H$171,"<="&$R4,I$4:I$171,">="&$R5) -> 3 | AA4: =COUNTIFS(J$4:J$171,"<="&$R4,K$4:K$171,">="&$R5) -> 3 | AC4: =COUNTIFS(L$4:L$171,"<="&$R4,M$4:M$171,">="&$R5) -> 2 | AE4: =COUNTIFS(N$4:N$171,"<="&$R4,O$4:O$171,">="&$R5) -> 1 | AH4: 06:00:00 | AJ4: 07:00:00
P5: 08:30:00 | R5: 09:00:00 | AH5: 23:00:00 | AJ5: 14:00:00
B6: =Roster!C8 -> 00:00:00 | C6: =Roster!D8 -> 00:00:00 | D6: =Roster!E8 -> 00:00:00 | E6: =Roster!F8 -> 00:00:00 | F6: =Roster!G8 -> 00:00:00 | G6: =Roster!H8 -> 00:00:00 | H6: =Roster!I8 -> 00:00:00 | I6: =Roster!J8 -> 00:00:00 | J6: =Roster!K8 -> 00:00:00 | K6: =Roster!L8 -> 00:00:00 | L6: =Roster!M8 -> 00:00:00 | M6: =Roster!N8 -> 00:00:00 | N6: =Roster!O8 -> 00:00:00 | O6: =Roster!P8 -> 00:00:00 | P6: 09:00:00 | R6: 09:00:00 | S6: =COUNTIFS(B$4:B$171,"<="&$R6,C$4:C$171,">="&$R7) -> 1 | U6: =COUNTIFS(D$4:D$171,"<="&$R6,E$4:E$171,">="&$R7) -> 1 | W6: =COUNTIFS(F$4:F$171,"<="&$R6,G$4:G$171,">="&$R7) -> 2 | Y6: =COUNTIFS(H$4:H$171,"<="&$R6,I$4:I$171,">="&$R7) -> 2 | AA6: =COUNTIFS(J$4:J$171,"<="&$R6,K$4:K$171,">="&$R7) -> 3 | AC6: =COUNTIFS(L$4:L$171,"<="&$R6,M$4:M$171,">="&$R7) -> 2 | AE6: =COUNTIFS(N$4:N$171,"<="&$R6,O$4:O$171,">="&$R7) -> 3 | AH6: =COUNTIFS(B$4:B$171,">="&AH4,C$4:C$171,"<="&$AH5) -> 31 | AJ6: =COUNTIFS(D$4:D$171,">="&AJ4,E$4:E$171,"<="&$AH5) -> 34 | AL6: =COUNTIFS(F$4:F$171,">="&AL4,G$4:G$171,"<="&$AH5) -> 0 | AN6: =COUNTIFS(H$4:H$171,">="&AN4,I$4:I$171,"<="&$AH5) -> 0 | AP6: =COUNTIFS(J$4:J$171,">="&AP4,K$4:K$171,"<="&$AH5) -> 0 | AR6: =COUNTIFS(L$4:L$171,">="&AR4,M$4:M$171,"<="&$AH5) -> 0 | AT6: =COUNTIFS(N$4:N$171,">="&AT4,O$4:O$171,"<="&$AH5) -> 0
P7: 09:30:00 | R7: 10:00:00
B8: =Roster!C10 -> 00:00:00 | C8: =Roster!D10 -> 00:00:00 | D8: =Roster!E10 -> 00:00:00 | E8: =Roster!F10 -> 00:00:00 | F8: =Roster!G10 -> 09:00:00 | G8: =Roster!H10 -> 15:00:00 | H8: =Roster!I10 -> 00:00:00 | I8: =Roster!J10 -> 00:00:00 | J8: =Roster!K10 -> 00:00:00 | K8: =Roster!L10 -> 00:00:00 | L8: =Roster!M10 -> 00:00:00 | M8: =Roster!N10 -> 00:00:00 | N8: =Roster!O10 -> 00:00:00 | O8: =Roster!P10 -> 00:00:00 | P8: 10:00:00 | R8: 10:00:00 | S8: =COUNTIFS(B$4:B$171,"<="&$R8,C$4:C$171,">="&$R9) -> 10 | U8: =COUNTIFS(D$4:D$171,"<="&$R8,E$4:E$171,">="&$R9) -> 15 | W8: =COUNTIFS(F$4:F$171,"<="&$R8,G$4:G$171,">="&$R9) -> 14 | Y8: =COUNTIFS(H$4:H$171,"<="&$R8,I$4:I$171,">="&$R9) -> 16 | AA8: =COUNTIFS(J$4:J$171,"<="&$R8,K$4:K$171,">="&$R9) -> 14 | AC8: =COUNTIFS(L$4:L$171,"<="&$R8,M$4:M$171,">="&$R9) -> 10 | AE8: =COUNTIFS(N$4:N$171,"<="&$R8,O$4:O$171,">="&$R9) -> 3
P9: 10:30:00 | R9: 11:00:00
B10: =Roster!C12 -> 00:00:00 | C10: =Roster!D12 -> 00:00:00 | D10: =Roster!E12 -> 09:00:00 | E10: =Roster!F12 -> 14:00:00 | F10: =Roster!G12 -> 09:00:00 | G10: =Roster!H12 -> 14:00:00 | H10: =Roster!I12 -> 09:00:00 | I10: =Roster!J12 -> 14:00:00 | J10: =Roster!K12 -> 09:00:00 | K10: =Roster!L12 -> 14:00:00 | L10: =Roster!M12 -> 00:00:00 | M10: =Roster!N12 -> 00:00:00 | N10: =Roster!O12 -> 00:00:00 | O10: =Roster!P12 -> 00:00:00 | P10: 11:00:00 | R10: 11:00:00 | S10: =COUNTIFS(B$4:B$171,"<="&$R10,C$4:C$171,">="&$R11) -> 9 | U10: =COUNTIFS(D$4:D$171,"<="&$R10,E$4:E$171,">="&$R11) -> 15 | W10: =COUNTIFS(F$4:F$171,"<="&$R10,G$4:G$171,">="&$R11) -> 13 | Y10: =COUNTIFS(H$4:H$171,"<="&$R10,I$4:I$171,">="&$R11) -> 15 | AA10: =COUNTIFS(J$4:J$171,"<="&$R10,K$4:K$171,">="&$R11) -> 14 | AC10: =COUNTIFS(L$4:L$171,"<="&$R10,M$4:M$171,">="&$R11) -> 9 | AE10: =COUNTIFS(N$4:N$171,"<="&$R10,O$4:O$171,">="&$R11) -> 3
P11: 11:30:00 | R11: 12:00:00
B12: =Roster!C14 -> 00:00:00 | C12: =Roster!D14 -> 00:00:00 | D12: =Roster!E14 -> 09:00:00 | E12: =Roster!F14 -> 14:00:00 | F12: =Roster!G14 -> 00:00:00 | G12: =Roster!H14 -> 00:00:00 | H12: =Roster!I14 -> 09:00:00 | I12: =Roster!J14 -> 13:30:00 | J12: =Roster!K14 -> 09:00:00 | K12: =Roster!L14 -> 14:00:00 | L12: =Roster!M14 -> 00:00:00 | M12: =Roster!N14 -> 00:00:00 | N12: =Roster!O14 -> 00:00:00 | O12: =Roster!P14 -> 00:00:00 | P12: 12:00:00 | R12: 12:00:00 | S12: =COUNTIFS(B$4:B$171,"<="&$R12,C$4:C$171,">="&$R13) -> 6 | U12: =COUNTIFS(D$4:D$171,"<="&$R12,E$4:E$171,">="&$R13) -> 10 | W12: =COUNTIFS(F$4:F$171,"<="&$R12,G$4:G$171,">="&$R13) -> 8 | Y12: =COUNTIFS(H$4:H$171,"<="&$R12,I$4:I$171,">="&$R13) -> 13 | AA12: =COUNTIFS(J$4:J$171,"<="&$R12,K$4:K$171,">="&$R13) -> 11 | AC12: =COUNTIFS(L$4:L$171,"<="&$R12,M$4:M$171,">="&$R13) -> 9 | AE12: =COUNTIFS(N$4:N$171,"<="&$R12,O$4:O$171,">="&$R13) -> 3
P13: 12:30:00 | R13: 13:00:00
B14: =Roster!C16 -> 12:00:00 | C14: =Roster!D16 -> 15:00:00 | D14: =Roster!E16 -> 12:00:00 | E14: =Roster!F16 -> 15:00:00 | F14: =Roster!G16 -> 00:00:00 | G14: =Roster!H16 -> 00:00:00 | H14: =Roster!I16 -> 12:00:00 | I14: =Roster!J16 -> 15:00:00 | J14: =Roster!K16 -> 12:00:00 | K14: =Roster!L16 -> 15:00:00 | L14: =Roster!M16 -> 00:00:00 | M14: =Roster!N16 -> 00:00:00 | N14: =Roster!O16 -> 00:00:00 | O14: =Roster!P16 -> 00:00:00 | P14: 13:00:00 | R14: 13:00:00 | S14: =COUNTIFS(B$4:B$171,"<="&$R14,C$4:C$171,">="&$R15) -> 6 | U14: =COUNTIFS(D$4:D$171,"<="&$R14,E$4:E$171,">="&$R15) -> 10 | W14: =COUNTIFS(F$4:F$171,"<="&$R14,G$4:G$171,">="&$R15) -> 9 | Y14: =COUNTIFS(H$4:H$171,"<="&$R14,I$4:I$171,">="&$R15) -> 11 | AA14: =COUNTIFS(J$4:J$171,"<="&$R14,K$4:K$171,">="&$R15) -> 10 | AC14: =COUNTIFS(L$4:L$171,"<="&$R14,M$4:M$171,">="&$R15) -> 5 | AE14: =COUNTIFS(N$4:N$171,"<="&$R14,O$4:O$171,">="&$R15) -> 2
P15: 13:30:00 | R15: 14:00:00
B16: =Roster!C18 -> 15:00:00 | C16: =Roster!D18 -> 18:30:00 | D16: =Roster!E18 -> 15:00:00 | E16: =Roster!F18 -> 18:30:00 | F16: =Roster!G18 -> 00:00:00 | G16: =Roster!H18 -> 00:00:00 | H16: =Roster!I18 -> 15:00:00 | I16: =Roster!J18 -> 18:30:00 | J16: =Roster!K18 -> 15:00:00 | K16: =Roster!L18 -> 18:30:00 | L16: =Roster!M18 -> 00:00:00 | M16: =Roster!N18 -> 00:00:00 | N16: =Roster!O18 -> 00:00:00 | O16: =Roster!P18 -> 00:00:00 | P16: 14:00:00 | R16: 14:00:00 | S16: =COUNTIFS(B$4:B$171,"<="&$R16,C$4:C$171,">="&$R17) -> 6 | U16: =COUNTIFS(D$4:D$171,"<="&$R16,E$4:E$171,">="&$R17) -> 3 | W16: =COUNTIFS(F$4:F$171,"<="&$R16,G$4:G$171,">="&$R17) -> 6 | Y16: =COUNTIFS(H$4:H$171,"<="&$R16,I$4:I$171,">="&$R17) -> 9 | AA16: =COUNTIFS(J$4:J$171,"<="&$R16,K$4:K$171,">="&$R17) -> 5 | AC16: =COUNTIFS(L$4:L$171,"<="&$R16,M$4:M$171,">="&$R17) -> 5 | AE16: =COUNTIFS(N$4:N$171,"<="&$R16,O$4:O$171,">="&$R17) -> 2
P17: 14:30:00 | R17: 15:00:00
B18: =Roster!C20 -> 00:00:00 | C18: =Roster!D20 -> 00:00:00 | D18: =Roster!E20 -> 00:00:00 | E18: =Roster!F20 -> 00:00:00 | F18: =Roster!G20 -> 00:00:00 | G18: =Roster!H20 -> 00:00:00 | H18: =Roster!I20 -> 00:00:00 | I18: =Roster!J20 -> 00:00:00 | J18: =Roster!K20 -> 00:00:00 | K18: =Roster!L20 -> 00:00:00 | L18: =Roster!M20 -> 09:00:00 | M18: =Roster!N20 -> 13:00:00 | N18: =Roster!O20 -> 00:00:00 | O18: =Roster!P20 -> 00:00:00 | P18: 15:00:00 | R18: 15:00:00 | S18: =COUNTIFS(B$4:B$171,"<="&$R18,C$4:C$171,">="&$R19) -> 6 | U18: =COUNTIFS(D$4:D$171,"<="&$R18,E$4:E$171,">="&$R19) -> 3 | W18: =COUNTIFS(F$4:F$171,"<="&$R18,G$4:G$171,">="&$R19) -> 3 | Y18: =COUNTIFS(H$4:H$171,"<="&$R18,I$4:I$171,">="&$R19) -> 4 | AA18: =COUNTIFS(J$4:J$171,"<="&$R18,K$4:K$171,">="&$R19) -> 3 | AC18: =COUNTIFS(L$4:L$171,"<="&$R18,M$4:M$171,">="&$R19) -> 3 | AE18: =COUNTIFS(N$4:N$171,"<="&$R18,O$4:O$171,">="&$R19) -> 0
P19: 15:30:00 | R19: 16:00:00
B20: =Roster!C22 -> 00:00:00 | C20: =Roster!D22 -> 00:00:00 | D20: =Roster!E22 -> 00:00:00 | E20: =Roster!F22 -> 00:00:00 | F20: =Roster!G22 -> 00:00:00 | G20: =Roster!H22 -> 00:00:00 | H20: =Roster!I22 -> 00:00:00 | I20: =Roster!J22 -> 00:00:00 | J20: =Roster!K22 -> 00:00:00 | K20: =Roster!L22 -> 00:00:00 | L20: =Roster!M22 -> 00:00:00 | M20: =Roster!N22 -> 00:00:00 | N20: =Roster!O22 -> 00:00:00 | O20: =Roster!P22 -> 00:00:00 | P20: 16:00:00 | R20: 1.666666667 | S20: =COUNTIFS(B$4:B$171,"<="&$R20,C$4:C$171,">="&$R21) -> 9 | U20: =COUNTIFS(D$4:D$171,"<="&$R20,E$4:E$171,">="&$R21) -> 9 | W20: =COUNTIFS(F$4:F$171,"<="&$R20,G$4:G$171,">="&$R21) -> 9 | Y20: =COUNTIFS(H$4:H$171,"<="&$R20,I$4:I$171,">="&$R21) -> 10 | AA20: =COUNTIFS(J$4:J$171,"<="&$R20,K$4:K$171,">="&$R21) -> 12 | AC20: =COUNTIFS(L$4:L$171,"<="&$R20,M$4:M$171,">="&$R21) -> 7 | AE20: =COUNTIFS(N$4:N$171,"<="&$R20,O$4:O$171,">="&$R21) -> 4
P21: 16:30:00 | R21: 17:00:00
B22: =Roster!C24 -> 00:00:00 | C22: =Roster!D24 -> 00:00:00 | D22: =Roster!E24 -> 14:30:00 | E22: =Roster!F24 -> 16:30:00 | F22: =Roster!G24 -> 00:00:00 | G22: =Roster!H24 -> 00:00:00 | H22: =Roster!I24 -> 09:00:00 | I22: =Roster!J24 -> 11:00:00 | J22: =Roster!K24 -> 14:30:00 | K22: =Roster!L24 -> 16:30:00 | L22: =Roster!M24 -> 00:00:00 | M22: =Roster!N24 -> 00:00:00 | N22: =Roster!O24 -> 00:00:00 | O22: =Roster!P24 -> 00:00:00 | P22: 17:00:00
P23: 17:30:00
B24: =Roster!C26 -> 00:00:00 | C24: =Roster!D26 -> 00:00:00 | D24: =Roster!E26 -> 09:00:00 | E24: =Roster!F26 -> 14:00:00 | F24: =Roster!G26 -> 00:00:00 | G24: =Roster!H26 -> 00:00:00 | H24: =Roster!I26 -> 00:00:00 | I24: =Roster!J26 -> 00:00:00 | J24: =Roster!K26 -> 09:00:00 | K24: =Roster!L26 -> 14:00:00 | L24: =Roster!M26 -> 00:00:00 | M24: =Roster!N26 -> 00:00:00 | N24: =Roster!O26 -> 00:00:00 | O24: =Roster!P26 -> 00:00:00 | P24: 18:00:00
P25: 18:30:00
B26: =Roster!C28 -> 09:00:00 | C26: =Roster!D28 -> 11:00:00 | D26: =Roster!E28 -> 00:00:00 | E26: =Roster!F28 -> 00:00:00 | F26: =Roster!G28 -> 00:00:00 | G26: =Roster!H28 -> 00:00:00 | H26: =Roster!I28 -> 00:00:00 | I26: =Roster!J28 -> 00:00:00 | J26: =Roster!K28 -> 00:00:00 | K26: =Roster!L28 -> 00:00:00 | L26: =Roster!M28 -> 09:00:00 | M26: =Roster!N28 -> 11:00:00 | N26: =Roster!O28 -> 00:00:00 | O26: =Roster!P28 -> 00:00:00 | P26: 19:00:00
P27: 19:30:00
B28: =Roster!C30 -> 00:00:00 | C28: =Roster!D30 -> 00:00:00 | D28: =Roster!E30 -> 00:00:00 | E28: =Roster!F30 -> 00:00:00 | F28: =Roster!G30 -> 10:00:00 | G28: =Roster!H30 -> 12:00:00 | H28: =Roster!I30 -> 00:00:00 | I28: =Roster!J30 -> 00:00:00 | J28: =Roster!K30 -> 00:00:00 | K28: =Roster!L30 -> 00:00:00 | L28: =Roster!M30 -> 00:00:00 | M28: =Roster!N30 -> 00:00:00 | N28: =Roster!O30 -> 00:00:00 | O28: =Roster!P30 -> 00:00:00 | P28: 20:00:00
P29: 20:30:00
B30: =Roster!C32 -> 10:00:00 | C30: =Roster!D32 -> 16:00:00 | D30: =Roster!E32 -> 00:00:00 | E30: =Roster!F32 -> 00:00:00 | F30: =Roster!G32 -> 00:00:00 | G30: =Roster!H32 -> 00:00:00 | H30: =Roster!I32 -> 09:30:00 | I30: =Roster!J32 -> 15:30:00 | J30: =Roster!K32 -> 09:30:00 | K30: =Roster!L32 -> 15:30:00 | L30: =Roster!M32 -> 13:00:00 | M30: =Roster!N32 -> 17:00:00 | N30: =Roster!O32 -> 00:00:00 | O30: =Roster!P32 -> 00:00:00 | P30: 21:00:00
P31: 21:30:00
B32: =Roster!C34 -> 00:00:00 | C32: =Roster!D34 -> 00:00:00 | D32: =Roster!E34 -> 00:00:00 | E32: =Roster!F34 -> 00:00:00 | F32: =Roster!G34 -> 00:00:00 | G32: =Roster!H34 -> 00:00:00 | H32: =Roster!I34 -> 00:00:00 | I32: =Roster!J34 -> 00:00:00 | J32: =Roster!K34 -> 09:00:00 | K32: =Roster!L34 -> 13:30:00 | L32: =Roster!M34 -> 00:00:00 | M32: =Roster!N34 -> 00:00:00 | N32: =Roster!O34 -> 00:00:00 | O32: =Roster!P34 -> 00:00:00 | P32: 22:00:00
P33: 22:30:00
B34: =Roster!C36 -> 12:00:00 | C34: =Roster!D36 -> 14:00:00 | D34: =Roster!E36 -> 12:00:00 | E34: =Roster!F36 -> 14:00:00 | F34: =Roster!G36 -> 12:00:00 | G34: =Roster!H36 -> 15:00:00 | H34: =Roster!I36 -> 12:00:00 | I34: =Roster!J36 -> 14:00:00 | J34: =Roster!K36 -> 12:00:00 | K34: =Roster!L36 -> 14:00:00 | L34: =Roster!M36 -> 00:00:00 | M34: =Roster!N36 -> 00:00:00 | N34: =Roster!O36 -> 00:00:00 | O34: =Roster!P36 -> 00:00:00 | P34: 23:00:00
P35: 23:30:00
B36: =Roster!C38 -> 00:00:00 | C36: =Roster!D38 -> 00:00:00 | D36: =Roster!E38 -> 00:00:00 | E36: =Roster!F38 -> 00:00:00 | F36: =Roster!G38 -> 00:00:00 | G36: =Roster!H38 -> 00:00:00 | H36: =Roster!I38 -> 09:00:00 | I36: =Roster!J38 -> 15:00:00 | J36: =Roster!K38 -> 00:00:00 | K36: =Roster!L38 -> 00:00:00 | L36: =Roster!M38 -> 00:00:00 | M36: =Roster!N38 -> 00:00:00 | N36: =Roster!O38 -> 00:00:00 | O36: =Roster!P38 -> 00:00:00 | P36: 1
P37: 1.020833333
B38: =Roster!C40 -> 09:00:00 | C38: =Roster!D40 -> 12:00:00 | D38: =Roster!E40 -> 09:00:00 | E38: =Roster!F40 -> 12:00:00 | F38: =Roster!G40 -> 00:00:00 | G38: =Roster!H40 -> 00:00:00 | H38: =Roster!I40 -> 00:00:00 | I38: =Roster!J40 -> 00:00:00 | J38: =Roster!K40 -> 00:00:00 | K38: =Roster!L40 -> 00:00:00 | L38: =Roster!M40 -> 00:00:00 | M38: =Roster!N40 -> 00:00:00 | N38: =Roster!O40 -> 00:00:00 | O38: =Roster!P40 -> 00:00:00 | P38: 1.041666667
P39: 1.0625
B40: =Roster!C42 -> 00:00:00 | C40: =Roster!D42 -> 00:00:00 | D40: =Roster!E42 -> 00:00:00 | E40: =Roster!F42 -> 00:00:00 | F40: =Roster!G42 -> 00:00:00 | G40: =Roster!H42 -> 00:00:00 | H40: =Roster!I42 -> 00:00:00 | I40: =Roster!J42 -> 00:00:00 | J40: =Roster!K42 -> 00:00:00 | K40: =Roster!L42 -> 00:00:00 | L40: =Roster!M42 -> 14:00:00 | M40: =Roster!N42 -> 20:00:00 | N40: =Roster!O42 -> 00:00:00 | O40: =Roster!P42 -> 00:00:00 | P40: 1.083333333
P41: 1.104166667
B42: =Roster!C44 -> 00:00:00 | C42: =Roster!D44 -> 00:00:00 | D42: =Roster!E44 -> 00:00:00 | E42: =Roster!F44 -> 00:00:00 | F42: =Roster!G44 -> 00:00:00 | G42: =Roster!H44 -> 00:00:00 | H42: =Roster!I44 -> 00:00:00 | I42: =Roster!J44 -> 00:00:00 | J42: =Roster!K44 -> 00:00:00 | K42: =Roster!L44 -> 00:00:00 | L42: =Roster!M44 -> 00:00:00 | M42: =Roster!N44 -> 00:00:00 | N42: =Roster!O44 -> 00:00:00 | O42: =Roster!P44 -> 00:00:00 | P42: 1.125
P43: 1.145833333
B44: =Roster!C46 -> 00:00:00 | C44: =Roster!D46 -> 00:00:00 | D44: =Roster!E46 -> 00:00:00 | E44: =Roster!F46 -> 00:00:00 | F44: =Roster!G46 -> 00:00:00 | G44: =Roster!H46 -> 00:00:00 | H44: =Roster!I46 -> 00:00:00 | I44: =Roster!J46 -> 00:00:00 | J44: =Roster!K46 -> 00:00:00 | K44: =Roster!L46 -> 00:00:00 | L44: =Roster!M46 -> 00:00:00 | M44: =Roster!N46 -> 00:00:00 | N44: =Roster!O46 -> 00:00:00 | O44: =Roster!P46 -> 00:00:00 | P44: 1.166666667
P45: 1.1875
B46: =Roster!C48 -> 00:00:00 | C46: =Roster!D48 -> 00:00:00 | D46: =Roster!E48 -> 00:00:00 | E46: =Roster!F48 -> 00:00:00 | F46: =Roster!G48 -> 00:00:00 | G46: =Roster!H48 -> 00:00:00 | H46: =Roster!I48 -> 00:00:00 | I46: =Roster!J48 -> 00:00:00 | J46: =Roster!K48 -> 00:00:00 | K46: =Roster!L48 -> 00:00:00 | L46: =Roster!M48 -> 00:00:00 | M46: =Roster!N48 -> 00:00:00 | N46: =Roster!O48 -> 00:00:00 | O46: =Roster!P48 -> 00:00:00 | P46: 1.208333333
P47: 1.229166667
B48: =Roster!C50 -> 07:00:00 | C48: =Roster!D50 -> 09:00:00 | D48: =Roster!E50 -> 07:00:00 | E48: =Roster!F50 -> 09:00:00 | F48: =Roster!G50 -> 07:00:00 | G48: =Roster!H50 -> 09:00:00 | H48: =Roster!I50 -> 07:00:00 | I48: =Roster!J50 -> 09:00:00 | J48: =Roster!K50 -> 07:00:00 | K48: =Roster!L50 -> 09:00:00 | L48: =Roster!M50 -> 07:00:00 | M48: =Roster!N50 -> 09:00:00 | N48: =Roster!O50 -> 08:00:00 | O48: =Roster!P50 -> 10:00:00 | P48: 1.25
P49: 1.270833333
B50: =Roster!C52 -> 15:00:00 | C50: =Roster!D52 -> 18:00:00 | D50: =Roster!E52 -> 15:00:00 | E50: =Roster!F52 -> 18:00:00 | F50: =Roster!G52 -> 15:00:00 | G50: =Roster!H52 -> 18:00:00 | H50: =Roster!I52 -> 15:00:00 | I50: =Roster!J52 -> 18:00:00 | J50: =Roster!K52 -> 15:00:00 | K50: =Roster!L52 -> 18:00:00 | L50: =Roster!M52 -> 13:00:00 | M50: =Roster!N52 -> 15:00:00 | N50: =Roster!O52 -> 13:00:00 | O50: =Roster!P52 -> 15:00:00 | P50: 1.291666667
P51: 1.3125
B52: =Roster!C54 -> 18:00:00 | C52: =Roster!D54 -> 20:00:00 | D52: =Roster!E54 -> 18:00:00 | E52: =Roster!F54 -> 19:00:00 | F52: =Roster!G54 -> 18:00:00 | G52: =Roster!H54 -> 19:00:00 | H52: =Roster!I54 -> 18:00:00 | I52: =Roster!J54 -> 19:00:00 | J52: =Roster!K54 -> 18:00:00 | K52: =Roster!L54 -> 19:00:00 | L52: =Roster!M54 -> 18:00:00 | M52: =Roster!N54 -> 19:00:00 | N52: =Roster!O54 -> 18:00:00 | O52: =Roster!P54 -> 19:00:00 | P52: 1.333333333
P53: 1.354166667
B54: =Roster!C56 -> 00:00:00 | C54: =Roster!D56 -> 00:00:00 | D54: =Roster!E56 -> 19:00:00 | E54: =Roster!F56 -> 20:00:00 | F54: =Roster!G56 -> 19:00:00 | G54: =Roster!H56 -> 20:00:00 | H54: =Roster!I56 -> 19:00:00 | I54: =Roster!J56 -> 20:00:00 | J54: =Roster!K56 -> 19:00:00 | K54: =Roster!L56 -> 20:00:00 | L54: =Roster!M56 -> 19:00:00 | M54: =Roster!N56 -> 20:00:00 | N54: =Roster!O56 -> 19:00:00 | O54: =Roster!P56 -> 20:00:00 | P54: 1.375
P55: 1.395833333
B56: =Roster!C58 -> 08:00:00 | C56: =Roster!D58 -> 10:00:00 | D56: =Roster!E58 -> 07:00:00 | E56: =Roster!F58 -> 08:30:00 | F56: =Roster!G58 -> 08:30:00 | G56: =Roster!H58 -> 14:00:00 | H56: =Roster!I58 -> 08:00:00 | I56: =Roster!J58 -> 14:30:00 | J56: =Roster!K58 -> 08:00:00 | K56: =Roster!L58 -> 10:00:00 | L56: =Roster!M58 -> 08:30:00 | M56: =Roster!N58 -> 10:30:00 | N56: =Roster!O58 -> 08:30:00 | O56: =Roster!P58 -> 14:30:00 | P56: 1.416666667
P57: 1.4375
B58: =Roster!C60 -> 00:00:00 | C58: =Roster!D60 -> 00:00:00 | D58: =Roster!E60 -> 00:00:00 | E58: =Roster!F60 -> 00:00:00 | F58: =Roster!G60 -> 00:00:00 | G58: =Roster!H60 -> 00:00:00 | H58: =Roster!I60 -> 00:00:00 | I58: =Roster!J60 -> 00:00:00 | J58: =Roster!K60 -> 00:00:00 | K58: =Roster!L60 -> 00:00:00 | L58: =Roster!M60 -> 00:00:00 | M58: =Roster!N60 -> 00:00:00 | N58: =Roster!O60 -> 00:00:00 | O58: =Roster!P60 -> 00:00:00 | P58: 1.458333333
P59: 1.479166667
B60: =Roster!C62 -> 00:00:00 | C60: =Roster!D62 -> 00:00:00 | D60: =Roster!E62 -> 00:00:00 | E60: =Roster!F62 -> 00:00:00 | F60: =Roster!G62 -> 00:00:00 | G60: =Roster!H62 -> 00:00:00 | H60: =Roster!I62 -> 00:00:00 | I60: =Roster!J62 -> 00:00:00 | J60: =Roster!K62 -> 00:00:00 | K60: =Roster!L62 -> 00:00:00 | L60: =Roster!M62 -> 00:00:00 | M60: =Roster!N62 -> 00:00:00 | N60: =Roster!O62 -> 00:00:00 | O60: =Roster!P62 -> 00:00:00 | P60: 1.5
P61: 1.520833333
B62: =Roster!C64 -> 07:00:00 | C62: =Roster!D64 -> 09:00:00 | D62: =Roster!E64 -> 07:00:00 | E62: =Roster!F64 -> 09:00:00 | F62: =Roster!G64 -> 07:00:00 | G62: =Roster!H64 -> 09:00:00 | H62: =Roster!I64 -> 07:00:00 | I62: =Roster!J64 -> 09:00:00 | J62: =Roster!K64 -> 07:00:00 | K62: =Roster!L64 -> 09:00:00 | L62: =Roster!M64 -> 07:00:00 | M62: =Roster!N64 -> 15:00:00 | N62: =Roster!O64 -> 07:00:00 | O62: =Roster!P64 -> 15:00:00 | P62: 1.541666667
P63: 1.5625
B64: =Roster!C66 -> 09:00:00 | C64: =Roster!D66 -> 15:00:00 | D64: =Roster!E66 -> 09:00:00 | E64: =Roster!F66 -> 15:00:00 | F64: =Roster!G66 -> 09:00:00 | G64: =Roster!H66 -> 15:00:00 | H64: =Roster!I66 -> 09:00:00 | I64: =Roster!J66 -> 15:00:00 | J64: =Roster!K66 -> 09:00:00 | K64: =Roster!L66 -> 15:00:00 | L64: =Roster!M66 -> 00:00:00 | M64: =Roster!N66 -> 00:00:00 | N64: =Roster!O66 -> 00:00:00 | O64: =Roster!P66 -> 00:00:00 | P64: 1.583333333
P65: 1.604166667
B66: =Roster!C68 -> 15:00:00 | C66: =Roster!D68 -> 23:00:00 | D66: =Roster!E68 -> 15:00:00 | E66: =Roster!F68 -> 23:00:00 | F66: =Roster!G68 -> 15:00:00 | G66: =Roster!H68 -> 23:00:00 | H66: =Roster!I68 -> 15:00:00 | I66: =Roster!J68 -> 23:00:00 | J66: =Roster!K68 -> 15:00:00 | K66: =Roster!L68 -> 23:00:00 | L66: =Roster!M68 -> 15:00:00 | M66: =Roster!N68 -> 23:00:00 | N66: =Roster!O68 -> 15:00:00 | O66: =Roster!P68 -> 23:00:00 | P66: 1.625
P67: 1.645833333
B68: =Roster!C70 -> 07:00:00 | C68: =Roster!D70 -> 08:30:00 | D68: =Roster!E70 -> 00:00:00 | E68: =Roster!F70 -> 00:00:00 | F68: =Roster!G70 -> 00:00:00 | G68: =Roster!H70 -> 00:00:00 | H68: =Roster!I70 -> 00:00:00 | I68: =Roster!J70 -> 00:00:00 | J68: =Roster!K70 -> 00:00:00 | K68: =Roster!L70 -> 00:00:00 | L68: =Roster!M70 -> 00:00:00 | M68: =Roster!N70 -> 00:00:00 | N68: =Roster!O70 -> 00:00:00 | O68: =Roster!P70 -> 00:00:00 | P68: 1.666666667
P69: 1.6875
B70: =Roster!C72 -> 00:00:00 | C70: =Roster!D72 -> 00:00:00 | D70: =Roster!E72 -> 00:00:00 | E70: =Roster!F72 -> 00:00:00 | F70: =Roster!G72 -> 00:00:00 | G70: =Roster!H72 -> 00:00:00 | H70: =Roster!I72 -> 00:00:00 | I70: =Roster!J72 -> 00:00:00 | J70: =Roster!K72 -> 00:00:00 | K70: =Roster!L72 -> 00:00:00 | L70: =Roster!M72 -> 00:00:00 | M70: =Roster!N72 -> 00:00:00 | N70: =Roster!O72 -> 00:00:00 | O70: =Roster!P72 -> 00:00:00
B72: =Roster!C74 -> 09:00:00 | C72: =Roster!D74 -> 14:00:00 | D72: =Roster!E74 -> 09:00:00 | E72: =Roster!F74 -> 14:00:00 | F72: =Roster!G74 -> 09:00:00 | G72: =Roster!H74 -> 14:00:00 | H72: =Roster!I74 -> 09:00:00 | I72: =Roster!J74 -> 14:00:00 | J72: =Roster!K74 -> 09:00:00 | K72: =Roster!L74 -> 14:00:00 | L72: =Roster!M74 -> 00:00:00 | M72: =Roster!N74 -> 00:00:00 | N72: =Roster!O74 -> 00:00:00 | O72: =Roster!P74 -> 00:00:00
B74: =Roster!C76 -> 00:00:00 | C74: =Roster!D76 -> 00:00:00 | D74: =Roster!E76 -> 06:00:00 | E74: =Roster!F76 -> 10:00:00 | F74: =Roster!G76 -> 06:00:00 | G74: =Roster!H76 -> 10:00:00 | H74: =Roster!I76 -> 06:00:00 | I74: =Roster!J76 -> 10:00:00 | J74: =Roster!K76 -> 06:00:00 | K74: =Roster!L76 -> 10:00:00 | L74: =Roster!M76 -> 00:00:00 | M74: =Roster!N76 -> 00:00:00 | N74: =Roster!O76 -> 00:00:00 | O74: =Roster!P76 -> 00:00:00
B76: =Roster!C78 -> 15:00:00 | C76: =Roster!D78 -> 17:00:00 | D76: =Roster!E78 -> 11:00:00 | E76: =Roster!F78 -> 14:00:00 | F76: =Roster!G78 -> 09:00:00 | G76: =Roster!H78 -> 12:00:00 | H76: =Roster!I78 -> 15:00:00 | I76: =Roster!J78 -> 18:00:00 | J76: =Roster!K78 -> 10:00:00 | K76: =Roster!L78 -> 14:00:00 | L76: =Roster!M78 -> 11:00:00 | M76: =Roster!N78 -> 13:00:00 | N76: =Roster!O78 -> 00:00:00 | O76: =Roster!P78 -> 00:00:00
B78: =Roster!C80 -> 17:00:00 | C78: =Roster!D80 -> 21:00:00 | D78: =Roster!E80 -> 18:00:00 | E78: =Roster!F80 -> 20:00:00 | F78: =Roster!G80 -> 18:00:00 | G78: =Roster!H80 -> 20:00:00 | H78: =Roster!I80 -> 18:00:00 | I78: =Roster!J80 -> 21:00:00 | J78: =Roster!K80 -> 18:00:00 | K78: =Roster!L80 -> 20:00:00 | L78: =Roster!M80 -> 18:00:00 | M78: =Roster!N80 -> 20:00:00 | N78: =Roster!O80 -> 18:00:00 | O78: =Roster!P80 -> 20:00:00
B80: =Roster!C82 -> 00:00:00 | C80: =Roster!D82 -> 00:00:00 | D80: =Roster!E82 -> 00:00:00 | E80: =Roster!F82 -> 00:00:00 | F80: =Roster!G82 -> 00:00:00 | G80: =Roster!H82 -> 00:00:00 | H80: =Roster!I82 -> 00:00:00 | I80: =Roster!J82 -> 00:00:00 | J80: =Roster!K82 -> 00:00:00 | K80: =Roster!L82 -> 00:00:00 | L80: =Roster!M82 -> 00:00:00 | M80: =Roster!N82 -> 00:00:00 | N80: =Roster!O82 -> 00:00:00 | O80: =Roster!P82 -> 00:00:00
B82: =Roster!C84 -> 00:00:00 | C82: =Roster!D84 -> 00:00:00 | D82: =Roster!E84 -> 00:00:00 | E82: =Roster!F84 -> 00:00:00 | F82: =Roster!G84 -> 15:00:00 | G82: =Roster!H84 -> 17:00:00 | H82: =Roster!I84 -> 00:00:00 | I82: =Roster!J84 -> 00:00:00 | J82: =Roster!K84 -> 15:00:00 | K82: =Roster!L84 -> 17:00:00 | L82: =Roster!M84 -> 00:00:00 | M82: =Roster!N84 -> 00:00:00 | N82: =Roster!O84 -> 00:00:00 | O82: =Roster!P84 -> 00:00:00
B84: =Roster!C86 -> 00:00:00 | C84: =Roster!D86 -> 00:00:00 | D84: =Roster!E86 -> 00:00:00 | E84: =Roster!F86 -> 00:00:00 | F84: =Roster!G86 -> 00:00:00 | G84: =Roster!H86 -> 00:00:00 | H84: =Roster!I86 -> 00:00:00 | I84: =Roster!J86 -> 00:00:00 | J84: =Roster!K86 -> 00:00:00 | K84: =Roster!L86 -> 00:00:00 | L84: =Roster!M86 -> 00:00:00 | M84: =Roster!N86 -> 00:00:00 | N84: =Roster!O86 -> 00:00:00 | O84: =Roster!P86 -> 00:00:00
B86: =Roster!C88 -> 00:00:00 | C86: =Roster!D88 -> 00:00:00 | D86: =Roster!E88 -> 00:00:00 | E86: =Roster!F88 -> 00:00:00 | F86: =Roster!G88 -> 00:00:00 | G86: =Roster!H88 -> 00:00:00 | H86: =Roster!I88 -> 00:00:00 | I86: =Roster!J88 -> 00:00:00 | J86: =Roster!K88 -> 00:00:00 | K86: =Roster!L88 -> 00:00:00 | L86: =Roster!M88 -> 12:00:00 | M86: =Roster!N88 -> 17:00:00 | N86: =Roster!O88 -> 00:00:00 | O86: =Roster!P88 -> 00:00:00
B88: =Roster!C90 -> 00:00:00 | C88: =Roster!D90 -> 00:00:00 | D88: =Roster!E90 -> 00:00:00 | E88: =Roster!F90 -> 00:00:00 | F88: =Roster!G90 -> 00:00:00 | G88: =Roster!H90 -> 00:00:00 | H88: =Roster!I90 -> 00:00:00 | I88: =Roster!J90 -> 00:00:00 | J88: =Roster!K90 -> 00:00:00 | K88: =Roster!L90 -> 00:00:00 | L88: =Roster!M90 -> 10:00:00 | M88: =Roster!N90 -> 14:00:00 | N88: =Roster!O90 -> 00:00:00 | O88: =Roster!P90 -> 00:00:00
B90: =Roster!C92 -> 00:00:00 | C90: =Roster!D92 -> 00:00:00 | D90: =Roster!E92 -> 00:00:00 | E90: =Roster!F92 -> 00:00:00 | F90: =Roster!G92 -> 00:00:00 | G90: =Roster!H92 -> 00:00:00 | H90: =Roster!I92 -> 00:00:00 | I90: =Roster!J92 -> 00:00:00 | J90: =Roster!K92 -> 18:30:00 | K90: =Roster!L92 -> 22:30:00 | L90: =Roster!M92 -> 00:00:00 | M90: =Roster!N92 -> 00:00:00 | N90: =Roster!O92 -> 00:00:00 | O90: =Roster!P92 -> 00:00:00
B92: =Roster!C94 -> 15:00:00 | C92: =Roster!D94 -> 19:00:00 | D92: =Roster!E94 -> 15:00:00 | E92: =Roster!F94 -> 19:00:00 | F92: =Roster!G94 -> 15:00:00 | G92: =Roster!H94 -> 19:00:00 | H92: =Roster!I94 -> 15:00:00 | I92: =Roster!J94 -> 19:00:00 | J92: =Roster!K94 -> 15:00:00 | K92: =Roster!L94 -> 19:00:00 | L92: =Roster!M94 -> 09:00:00 | M92: =Roster!N94 -> 12:00:00 | N92: =Roster!O94 -> 00:00:00 | O92: =Roster!P94 -> 00:00:00
B94: =Roster!C96 -> 00:00:00 | C94: =Roster!D96 -> 00:00:00 | D94: =Roster!E96 -> 10:00:00 | E94: =Roster!F96 -> 12:00:00 | F94: =Roster!G96 -> 00:00:00 | G94: =Roster!H96 -> 00:00:00 | H94: =Roster!I96 -> 13:00:00 | I94: =Roster!J96 -> 15:00:00 | J94: =Roster!K96 -> 13:00:00 | K94: =Roster!L96 -> 15:00:00 | L94: =Roster!M96 -> 00:00:00 | M94: =Roster!N96 -> 00:00:00 | N94: =Roster!O96 -> 00:00:00 | O94: =Roster!P96 -> 00:00:00
B96: =Roster!C98 -> 00:00:00 | C96: =Roster!D98 -> 00:00:00 | D96: =Roster!E98 -> 00:00:00 | E96: =Roster!F98 -> 00:00:00 | F96: =Roster!G98 -> 00:00:00 | G96: =Roster!H98 -> 00:00:00 | H96: =Roster!I98 -> 00:00:00 | I96: =Roster!J98 -> 00:00:00 | J96: =Roster!K98 -> 00:00:00 | K96: =Roster!L98 -> 00:00:00 | L96: =Roster!M98 -> 10:00:00 | M96: =Roster!N98 -> 14:00:00 | N96: =Roster!O98 -> 00:00:00 | O96: =Roster!P98 -> 00:00:00
B98: =Roster!C100 -> 09:00:00 | C98: =Roster!D100 -> 11:00:00 | D98: =Roster!E100 -> 00:00:00 | E98: =Roster!F100 -> 00:00:00 | F98: =Roster!G100 -> 09:00:00 | G98: =Roster!H100 -> 14:00:00 | H98: =Roster!I100 -> 00:00:00 | I98: =Roster!J100 -> 00:00:00 | J98: =Roster!K100 -> 09:00:00 | K98: =Roster!L100 -> 11:00:00 | L98: =Roster!M100 -> 00:00:00 | M98: =Roster!N100 -> 00:00:00 | N98: =Roster!O100 -> 00:00:00 | O98: =Roster!P100 -> 00:00:00
B100: =Roster!C102 -> 12:00:00 | C100: =Roster!D102 -> 16:30:00 | D100: =Roster!E102 -> 09:00:00 | E100: =Roster!F102 -> 14:00:00 | F100: =Roster!G102 -> 09:00:00 | G100: =Roster!H102 -> 16:30:00 | H100: =Roster!I102 -> 09:00:00 | I100: =Roster!J102 -> 16:30:00 | J100: =Roster!K102 -> 00:00:00 | K100: =Roster!L102 -> 00:00:00 | L100: =Roster!M102 -> 00:00:00 | M100: =Roster!N102 -> 00:00:00 | N100: =Roster!O102 -> 00:00:00 | O100: =Roster!P102 -> 00:00:00
B102: =Roster!C104 -> 00:00:00 | C102: =Roster!D104 -> 00:00:00 | D102: =Roster!E104 -> 00:00:00 | E102: =Roster!F104 -> 00:00:00 | F102: =Roster!G104 -> 00:00:00 | G102: =Roster!H104 -> 00:00:00 | H102: =Roster!I104 -> 00:00:00 | I102: =Roster!J104 -> 00:00:00 | J102: =Roster!K104 -> 00:00:00 | K102: =Roster!L104 -> 00:00:00 | L102: =Roster!M104 -> 00:00:00 | M102: =Roster!N104 -> 00:00:00 | N102: =Roster!O104 -> 00:00:00 | O102: =Roster!P104 -> 00:00:00
B104: =Roster!C106 -> 00:00:00 | C104: =Roster!D106 -> 00:00:00 | D104: =Roster!E106 -> 14:30:00 | E104: =Roster!F106 -> 16:30:00 | F104: =Roster!G106 -> 00:00:00 | G104: =Roster!H106 -> 00:00:00 | H104: =Roster!I106 -> 00:00:00 | I104: =Roster!J106 -> 00:00:00 | J104: =Roster!K106 -> 00:00:00 | K104: =Roster!L106 -> 00:00:00 | L104: =Roster!M106 -> 00:00:00 | M104: =Roster!N106 -> 00:00:00 | N104: =Roster!O106 -> 00:00:00 | O104: =Roster!P106 -> 00:00:00
B106: =Roster!C108 -> 00:00:00 | C106: =Roster!D108 -> 00:00:00 | D106: =Roster!E108 -> 00:00:00 | E106: =Roster!F108 -> 00:00:00 | F106: =Roster!G108 -> 00:00:00 | G106: =Roster!H108 -> 00:00:00 | H106: =Roster!I108 -> 10:00:00 | I106: =Roster!J108 -> 16:00:00 | J106: =Roster!K108 -> 00:00:00 | K106: =Roster!L108 -> 00:00:00 | L106: =Roster!M108 -> 00:00:00 | M106: =Roster!N108 -> 00:00:00 | N106: =Roster!O108 -> 00:00:00 | O106: =Roster!P108 -> 00:00:00
B108: =Roster!C110 -> 00:00:00 | C108: =Roster!D110 -> 00:00:00 | D108: =Roster!E110 -> 00:00:00 | E108: =Roster!F110 -> 00:00:00 | F108: =Roster!G110 -> 00:00:00 | G108: =Roster!H110 -> 00:00:00 | H108: =Roster!I110 -> 00:00:00 | I108: =Roster!J110 -> 00:00:00 | J108: =Roster!K110 -> 00:00:00 | K108: =Roster!L110 -> 00:00:00 | L108: =Roster!M110 -> 00:00:00 | M108: =Roster!N110 -> 00:00:00 | N108: =Roster!O110 -> 00:00:00 | O108: =Roster!P110 -> 00:00:00
B110: =Roster!C112 -> 09:00:00 | C110: =Roster!D112 -> 12:00:00 | D110: =Roster!E112 -> 00:00:00 | E110: =Roster!F112 -> 00:00:00 | F110: =Roster!G112 -> 09:00:00 | G110: =Roster!H112 -> 12:00:00 | H110: =Roster!I112 -> 00:00:00 | I110: =Roster!J112 -> 00:00:00 | J110: =Roster!K112 -> 00:00:00 | K110: =Roster!L112 -> 00:00:00 | L110: =Roster!M112 -> 00:00:00 | M110: =Roster!N112 -> 00:00:00 | N110: =Roster!O112 -> 00:00:00 | O110: =Roster!P112 -> 00:00:00
B112: =Roster!C114 -> 00:00:00 | C112: =Roster!D114 -> 00:00:00 | D112: =Roster!E114 -> 14:00:00 | E112: =Roster!F114 -> 16:00:00 | F112: =Roster!G114 -> 12:15:00 | G112: =Roster!H114 -> 15:00:00 | H112: =Roster!I114 -> 00:00:00 | I112: =Roster!J114 -> 00:00:00 | J112: =Roster!K114 -> 00:00:00 | K112: =Roster!L114 -> 00:00:00 | L112: =Roster!M114 -> 00:00:00 | M112: =Roster!N114 -> 00:00:00 | N112: =Roster!O114 -> 00:00:00 | O112: =Roster!P114 -> 00:00:00
B114: =Roster!C116 -> 00:00:00 | C114: =Roster!D116 -> 00:00:00 | D114: =Roster!E116 -> 09:00:00 | E114: =Roster!F116 -> 13:30:00 | F114: =Roster!G116 -> 00:00:00 | G114: =Roster!H116 -> 00:00:00 | H114: =Roster!I116 -> 00:00:00 | I114: =Roster!J116 -> 00:00:00 | J114: =Roster!K116 -> 09:00:00 | K114: =Roster!L116 -> 13:30:00 | L114: =Roster!M116 -> 09:00:00 | M114: =Roster!N116 -> 13:00:00 | N114: =Roster!O116 -> 00:00:00 | O114: =Roster!P116 -> 00:00:00
B116: =Roster!C118 -> 10:00:00 | C116: =Roster!D118 -> 12:00:00 | D116: =Roster!E118 -> 10:00:00 | E116: =Roster!F118 -> 12:00:00 | F116: =Roster!G118 -> 10:00:00 | G116: =Roster!H118 -> 12:00:00 | H116: =Roster!I118 -> 10:00:00 | I116: =Roster!J118 -> 12:00:00 | J116: =Roster!K118 -> 10:00:00 | K116: =Roster!L118 -> 12:00:00 | L116: =Roster!M118 -> 00:00:00 | M116: =Roster!N118 -> 00:00:00 | N116: =Roster!O118 -> 00:00:00 | O116: =Roster!P118 -> 00:00:00
B118: =Roster!C120 -> 15:00:00 | C118: =Roster!D120 -> 18:00:00 | D118: =Roster!E120 -> 15:00:00 | E118: =Roster!F120 -> 18:00:00 | F118: =Roster!G120 -> 15:00:00 | G118: =Roster!H120 -> 18:00:00 | H118: =Roster!I120 -> 15:00:00 | I118: =Roster!J120 -> 18:00:00 | J118: =Roster!K120 -> 15:00:00 | K118: =Roster!L120 -> 18:00:00 | L118: =Roster!M120 -> 10:00:00 | M118: =Roster!N120 -> 13:00:00 | N118: =Roster!O120 -> 10:00:00 | O118: =Roster!P120 -> 13:00:00
B120: =Roster!C122 -> 14:45:00 | C120: =Roster!D122 -> 17:00:00 | D120: =Roster!E122 -> 00:00:00 | E120: =Roster!F122 -> 00:00:00 | F120: =Roster!G122 -> 00:00:00 | G120: =Roster!H122 -> 00:00:00 | H120: =Roster!I122 -> 00:00:00 | I120: =Roster!J122 -> 00:00:00 | J120: =Roster!K122 -> 00:00:00 | K120: =Roster!L122 -> 00:00:00 | L120: =Roster!M122 -> 00:00:00 | M120: =Roster!N122 -> 00:00:00 | N120: =Roster!O122 -> 00:00:00 | O120: =Roster!P122 -> 00:00:00
B122: =Roster!C124 -> 13:00:00 | C122: =Roster!D124 -> 16:00:00 | D122: =Roster!E124 -> 09:15:00 | E122: =Roster!F124 -> 12:15:00 | F122: =Roster!G124 -> 13:00:00 | G122: =Roster!H124 -> 17:00:00 | H122: =Roster!I124 -> 13:00:00 | I122: =Roster!J124 -> 16:00:00 | J122: =Roster!K124 -> 09:15:00 | K122: =Roster!L124 -> 12:15:00 | L122: =Roster!M124 -> 00:00:00 | M122: =Roster!N124 -> 00:00:00 | N122: =Roster!O124 -> 00:00:00 | O122: =Roster!P124 -> 00:00:00
B124: =Roster!C126 -> 00:00:00 | C124: =Roster!D126 -> 00:00:00 | D124: =Roster!E126 -> 00:00:00 | E124: =Roster!F126 -> 00:00:00 | F124: =Roster!G126 -> 09:30:00 | G124: =Roster!H126 -> 11:30:00 | H124: =Roster!I126 -> 13:00:00 | I124: =Roster!J126 -> 16:00:00 | J124: =Roster!K126 -> 00:00:00 | K124: =Roster!L126 -> 00:00:00 | L124: =Roster!M126 -> 00:00:00 | M124: =Roster!N126 -> 00:00:00 | N124: =Roster!O126 -> 00:00:00 | O124: =Roster!P126 -> 00:00:00
B126: =Roster!C128 -> 13:00:00 | C126: =Roster!D128 -> 15:00:00 | D126: =Roster!E128 -> 13:00:00 | E126: =Roster!F128 -> 15:00:00 | F126: =Roster!G128 -> 00:00:00 | G126: =Roster!H128 -> 00:00:00 | H126: =Roster!I128 -> 00:00:00 | I126: =Roster!J128 -> 00:00:00 | J126: =Roster!K128 -> 00:00:00 | K126: =Roster!L128 -> 00:00:00 | L126: =Roster!M128 -> 00:00:00 | M126: =Roster!N128 -> 00:00:00 | N126: =Roster!O128 -> 00:00:00 | O126: =Roster!P128 -> 00:00:00
B128: =Roster!C130 -> 14:00:00 | C128: =Roster!D130 -> 16:00:00 | D128: =Roster!E130 -> 00:00:00 | E128: =Roster!F130 -> 00:00:00 | F128: =Roster!G130 -> 14:00:00 | G128: =Roster!H130 -> 16:00:00 | H128: =Roster!I130 -> 00:00:00 | I128: =Roster!J130 -> 00:00:00 | J128: =Roster!K130 -> 14:00:00 | K128: =Roster!L130 -> 16:00:00 | L128: =Roster!M130 -> 00:00:00 | M128: =Roster!N130 -> 00:00:00 | N128: =Roster!O130 -> 00:00:00 | O128: =Roster!P130 -> 00:00:00
B130: =Roster!C132 -> 09:30:00 | C130: =Roster!D132 -> 13:30:00 | D130: =Roster!E132 -> 00:00:00 | E130: =Roster!F132 -> 00:00:00 | F130: =Roster!G132 -> 00:00:00 | G130: =Roster!H132 -> 00:00:00 | H130: =Roster!I132 -> 10:00:00 | I130: =Roster!J132 -> 13:00:00 | J130: =Roster!K132 -> 08:00:00 | K130: =Roster!L132 -> 13:00:00 | L130: =Roster!M132 -> 12:30:00 | M130: =Roster!N132 -> 15:30:00 | N130: =Roster!O132 -> 00:00:00 | O130: =Roster!P132 -> 00:00:00
B132: =Roster!C134 -> 00:00:00 | C132: =Roster!D134 -> 00:00:00 | D132: =Roster!E134 -> 10:00:00 | E132: =Roster!F134 -> 12:00:00 | F132: =Roster!G134 -> 00:00:00 | G132: =Roster!H134 -> 00:00:00 | H132: =Roster!I134 -> 11:00:00 | I132: =Roster!J134 -> 13:00:00 | J132: =Roster!K134 -> 00:00:00 | K132: =Roster!L134 -> 00:00:00 | L132: =Roster!M134 -> 00:00:00 | M132: =Roster!N134 -> 00:00:00 | N132: =Roster!O134 -> 00:00:00 | O132: =Roster!P134 -> 00:00:00
B134: =Roster!C136 -> 14:00:00 | C134: =Roster!D136 -> 16:00:00 | D134: =Roster!E136 -> 15:00:00 | E134: =Roster!F136 -> 17:00:00 | F134: =Roster!G136 -> 00:00:00 | G134: =Roster!H136 -> 00:00:00 | H134: =Roster!I136 -> 16:00:00 | I134: =Roster!J136 -> 18:00:00 | J134: =Roster!K136 -> 16:00:00 | K134: =Roster!L136 -> 18:00:00 | L134: =Roster!M136 -> 10:00:00 | M134: =Roster!N136 -> 13:00:00 | N134: =Roster!O136 -> 00:00:00 | O134: =Roster!P136 -> 00:00:00
B136: =Roster!C138 -> 10:30:00 | C136: =Roster!D138 -> 13:30:00 | D136: =Roster!E138 -> 09:30:00 | E136: =Roster!F138 -> 12:30:00 | F136: =Roster!G138 -> 09:30:00 | G136: =Roster!H138 -> 12:30:00 | H136: =Roster!I138 -> 09:30:00 | I136: =Roster!J138 -> 12:30:00 | J136: =Roster!K138 -> 10:30:00 | K136: =Roster!L138 -> 13:30:00 | L136: =Roster!M138 -> 09:30:00 | M136: =Roster!N138 -> 12:30:00 | N136: =Roster!O138 -> 00:00:00 | O136: =Roster!P138 -> 00:00:00
B138: =Roster!C140 -> 00:00:00 | C138: =Roster!D140 -> 00:00:00 | D138: =Roster!E140 -> 09:00:00 | E138: =Roster!F140 -> 14:00:00 | F138: =Roster!G140 -> 00:00:00 | G138: =Roster!H140 -> 00:00:00 | H138: =Roster!I140 -> 09:00:00 | I138: =Roster!J140 -> 14:00:00 | J138: =Roster!K140 -> 00:00:00 | K138: =Roster!L140 -> 00:00:00 | L138: =Roster!M140 -> 00:00:00 | M138: =Roster!N140 -> 00:00:00 | N138: =Roster!O140 -> 00:00:00 | O138: =Roster!P140 -> 00:00:00
B140: =Roster!C142 -> 10:00:00 | C140: =Roster!D142 -> 13:30:00 | D140: =Roster!E142 -> 10:00:00 | E140: =Roster!F142 -> 13:00:00 | F140: =Roster!G142 -> 10:00:00 | G140: =Roster!H142 -> 13:00:00 | H140: =Roster!I142 -> 10:00:00 | I140: =Roster!J142 -> 13:00:00 | J140: =Roster!K142 -> 12:00:00 | K140: =Roster!L142 -> 17:00:00 | L140: =Roster!M142 -> 11:00:00 | M140: =Roster!N142 -> 13:00:00 | N140: =Roster!O142 -> 00:00:00 | O140: =Roster!P142 -> 00:00:00
B142: =Roster!C144 -> 00:00:00 | C142: =Roster!D144 -> 00:00:00 | D142: =Roster!E144 -> 00:00:00 | E142: =Roster!F144 -> 00:00:00 | F142: =Roster!G144 -> 00:00:00 | G142: =Roster!H144 -> 00:00:00 | H142: =Roster!I144 -> 00:00:00 | I142: =Roster!J144 -> 00:00:00 | J142: =Roster!K144 -> 00:00:00 | K142: =Roster!L144 -> 00:00:00 | L142: =Roster!M144 -> 00:00:00 | M142: =Roster!N144 -> 00:00:00 | N142: =Roster!O144 -> 00:00:00 | O142: =Roster!P144 -> 00:00:00
B144: =Roster!C146 -> 00:00:00 | C144: =Roster!D146 -> 00:00:00 | D144: =Roster!E146 -> 00:00:00 | E144: =Roster!F146 -> 00:00:00 | F144: =Roster!G146 -> 00:00:00 | G144: =Roster!H146 -> 00:00:00 | H144: =Roster!I146 -> 00:00:00 | I144: =Roster!J146 -> 00:00:00 | J144: =Roster!K146 -> 00:00:00 | K144: =Roster!L146 -> 00:00:00 | L144: =Roster!M146 -> 00:00:00 | M144: =Roster!N146 -> 00:00:00 | N144: =Roster!O146 -> 00:00:00 | O144: =Roster!P146 -> 00:00:00
B146: =Roster!C148 -> 00:00:00 | C146: =Roster!D148 -> 00:00:00 | D146: =Roster!E148 -> 00:00:00 | E146: =Roster!F148 -> 00:00:00 | F146: =Roster!G148 -> 00:00:00 | G146: =Roster!H148 -> 00:00:00 | H146: =Roster!I148 -> 00:00:00 | I146: =Roster!J148 -> 00:00:00 | J146: =Roster!K148 -> 00:00:00 | K146: =Roster!L148 -> 00:00:00 | L146: =Roster!M148 -> 00:00:00 | M146: =Roster!N148 -> 00:00:00 | N146: =Roster!O148 -> 00:00:00 | O146: =Roster!P148 -> 00:00:00

Sheet CF Test (hidden)
C4: 2021-08-23 | E4: 2021-08-24 | G4: 2021-08-25 | I4: 2021-08-26 | K4: 2021-08-27 | M4: 2021-08-28 | O4: 2021-08-29
C5: =IF(conflict?, currentAssigned) -> FALSE | E5: =IF(conflict?, currentAssigned) -> FALSE | G5: =IF(conflict?, currentAssigned) -> FALSE | I5: =IF(conflict?, currentAssigned) -> FALSE | K5: =IF(conflict?, currentAssigned) -> FALSE | M5: =IF(conflict?, currentAssigned) -> FALSE | O5: =IF(conflict?, currentAssigned) -> FALSE
C6: =IF(conflict?, currentAssigned) -> FALSE | E6: =IF(conflict?, currentAssigned) -> FALSE | G6: =IF(conflict?, currentAssigned) -> FALSE | I6: =IF(conflict?, currentAssigned) -> FALSE | K6: =IF(conflict?, currentAssigned) -> FALSE | M6: =IF(conflict?, currentAssigned) -> FALSE | O6: =IF(conflict?, currentAssigned) -> FALSE
C7: =IF(conflict?, currentAssigned) -> FALSE | E7: =IF(conflict?, currentAssigned) -> FALSE | G7: =IF(conflict?, currentAssigned) -> FALSE | I7: =IF(conflict?, currentAssigned) -> FALSE | K7: =IF(conflict?, currentAssigned) -> FALSE | M7: =IF(conflict?, currentAssigned) -> FALSE | O7: =IF(conflict?, currentAssigned) -> FALSE
C8: =IF(conflict?, currentAssigned) -> FALSE | E8: =IF(conflict?, currentAssigned) -> FALSE | G8: =IF(conflict?, currentAssigned) -> FALSE | I8: =IF(conflict?, currentAssigned) -> FALSE | K8: =IF(conflict?, currentAssigned) -> FALSE | M8: =IF(conflict?, currentAssigned) -> FALSE | O8: =IF(conflict?, currentAssigned) -> FALSE
C9: =IF(conflict?, currentAssigned) -> FALSE | E9: =IF(conflict?, currentAssigned) -> FALSE | G9: =IF(conflict?, currentAssigned) -> FALSE | I9: =IF(conflict?, currentAssigned) -> FALSE | K9: =IF(conflict?, currentAssigned) -> FALSE | M9: =IF(conflict?, currentAssigned) -> FALSE | O9: =IF(conflict?, currentAssigned) -> FALSE
C10: =IF(conflict?, currentAssigned) -> FALSE | E10: =IF(conflict?, currentAssigned) -> FALSE | G10: =IF(conflict?, currentAssigned) -> FALSE | I10: =IF(conflict?, currentAssigned) -> FALSE | K10: =IF(conflict?, currentAssigned) -> FALSE | M10: =IF(conflict?, currentAssigned) -> FALSE | O10: =IF(conflict?, currentAssigned) -> FALSE
C11: =IF(conflict?, currentAssigned) -> FALSE | E11: =IF(conflict?, currentAssigned) -> FALSE | G11: =IF(conflict?, currentAssigned) -> FALSE | I11: =IF(conflict?, currentAssigned) -> FALSE | K11: =IF(conflict?, currentAssigned) -> FALSE | M11: =IF(conflict?, currentAssigned) -> FALSE | O11: =IF(conflict?, currentAssigned) -> FALSE
C12: =IF(conflict?, currentAssigned) -> FALSE | E12: =IF(conflict?, currentAssigned) -> FALSE | G12: =IF(conflict?, currentAssigned) -> FALSE | I12: =IF(conflict?, currentAssigned) -> FALSE | K12: =IF(conflict?, currentAssigned) -> FALSE | M12: =IF(conflict?, currentAssigned) -> FALSE | O12: =IF(conflict?, currentAssigned) -> FALSE
C13: =IF(conflict?, currentAssigned) -> FALSE | E13: =IF(conflict?, currentAssigned) -> FALSE | G13: =IF(conflict?, currentAssigned) -> FALSE | I13: =IF(conflict?, currentAssigned) -> FALSE | K13: =IF(conflict?, currentAssigned) -> FALSE | M13: =IF(conflict?, currentAssigned) -> FALSE | O13: =IF(conflict?, currentAssigned) -> FALSE
C14: =IF(conflict?, currentAssigned) -> FALSE | E14: =IF(conflict?, currentAssigned) -> FALSE | G14: =IF(conflict?, currentAssigned) -> FALSE | I14: =IF(conflict?, currentAssigned) -> FALSE | K14: =IF(conflict?, currentAssigned) -> FALSE | M14: =IF(conflict?, currentAssigned) -> FALSE | O14: =IF(conflict?, currentAssigned) -> FALSE
C15: =IF(conflict?, currentAssigned) -> FALSE | E15: =IF(conflict?, currentAssigned) -> FALSE | G15: =IF(conflict?, currentAssigned) -> FALSE | I15: =IF(conflict?, currentAssigned) -> FALSE | K15: =IF(conflict?, currentAssigned) -> FALSE | M15: =IF(conflict?, currentAssigned) -> FALSE | O15: =IF(conflict?, currentAssigned) -> FALSE
C16: =IF(conflict?, currentAssigned) -> FALSE | E16: =IF(conflict?, currentAssigned) -> FALSE | G16: =IF(conflict?, currentAssigned) -> FALSE | I16: =IF(conflict?, currentAssigned) -> FALSE | K16: =IF(conflict?, currentAssigned) -> FALSE | M16: =IF(conflict?, currentAssigned) -> FALSE | O16: =IF(conflict?, currentAssigned) -> FALSE
C17: =IF(conflict?, currentAssigned) -> FALSE | E17: =IF(conflict?, currentAssigned) -> FALSE | G17: =IF(conflict?, currentAssigned) -> FALSE | I17: =IF(conflict?, currentAssigned) -> FALSE | K17: =IF(conflict?, currentAssigned) -> FALSE | M17: =IF(conflict?, currentAssigned) -> FALSE | O17: =IF(conflict?, currentAssigned) -> FALSE
C18: =IF(conflict?, currentAssigned) -> FALSE | E18: =IF(conflict?, currentAssigned) -> FALSE | G18: =IF(conflict?, currentAssigned) -> FALSE | I18: =IF(conflict?, currentAssigned) -> FALSE | K18: =IF(conflict?, currentAssigned) -> FALSE | M18: =IF(conflict?, currentAssigned) -> FALSE | O18: =IF(conflict?, currentAssigned) -> FALSE
C19: =IF(conflict?, currentAssigned) -> FALSE | E19: =IF(conflict?, currentAssigned) -> FALSE | G19: =IF(conflict?, currentAssigned) -> FALSE | I19: =IF(conflict?, currentAssigned) -> FALSE | K19: =IF(conflict?, currentAssigned) -> FALSE | M19: =IF(conflict?, currentAssigned) -> FALSE | O19: =IF(conflict?, currentAssigned) -> FALSE
C20: =IF(conflict?, currentAssigned) -> FALSE | E20: =IF(conflict?, currentAssigned) -> FALSE | G20: =IF(conflict?, currentAssigned) -> FALSE | I20: =IF(conflict?, currentAssigned) -> FALSE | K20: =IF(conflict?, currentAssigned) -> FALSE | M20: =IF(conflict?, currentAssigned) -> FALSE | O20: =IF(conflict?, currentAssigned) -> FALSE
C21: =IF(conflict?, currentAssigned) -> FALSE | E21: =IF(conflict?, currentAssigned) -> FALSE | G21: =IF(conflict?, currentAssigned) -> FALSE | I21: =IF(conflict?, currentAssigned) -> FALSE | K21: =IF(conflict?, currentAssigned) -> FALSE | M21: =IF(conflict?, currentAssigned) -> FALSE | O21: =IF(conflict?, currentAssigned) -> FALSE
C22: =IF(conflict?, currentAssigned) -> FALSE | E22: =IF(conflict?, currentAssigned) -> FALSE | G22: =IF(conflict?, currentAssigned) -> FALSE | I22: =IF(conflict?, currentAssigned) -> FALSE | K22: =IF(conflict?, currentAssigned) -> FALSE | M22: =IF(conflict?, currentAssigned) -> FALSE | O22: =IF(conflict?, currentAssigned) -> FALSE
C23: =IF(conflict?, currentAssigned) -> FALSE | E23: =IF(conflict?, currentAssigned) -> FALSE | G23: =IF(conflict?, currentAssigned) -> FALSE | I23: =IF(conflict?, currentAssigned) -> FALSE | K23: =IF(conflict?, currentAssigned) -> FALSE | M23: =IF(conflict?, currentAssigned) -> FALSE | O23: =IF(conflict?, currentAssigned) -> FALSE
C24: =IF(conflict?, currentAssigned) -> FALSE | E24: =IF(conflict?, currentAssigned) -> FALSE | G24: =IF(conflict?, currentAssigned) -> FALSE | I24: =IF(conflict?, currentAssigned) -> FALSE | K24: =IF(conflict?, currentAssigned) -> FALSE | M24: =IF(conflict?, currentAssigned) -> FALSE | O24: =IF(conflict?, currentAssigned) -> FALSE
C25: =IF(conflict?, currentAssigned) -> FALSE | E25: =IF(conflict?, currentAssigned) -> FALSE | G25: =IF(conflict?, currentAssigned) -> FALSE | I25: =IF(conflict?, currentAssigned) -> FALSE | K25: =IF(conflict?, currentAssigned) -> FALSE | M25: =IF(conflict?, currentAssigned) -> FALSE | O25: =IF(conflict?, currentAssigned) -> FALSE
C26: =IF(conflict?, currentAssigned) -> FALSE | E26: =IF(conflict?, currentAssigned) -> FALSE | G26: =IF(conflict?, currentAssigned) -> FALSE | I26: =IF(conflict?, currentAssigned) -> FALSE | K26: =IF(conflict?, currentAssigned) -> FALSE | M26: =IF(conflict?, currentAssigned) -> FALSE | O26: =IF(conflict?, currentAssigned) -> FALSE
C27: =IF(conflict?, currentAssigned) -> FALSE | E27: =IF(conflict?, currentAssigned) -> FALSE | G27: =IF(conflict?, currentAssigned) -> FALSE | I27: =IF(conflict?, currentAssigned) -> FALSE | K27: =IF(conflict?, currentAssigned) -> FALSE | M27: =IF(conflict?, currentAssigned) -> FALSE | O27: =IF(conflict?, currentAssigned) -> FALSE
C28: =IF(conflict?, currentAssigned) -> FALSE | E28: =IF(conflict?, currentAssigned) -> FALSE | G28: =IF(conflict?, currentAssigned) -> FALSE | I28: =IF(conflict?, currentAssigned) -> FALSE | K28: =IF(conflict?, currentAssigned) -> FALSE | M28: =IF(conflict?, currentAssigned) -> FALSE | O28: =IF(conflict?, currentAssigned) -> FALSE
C29: =IF(conflict?, currentAssigned) -> FALSE | E29: =IF(conflict?, currentAssigned) -> FALSE | G29: =IF(conflict?, currentAssigned) -> FALSE | I29: =IF(conflict?, currentAssigned) -> FALSE | K29: =IF(conflict?, currentAssigned) -> FALSE | M29: =IF(conflict?, currentAssigned) -> FALSE | O29: =IF(conflict?, currentAssigned) -> FALSE
C30: =IF(conflict?, currentAssigned) -> FALSE | E30: =IF(conflict?, currentAssigned) -> FALSE | G30: =IF(conflict?, currentAssigned) -> FALSE | I30: =IF(conflict?, currentAssigned) -> FALSE | K30: =IF(conflict?, currentAssigned) -> FALSE | M30: =IF(conflict?, currentAssigned) -> FALSE | O30: =IF(conflict?, currentAssigned) -> FALSE
C31: =IF(conflict?, currentAssigned) -> FALSE | E31: =IF(conflict?, currentAssigned) -> FALSE | G31: =IF(conflict?, currentAssigned) -> FALSE | I31: =IF(conflict?, currentAssigned) -> FALSE | K31: =IF(conflict?, currentAssigned) -> FALSE | M31: =IF(conflict?, currentAssigned) -> FALSE | O31: =IF(conflict?, currentAssigned) -> FALSE
C32: =IF(conflict?, currentAssigned) -> FALSE | E32: =IF(conflict?, currentAssigned) -> FALSE | G32: =IF(conflict?, currentAssigned) -> FALSE | I32: =IF(conflict?, currentAssigned) -> FALSE | K32: =IF(conflict?, currentAssigned) -> FALSE | M32: =IF(conflict?, currentAssigned) -> FALSE | O32: =IF(conflict?, currentAssigned) -> FALSE
C33: =IF(conflict?, currentAssigned) -> FALSE | E33: =IF(conflict?, currentAssigned) -> FALSE | G33: =IF(conflict?, currentAssigned) -> FALSE | I33: =IF(conflict?, currentAssigned) -> FALSE | K33: =IF(conflict?, currentAssigned) -> FALSE | M33: =IF(conflict?, currentAssigned) -> FALSE | O33: =IF(conflict?, currentAssigned) -> FALSE
C34: =IF(conflict?, currentAssigned) -> FALSE | E34: =IF(conflict?, currentAssigned) -> FALSE | G34: =IF(conflict?, currentAssigned) -> FALSE | I34: =IF(conflict?, currentAssigned) -> FALSE | K34: =IF(conflict?, currentAssigned) -> FALSE | M34: =IF(conflict?, currentAssigned) -> FALSE | O34: =IF(conflict?, currentAssigned) -> FALSE
C35: =IF(conflict?, currentAssigned) -> FALSE | E35: =IF(conflict?, currentAssigned) -> FALSE | G35: =IF(conflict?, currentAssigned) -> FALSE | I35: =IF(conflict?, currentAssigned) -> FALSE | K35: =IF(conflict?, currentAssigned) -> FALSE | M35: =IF(conflict?, currentAssigned) -> FALSE | O35: =IF(conflict?, currentAssigned) -> FALSE
C36: =IF(conflict?, currentAssigned) -> FALSE | E36: =IF(conflict?, currentAssigned) -> FALSE | G36: =IF(conflict?, currentAssigned) -> FALSE | I36: =IF(conflict?, currentAssigned) -> FALSE | K36: =IF(conflict?, currentAssigned) -> FALSE | M36: =IF(conflict?, currentAssigned) -> FALSE | O36: =IF(conflict?, currentAssigned) -> FALSE
C37: =IF(conflict?, currentAssigned) -> FALSE | E37: =IF(conflict?, currentAssigned) -> FALSE | G37: =IF(conflict?, currentAssigned) -> FALSE | I37: =IF(conflict?, currentAssigned) -> FALSE | K37: =IF(conflict?, currentAssigned) -> FALSE | M37: =IF(conflict?, currentAssigned) -> FALSE | O37: =IF(conflict?, currentAssigned) -> FALSE
C38: =IF(conflict?, currentAssigned) -> FALSE | E38: =IF(conflict?, currentAssigned) -> FALSE | G38: =IF(conflict?, currentAssigned) -> FALSE | I38: =IF(conflict?, currentAssigned) -> FALSE | K38: =IF(conflict?, currentAssigned) -> FALSE | M38: =IF(conflict?, currentAssigned) -> FALSE | O38: =IF(conflict?, currentAssigned) -> FALSE
C39: =IF(conflict?, currentAssigned) -> FALSE | E39: =IF(conflict?, currentAssigned) -> FALSE | G39: =IF(conflict?, currentAssigned) -> FALSE | I39: =IF(conflict?, currentAssigned) -> FALSE | K39: =IF(conflict?, currentAssigned) -> FALSE | M39: =IF(conflict?, currentAssigned) -> FALSE | O39: =IF(conflict?, currentAssigned) -> FALSE
C40: =IF(conflict?, currentAssigned) -> FALSE | E40: =IF(conflict?, currentAssigned) -> FALSE | G40: =IF(conflict?, currentAssigned) -> FALSE | I40: =IF(conflict?, currentAssigned) -> FALSE | K40: =IF(conflict?, currentAssigned) -> FALSE | M40: =IF(conflict?, currentAssigned) -> FALSE | O40: =IF(conflict?, currentAssigned) -> FALSE
C41: =IF(conflict?, currentAssigned) -> FALSE | E41: =IF(conflict?, currentAssigned) -> FALSE | G41: =IF(conflict?, currentAssigned) -> FALSE | I41: =IF(conflict?, currentAssigned) -> FALSE | K41: =IF(conflict?, currentAssigned) -> FALSE | M41: =IF(conflict?, currentAssigned) -> FALSE | O41: =IF(conflict?, currentAssigned) -> FALSE
C42: =IF(conflict?, currentAssigned) -> FALSE | E42: =IF(conflict?, currentAssigned) -> FALSE | G42: =IF(conflict?, currentAssigned) -> FALSE | I42: =IF(conflict?, currentAssigned) -> FALSE | K42: =IF(conflict?, currentAssigned) -> FALSE | M42: =IF(conflict?, currentAssigned) -> FALSE | O42: =IF(conflict?, currentAssigned) -> FALSE
C43: =IF(conflict?, currentAssigned) -> FALSE | E43: =IF(conflict?, currentAssigned) -> FALSE | G43: =IF(conflict?, currentAssigned) -> FALSE | I43: =IF(conflict?, currentAssigned) -> FALSE | K43: =IF(conflict?, currentAssigned) -> FALSE | M43: =IF(conflict?, currentAssigned) -> FALSE | O43: =IF(conflict?, currentAssigned) -> FALSE
C44: =IF(conflict?, currentAssigned) -> FALSE | E44: =IF(conflict?, currentAssigned) -> FALSE | G44: =IF(conflict?, currentAssigned) -> FALSE | I44: =IF(conflict?, currentAssigned) -> FALSE | K44: =IF(conflict?, currentAssigned) -> FALSE | M44: =IF(conflict?, currentAssigned) -> FALSE | O44: =IF(conflict?, currentAssigned) -> FALSE
C45: =IF(conflict?, currentAssigned) -> FALSE | E45: =IF(conflict?, currentAssigned) -> FALSE | G45: =IF(conflict?, currentAssigned) -> FALSE | I45: =IF(conflict?, currentAssigned) -> FALSE | K45: =IF(conflict?, currentAssigned) -> FALSE | M45: =IF(conflict?, currentAssigned) -> FALSE | O45: =IF(conflict?, currentAssigned) -> FALSE
C46: =IF(conflict?, currentAssigned) -> FALSE | E46: =IF(conflict?, currentAssigned) -> FALSE | G46: =IF(conflict?, currentAssigned) -> FALSE | I46: =IF(conflict?, currentAssigned) -> FALSE | K46: =IF(conflict?, currentAssigned) -> FALSE | M46: =IF(conflict?, currentAssigned) -> FALSE | O46: =IF(conflict?, currentAssigned) -> FALSE
C47: =IF(conflict?, currentAssigned) -> FALSE | E47: =IF(conflict?, currentAssigned) -> FALSE | G47: =IF(conflict?, currentAssigned) -> FALSE | I47: =IF(conflict?, currentAssigned) -> FALSE | K47: =IF(conflict?, currentAssigned) -> FALSE | M47: =IF(conflict?, currentAssigned) -> FALSE | O47: =IF(conflict?, currentAssigned) -> FALSE
C48: =IF(conflict?, currentAssigned) -> FALSE | E48: =IF(conflict?, currentAssigned) -> FALSE | G48: =IF(conflict?, currentAssigned) -> FALSE | I48: =IF(conflict?, currentAssigned) -> FALSE | K48: =IF(conflict?, currentAssigned) -> FALSE | M48: =IF(conflict?, currentAssigned) -> FALSE | O48: =IF(conflict?, currentAssigned) -> FALSE
C49: =IF(conflict?, currentAssigned) -> FALSE | E49: =IF(conflict?, currentAssigned) -> FALSE | G49: =IF(conflict?, currentAssigned) -> FALSE | I49: =IF(conflict?, currentAssigned) -> FALSE | K49: =IF(conflict?, currentAssigned) -> FALSE | M49: =IF(conflict?, currentAssigned) -> FALSE | O49: =IF(conflict?, currentAssigned) -> FALSE
C50: =IF(conflict?, currentAssigned) -> FALSE | E50: =IF(conflict?, currentAssigned) -> FALSE | G50: =IF(conflict?, currentAssigned) -> FALSE | I50: =IF(conflict?, currentAssigned) -> FALSE | K50: =IF(conflict?, currentAssigned) -> FALSE | M50: =IF(conflict?, currentAssigned) -> FALSE | O50: =IF(conflict?, currentAssigned) -> FALSE
C51: =IF(conflict?, currentAssigned) -> FALSE | E51: =IF(conflict?, currentAssigned) -> FALSE | G51: =IF(conflict?, currentAssigned) -> FALSE | I51: =IF(conflict?, currentAssigned) -> FALSE | K51: =IF(conflict?, currentAssigned) -> FALSE | M51: =IF(conflict?, currentAssigned) -> FALSE | O51: =IF(conflict?, currentAssigned) -> FALSE
C52: =IF(conflict?, currentAssigned) -> FALSE | E52: =IF(conflict?, currentAssigned) -> FALSE | G52: =IF(conflict?, currentAssigned) -> FALSE | I52: =IF(conflict?, currentAssigned) -> FALSE | K52: =IF(conflict?, currentAssigned) -> FALSE | M52: =IF(conflict?, currentAssigned) -> FALSE | O52: =IF(conflict?, currentAssigned) -> FALSE
C53: =IF(conflict?, currentAssigned) -> FALSE | E53: =IF(conflict?, currentAssigned) -> FALSE | G53: =IF(conflict?, currentAssigned) -> FALSE | I53: =IF(conflict?, currentAssigned) -> FALSE | K53: =IF(conflict?, currentAssigned) -> FALSE | M53: =IF(conflict?, currentAssigned) -> FALSE | O53: =IF(conflict?, currentAssigned) -> FALSE
C54: =IF(conflict?, currentAssigned) -> FALSE | E54: =IF(conflict?, currentAssigned) -> FALSE | G54: =IF(conflict?, currentAssigned) -> FALSE | I54: =IF(conflict?, currentAssigned) -> FALSE | K54: =IF(conflict?, currentAssigned) -> FALSE | M54: =IF(conflict?, currentAssigned) -> FALSE | O54: =IF(conflict?, currentAssigned) -> FALSE
C55: =IF(conflict?, currentAssigned) -> FALSE | E55: =IF(conflict?, currentAssigned) -> FALSE | G55: =IF(conflict?, currentAssigned) -> FALSE | I55: =IF(conflict?, currentAssigned) -> FALSE | K55: =IF(conflict?, currentAssigned) -> FALSE | M55: =IF(conflict?, currentAssigned) -> FALSE | O55: =IF(conflict?, currentAssigned) -> FALSE
C56: =IF(conflict?, currentAssigned) -> FALSE | E56: =IF(conflict?, currentAssigned) -> FALSE | G56: =IF(conflict?, currentAssigned) -> FALSE | I56: =IF(conflict?, currentAssigned) -> FALSE | K56: =IF(conflict?, currentAssigned) -> FALSE | M56: =IF(conflict?, currentAssigned) -> FALSE | O56: =IF(conflict?, currentAssigned) -> FALSE
C57: =IF(conflict?, currentAssigned) -> FALSE | E57: =IF(conflict?, currentAssigned) -> FALSE | G57: =IF(conflict?, currentAssigned) -> FALSE | I57: =IF(conflict?, currentAssigned) -> FALSE | K57: =IF(conflict?, currentAssigned) -> FALSE | M57: =IF(conflict?, currentAssigned) -> FALSE | O57: =IF(conflict?, currentAssigned) -> FALSE
C58: =IF(conflict?, currentAssigned) -> FALSE | E58: =IF(conflict?, currentAssigned) -> FALSE | G58: =IF(conflict?, currentAssigned) -> FALSE | I58: =IF(conflict?, currentAssigned) -> FALSE | K58: =IF(conflict?, currentAssigned) -> FALSE | M58: =IF(conflict?, currentAssigned) -> FALSE | O58: =IF(conflict?, currentAssigned) -> FALSE
C59: =IF(conflict?, currentAssigned) -> FALSE | E59: =IF(conflict?, currentAssigned) -> FALSE | G59: =IF(conflict?, currentAssigned) -> FALSE | I59: =IF(conflict?, currentAssigned) -> FALSE | K59: =IF(conflict?, currentAssigned) -> FALSE | M59: =IF(conflict?, currentAssigned) -> FALSE | O59: =IF(conflict?, currentAssigned) -> FALSE
C60: =IF(conflict?, currentAssigned) -> FALSE | E60: =IF(conflict?, currentAssigned) -> FALSE | G60: =IF(conflict?, currentAssigned) -> FALSE | I60: =IF(conflict?, currentAssigned) -> FALSE | K60: =IF(conflict?, currentAssigned) -> FALSE | M60: =IF(conflict?, currentAssigned) -> FALSE | O60: =IF(conflict?, currentAssigned) -> FALSE
C61: =IF(conflict?, currentAssigned) -> FALSE | E61: =IF(conflict?, currentAssigned) -> FALSE | G61: =IF(conflict?, currentAssigned) -> FALSE | I61: =IF(conflict?, currentAssigned) -> FALSE | K61: =IF(conflict?, currentAssigned) -> FALSE | M61: =IF(conflict?, currentAssigned) -> FALSE | O61: =IF(conflict?, currentAssigned) -> FALSE
C62: =IF(conflict?, currentAssigned) -> FALSE | E62: =IF(conflict?, currentAssigned) -> FALSE | G62: =IF(conflict?, currentAssigned) -> FALSE | I62: =IF(conflict?, currentAssigned) -> FALSE | K62: =IF(conflict?, currentAssigned) -> FALSE | M62: =IF(conflict?, currentAssigned) -> FALSE | O62: =IF(conflict?, currentAssigned) -> FALSE
C63: =IF(conflict?, currentAssigned) -> FALSE | E63: =IF(conflict?, currentAssigned) -> FALSE | G63: =IF(conflict?, currentAssigned) -> FALSE | I63: =IF(conflict?, currentAssigned) -> FALSE | K63: =IF(conflict?, currentAssigned) -> FALSE | M63: =IF(conflict?, currentAssigned) -> FALSE | O63: =IF(conflict?, currentAssigned) -> FALSE
C64: =IF(conflict?, currentAssigned) -> FALSE | E64: =IF(conflict?, currentAssigned) -> FALSE | G64: =IF(conflict?, currentAssigned) -> FALSE | I64: =IF(conflict?, currentAssigned) -> FALSE | K64: =IF(conflict?, currentAssigned) -> FALSE | M64: =IF(conflict?, currentAssigned) -> FALSE | O64: =IF(conflict?, currentAssigned) -> FALSE
C65: =IF(conflict?, currentAssigned) -> FALSE | E65: =IF(conflict?, currentAssigned) -> FALSE | G65: =IF(conflict?, currentAssigned) -> FALSE | I65: =IF(conflict?, currentAssigned) -> FALSE | K65: =IF(conflict?, currentAssigned) -> FALSE | M65: =IF(conflict?, currentAssigned) -> FALSE | O65: =IF(conflict?, currentAssigned) -> FALSE
C66: =IF(conflict?, currentAssigned) -> FALSE | E66: =IF(conflict?, currentAssigned) -> FALSE | G66: =IF(conflict?, currentAssigned) -> FALSE | I66: =IF(conflict?, currentAssigned) -> FALSE | K66: =IF(conflict?, currentAssigned) -> FALSE | M66: =IF(conflict?, currentAssigned) -> FALSE | O66: =IF(conflict?, currentAssigned) -> FALSE
C67: =IF(conflict?, currentAssigned) -> FALSE | E67: =IF(conflict?, currentAssigned) -> FALSE | G67: =IF(conflict?, currentAssigned) -> FALSE | I67: =IF(conflict?, currentAssigned) -> FALSE | K67: =IF(conflict?, currentAssigned) -> FALSE | M67: =IF(conflict?, currentAssigned) -> FALSE | O67: =IF(conflict?, currentAssigned) -> FALSE
C68: =IF(conflict?, currentAssigned) -> FALSE | E68: =IF(conflict?, currentAssigned) -> FALSE | G68: =IF(conflict?, currentAssigned) -> FALSE | I68: =IF(conflict?, currentAssigned) -> FALSE | K68: =IF(conflict?, currentAssigned) -> FALSE | M68: =IF(conflict?, currentAssigned) -> FALSE | O68: =IF(conflict?, currentAssigned) -> FALSE
C69: =IF(conflict?, currentAssigned) -> FALSE | E69: =IF(conflict?, currentAssigned) -> FALSE | G69: =IF(conflict?, currentAssigned) -> FALSE | I69: =IF(conflict?, currentAssigned) -> FALSE | K69: =IF(conflict?, currentAssigned) -> FALSE | M69: =IF(conflict?, currentAssigned) -> FALSE | O69: =IF(conflict?, currentAssigned) -> FALSE
C70: =IF(conflict?, currentAssigned) -> FALSE | E70: =IF(conflict?, currentAssigned) -> FALSE | G70: =IF(conflict?, currentAssigned) -> FALSE | I70: =IF(conflict?, currentAssigned) -> FALSE | K70: =IF(conflict?, currentAssigned) -> FALSE | M70: =IF(conflict?, currentAssigned) -> FALSE | O70: =IF(conflict?, currentAssigned) -> FALSE
C71: =IF(conflict?, currentAssigned) -> FALSE | E71: =IF(conflict?, currentAssigned) -> FALSE | G71: =IF(conflict?, currentAssigned) -> FALSE | I71: =IF(conflict?, currentAssigned) -> FALSE | K71: =IF(conflict?, currentAssigned) -> FALSE | M71: =IF(conflict?, currentAssigned) -> FALSE | O71: =IF(conflict?, currentAssigned) -> FALSE
C72: =IF(conflict?, currentAssigned) -> FALSE | E72: =IF(conflict?, currentAssigned) -> FALSE | G72: =IF(conflict?, currentAssigned) -> FALSE | I72: =IF(conflict?, currentAssigned) -> FALSE | K72: =IF(conflict?, currentAssigned) -> FALSE | M72: =IF(conflict?, currentAssigned) -> FALSE | O72: =IF(conflict?, currentAssigned) -> FALSE
C73: =IF(conflict?, currentAssigned) -> FALSE | E73: =IF(conflict?, currentAssigned) -> FALSE | G73: =IF(conflict?, currentAssigned) -> FALSE | I73: =IF(conflict?, currentAssigned) -> FALSE | K73: =IF(conflict?, currentAssigned) -> FALSE | M73: =IF(conflict?, currentAssigned) -> FALSE | O73: =IF(conflict?, currentAssigned) -> FALSE
C74: =IF(conflict?, currentAssigned) -> FALSE | E74: =IF(conflict?, currentAssigned) -> FALSE | G74: =IF(conflict?, currentAssigned) -> FALSE | I74: =IF(conflict?, currentAssigned) -> FALSE | K74: =IF(conflict?, currentAssigned) -> FALSE | M74: =IF(conflict?, currentAssigned) -> FALSE | O74: =IF(conflict?, currentAssigned) -> FALSE
C75: =IF(conflict?, currentAssigned) -> FALSE | E75: =IF(conflict?, currentAssigned) -> FALSE | G75: =IF(conflict?, currentAssigned) -> FALSE | I75: =IF(conflict?, currentAssigned) -> FALSE | K75: =IF(conflict?, currentAssigned) -> FALSE | M75: =IF(conflict?, currentAssigned) -> FALSE | O75: =IF(conflict?, currentAssigned) -> FALSE
C76: =IF(conflict?, currentAssigned) -> FALSE | E76: =IF(conflict?, currentAssigned) -> FALSE | G76: =IF(conflict?, currentAssigned) -> FALSE | I76: =IF(conflict?, currentAssigned) -> FALSE | K76: =IF(conflict?, currentAssigned) -> FALSE | M76: =IF(conflict?, currentAssigned) -> FALSE | O76: =IF(conflict?, currentAssigned) -> FALSE
C77: =IF(conflict?, currentAssigned) -> FALSE | E77: =IF(conflict?, currentAssigned) -> FALSE | G77: =IF(conflict?, currentAssigned) -> FALSE | I77: =IF(conflict?, currentAssigned) -> FALSE | K77: =IF(conflict?, currentAssigned) -> FALSE | M77: =IF(conflict?, currentAssigned) -> FALSE | O77: =IF(conflict?, currentAssigned) -> FALSE
C78: =IF(conflict?, currentAssigned) -> FALSE | E78: =IF(conflict?, currentAssigned) -> FALSE | G78: =IF(conflict?, currentAssigned) -> FALSE | I78: =IF(conflict?, currentAssigned) -> FALSE | K78: =IF(conflict?, currentAssigned) -> FALSE | M78: =IF(conflict?, currentAssigned) -> FALSE | O78: =IF(conflict?, currentAssigned) -> FALSE
C79: =IF(conflict?, currentAssigned) -> FALSE | E79: =IF(conflict?, currentAssigned) -> FALSE | G79: =IF(conflict?, currentAssigned) -> FALSE | I79: =IF(conflict?, currentAssigned) -> FALSE | K79: =IF(conflict?, currentAssigned) -> FALSE | M79: =IF(conflict?, currentAssigned) -> FALSE | O79: =IF(conflict?, currentAssigned) -> FALSE
C80: =IF(conflict?, currentAssigned) -> FALSE | E80: =IF(conflict?, currentAssigned) -> FALSE | G80: =IF(conflict?, currentAssigned) -> FALSE | I80: =IF(conflict?, currentAssigned) -> FALSE | K80: =IF(conflict?, currentAssigned) -> FALSE | M80: =IF(conflict?, currentAssigned) -> FALSE | O80: =IF(conflict?, currentAssigned) -> FALSE
C81: =IF(conflict?, currentAssigned) -> FALSE | E81: =IF(conflict?, currentAssigned) -> FALSE | G81: =IF(conflict?, currentAssigned) -> FALSE | I81: =IF(conflict?, currentAssigned) -> FALSE | K81: =IF(conflict?, currentAssigned) -> FALSE | M81: =IF(conflict?, currentAssigned) -> FALSE | O81: =IF(conflict?, currentAssigned) -> FALSE
C82: =IF(conflict?, currentAssigned) -> FALSE | E82: =IF(conflict?, currentAssigned) -> FALSE | G82: =IF(conflict?, currentAssigned) -> FALSE | I82: =IF(conflict?, currentAssigned) -> FALSE | K82: =IF(conflict?, currentAssigned) -> FALSE | M82: =IF(conflict?, currentAssigned) -> FALSE | O82: =IF(conflict?, currentAssigned) -> FALSE
C83: =IF(conflict?, currentAssigned) -> FALSE | E83: =IF(conflict?, currentAssigned) -> FALSE | G83: =IF(conflict?, currentAssigned) -> FALSE | I83: =IF(conflict?, currentAssigned) -> FALSE | K83: =IF(conflict?, currentAssigned) -> FALSE | M83: =IF(conflict?, currentAssigned) -> FALSE | O83: =IF(conflict?, currentAssigned) -> FALSE
C84: =IF(conflict?, currentAssigned) -> FALSE | E84: =IF(conflict?, currentAssigned) -> FALSE | G84: =IF(conflict?, currentAssigned) -> FALSE | I84: =IF(conflict?, currentAssigned) -> FALSE | K84: =IF(conflict?, currentAssigned) -> FALSE | M84: =IF(conflict?, currentAssigned) -> FALSE | O84: =IF(conflict?, currentAssigned) -> FALSE
C85: =IF(conflict?, currentAssigned) -> FALSE | E85: =IF(conflict?, currentAssigned) -> FALSE | G85: =IF(conflict?, currentAssigned) -> FALSE | I85: =IF(conflict?, currentAssigned) -> FALSE | K85: =IF(conflict?, currentAssigned) -> FALSE | M85: =IF(conflict?, currentAssigned) -> FALSE | O85: =IF(conflict?, currentAssigned) -> FALSE
C86: =IF(conflict?, currentAssigned) -> FALSE | E86: =IF(conflict?, currentAssigned) -> FALSE | G86: =IF(conflict?, currentAssigned) -> FALSE | I86: =IF(conflict?, currentAssigned) -> FALSE | K86: =IF(conflict?, currentAssigned) -> FALSE | M86: =IF(conflict?, currentAssigned) -> FALSE | O86: =IF(conflict?, currentAssigned) -> FALSE
C87: =IF(conflict?, currentAssigned) -> FALSE | E87: =IF(conflict?, currentAssigned) -> FALSE | G87: =IF(conflict?, currentAssigned) -> FALSE | I87: =IF(conflict?, currentAssigned) -> FALSE | K87: =IF(conflict?, currentAssigned) -> FALSE | M87: =IF(conflict?, currentAssigned) -> FALSE | O87: =IF(conflict?, currentAssigned) -> FALSE
C88: =IF(conflict?, currentAssigned) -> FALSE | E88: =IF(conflict?, currentAssigned) -> FALSE | G88: =IF(conflict?, currentAssigned) -> FALSE | I88: =IF(conflict?, currentAssigned) -> FALSE | K88: =IF(conflict?, currentAssigned) -> FALSE | M88: =IF(conflict?, currentAssigned) -> FALSE | O88: =IF(conflict?, currentAssigned) -> FALSE
C89: =IF(conflict?, currentAssigned) -> FALSE | E89: =IF(conflict?, currentAssigned) -> FALSE | G89: =IF(conflict?, currentAssigned) -> FALSE | I89: =IF(conflict?, currentAssigned) -> FALSE | K89: =IF(conflict?, currentAssigned) -> FALSE | M89: =IF(conflict?, currentAssigned) -> FALSE | O89: =IF(conflict?, currentAssigned) -> FALSE
C90: =IF(conflict?, currentAssigned) -> FALSE | E90: =IF(conflict?, currentAssigned) -> FALSE | G90: =IF(conflict?, currentAssigned) -> FALSE | I90: =IF(conflict?, currentAssigned) -> FALSE | K90: =IF(conflict?, currentAssigned) -> FALSE | M90: =IF(conflict?, currentAssigned) -> FALSE | O90: =IF(conflict?, currentAssigned) -> FALSE
C91: =IF(conflict?, currentAssigned) -> FALSE | E91: =IF(conflict?, currentAssigned) -> FALSE | G91: =IF(conflict?, currentAssigned) -> FALSE | I91: =IF(conflict?, currentAssigned) -> FALSE | K91: =IF(conflict?, currentAssigned) -> FALSE | M91: =IF(conflict?, currentAssigned) -> FALSE | O91: =IF(conflict?, currentAssigned) -> FALSE
C92: =IF(conflict?, currentAssigned) -> FALSE | E92: =IF(conflict?, currentAssigned) -> FALSE | G92: =IF(conflict?, currentAssigned) -> FALSE | I92: =IF(conflict?, currentAssigned) -> FALSE | K92: =IF(conflict?, currentAssigned) -> FALSE | M92: =IF(conflict?, currentAssigned) -> FALSE | O92: =IF(conflict?, currentAssigned) -> FALSE
C93: =IF(conflict?, currentAssigned) -> FALSE | E93: =IF(conflict?, currentAssigned) -> FALSE | G93: =IF(conflict?, currentAssigned) -> FALSE | I93: =IF(conflict?, currentAssigned) -> FALSE | K93: =IF(conflict?, currentAssigned) -> FALSE | M93: =IF(conflict?, currentAssigned) -> FALSE | O93: =IF(conflict?, currentAssigned) -> FALSE
C94: =IF(conflict?, currentAssigned) -> FALSE | E94: =IF(conflict?, currentAssigned) -> FALSE | G94: =IF(conflict?, currentAssigned) -> FALSE | I94: =IF(conflict?, currentAssigned) -> FALSE | K94: =IF(conflict?, currentAssigned) -> FALSE | M94: =IF(conflict?, currentAssigned) -> FALSE | O94: =IF(conflict?, currentAssigned) -> FALSE
C95: =IF(conflict?, currentAssigned) -> FALSE | E95: =IF(conflict?, currentAssigned) -> FALSE | G95: =IF(conflict?, currentAssigned) -> FALSE | I95: =IF(conflict?, currentAssigned) -> FALSE | K95: =IF(conflict?, currentAssigned) -> FALSE | M95: =IF(conflict?, currentAssigned) -> FALSE | O95: =IF(conflict?, currentAssigned) -> FALSE
C96: =IF(conflict?, currentAssigned) -> FALSE | E96: =IF(conflict?, currentAssigned) -> FALSE | G96: =IF(conflict?, currentAssigned) -> FALSE | I96: =IF(conflict?, currentAssigned) -> FALSE | K96: =IF(conflict?, currentAssigned) -> FALSE | M96: =IF(conflict?, currentAssigned) -> FALSE | O96: =IF(conflict?, currentAssigned) -> FALSE
C97: =IF(conflict?, currentAssigned) -> FALSE | E97: =IF(conflict?, currentAssigned) -> FALSE | G97: =IF(conflict?, currentAssigned) -> FALSE | I97: =IF(conflict?, currentAssigned) -> FALSE | K97: =IF(conflict?, currentAssigned) -> FALSE | M97: =IF(conflict?, currentAssigned) -> FALSE | O97: =IF(conflict?, currentAssigned) -> FALSE
C98: =IF(conflict?, currentAssigned) -> FALSE | E98: =IF(conflict?, currentAssigned) -> FALSE | G98: =IF(conflict?, currentAssigned) -> FALSE | I98: =IF(conflict?, currentAssigned) -> FALSE | K98: =IF(conflict?, currentAssigned) -> FALSE | M98: =IF(conflict?, currentAssigned) -> FALSE | O98: =IF(conflict?, currentAssigned) -> FALSE
C99: =IF(conflict?, currentAssigned) -> FALSE | E99: =IF(conflict?, currentAssigned) -> FALSE | G99: =IF(conflict?, currentAssigned) -> FALSE | I99: =IF(conflict?, currentAssigned) -> FALSE | K99: =IF(conflict?, currentAssigned) -> FALSE | M99: =IF(conflict?, currentAssigned) -> FALSE | O99: =IF(conflict?, currentAssigned) -> FALSE
C100: =IF(conflict?, currentAssigned) -> FALSE | E100: =IF(conflict?, currentAssigned) -> FALSE | G100: =IF(conflict?, currentAssigned) -> FALSE | I100: =IF(conflict?, currentAssigned) -> FALSE | K100: =IF(conflict?, currentAssigned) -> FALSE | M100: =IF(conflict?, currentAssigned) -> FALSE | O100: =IF(conflict?, currentAssigned) -> FALSE
C101: =IF(conflict?, currentAssigned) -> FALSE | E101: =IF(conflict?, currentAssigned) -> FALSE | G101: =IF(conflict?, currentAssigned) -> FALSE | I101: =IF(conflict?, currentAssigned) -> FALSE | K101: =IF(conflict?, currentAssigned) -> FALSE | M101: =IF(conflict?, currentAssigned) -> FALSE | O101: =IF(conflict?, currentAssigned) -> FALSE
C102: =IF(conflict?, currentAssigned) -> FALSE | E102: =IF(conflict?, currentAssigned) -> FALSE | G102: =IF(conflict?, currentAssigned) -> FALSE | I102: =IF(conflict?, currentAssigned) -> FALSE | K102: =IF(conflict?, currentAssigned) -> FALSE | M102: =IF(conflict?, currentAssigned) -> FALSE | O102: =IF(conflict?, currentAssigned) -> FALSE
C103: =IF(conflict?, currentAssigned) -> FALSE | E103: =IF(conflict?, currentAssigned) -> FALSE | G103: =IF(conflict?, currentAssigned) -> FALSE | I103: =IF(conflict?, currentAssigned) -> FALSE | K103: =IF(conflict?, currentAssigned) -> FALSE | M103: =IF(conflict?, currentAssigned) -> FALSE | O103: =IF(conflict?, currentAssigned) -> FALSE
C104: =IF(conflict?, currentAssigned) -> FALSE | E104: =IF(conflict?, currentAssigned) -> FALSE | G104: =IF(conflict?, currentAssigned) -> FALSE | I104: =IF(conflict?, currentAssigned) -> FALSE | K104: =IF(conflict?, currentAssigned) -> FALSE | M104: =IF(conflict?, currentAssigned) -> FALSE | O104: =IF(conflict?, currentAssigned) -> FALSE
C105: =IF(conflict?, currentAssigned) -> FALSE | E105: =IF(conflict?, currentAssigned) -> FALSE | G105: =IF(conflict?, currentAssigned) -> FALSE | I105: =IF(conflict?, currentAssigned) -> FALSE | K105: =IF(conflict?, currentAssigned) -> FALSE | M105: =IF(conflict?, currentAssigned) -> FALSE | O105: =IF(conflict?, currentAssigned) -> FALSE
C106: =IF(conflict?, currentAssigned) -> FALSE | E106: =IF(conflict?, currentAssigned) -> FALSE | G106: =IF(conflict?, currentAssigned) -> FALSE | I106: =IF(conflict?, currentAssigned) -> FALSE | K106: =IF(conflict?, currentAssigned) -> FALSE | M106: =IF(conflict?, currentAssigned) -> FALSE | O106: =IF(conflict?, currentAssigned) -> FALSE
C107: =IF(conflict?, currentAssigned) -> FALSE | E107: =IF(conflict?, currentAssigned) -> FALSE | G107: =IF(conflict?, currentAssigned) -> FALSE | I107: =IF(conflict?, currentAssigned) -> FALSE | K107: =IF(conflict?, currentAssigned) -> FALSE | M107: =IF(conflict?, currentAssigned) -> FALSE | O107: =IF(conflict?, currentAssigned) -> FALSE
C108: =IF(conflict?, currentAssigned) -> FALSE | E108: =IF(conflict?, currentAssigned) -> FALSE | G108: =IF(conflict?, currentAssigned) -> FALSE | I108: =IF(conflict?, currentAssigned) -> FALSE | K108: =IF(conflict?, currentAssigned) -> FALSE | M108: =IF(conflict?, currentAssigned) -> FALSE | O108: =IF(conflict?, currentAssigned) -> FALSE
C109: =IF(conflict?, currentAssigned) -> FALSE | E109: =IF(conflict?, currentAssigned) -> FALSE | G109: =IF(conflict?, currentAssigned) -> FALSE | I109: =IF(conflict?, currentAssigned) -> FALSE | K109: =IF(conflict?, currentAssigned) -> FALSE | M109: =IF(conflict?, currentAssigned) -> FALSE | O109: =IF(conflict?, currentAssigned) -> FALSE
C110: =IF(conflict?, currentAssigned) -> FALSE | E110: =IF(conflict?, currentAssigned) -> FALSE | G110: =IF(conflict?, currentAssigned) -> FALSE | I110: =IF(conflict?, currentAssigned) -> FALSE | K110: =IF(conflict?, currentAssigned) -> FALSE | M110: =IF(conflict?, currentAssigned) -> FALSE | O110: =IF(conflict?, currentAssigned) -> FALSE
C111: =IF(conflict?, currentAssigned) -> FALSE | E111: =IF(conflict?, currentAssigned) -> FALSE | G111: =IF(conflict?, currentAssigned) -> FALSE | I111: =IF(conflict?, currentAssigned) -> FALSE | K111: =IF(conflict?, currentAssigned) -> FALSE | M111: =IF(conflict?, currentAssigned) -> FALSE | O111: =IF(conflict?, currentAssigned) -> FALSE
C112: =IF(conflict?, currentAssigned) -> FALSE | E112: =IF(conflict?, currentAssigned) -> FALSE | G112: =IF(conflict?, currentAssigned) -> FALSE | I112: =IF(conflict?, currentAssigned) -> FALSE | K112: =IF(conflict?, currentAssigned) -> FALSE | M112: =IF(conflict?, currentAssigned) -> FALSE | O112: =IF(conflict?, currentAssigned) -> FALSE
C113: =IF(conflict?, currentAssigned) -> FALSE | E113: =IF(conflict?, currentAssigned) -> FALSE | G113: =IF(conflict?, currentAssigned) -> FALSE | I113: =IF(conflict?, currentAssigned) -> FALSE | K113: =IF(conflict?, currentAssigned) -> FALSE | M113: =IF(conflict?, currentAssigned) -> FALSE | O113: =IF(conflict?, currentAssigned) -> FALSE
C114: =IF(conflict?, currentAssigned) -> FALSE | E114: =IF(conflict?, currentAssigned) -> FALSE | G114: =IF(conflict?, currentAssigned) -> FALSE | I114: =IF(conflict?, currentAssigned) -> FALSE | K114: =IF(conflict?, currentAssigned) -> FALSE | M114: =IF(conflict?, currentAssigned) -> FALSE | O114: =IF(conflict?, currentAssigned) -> FALSE
C115: =IF(conflict?, currentAssigned) -> FALSE | E115: =IF(conflict?, currentAssigned) -> FALSE | G115: =IF(conflict?, currentAssigned) -> FALSE | I115: =IF(conflict?, currentAssigned) -> FALSE | K115: =IF(conflict?, currentAssigned) -> FALSE | M115: =IF(conflict?, currentAssigned) -> FALSE | O115: =IF(conflict?, currentAssigned) -> FALSE
C116: =IF(conflict?, currentAssigned) -> FALSE | E116: =IF(conflict?, currentAssigned) -> FALSE | G116: =IF(conflict?, currentAssigned) -> FALSE | I116: =IF(conflict?, currentAssigned) -> FALSE | K116: =IF(conflict?, currentAssigned) -> FALSE | M116: =IF(conflict?, currentAssigned) -> FALSE | O116: =IF(conflict?, currentAssigned) -> FALSE
C117: =IF(conflict?, currentAssigned) -> FALSE | E117: =IF(conflict?, currentAssigned) -> FALSE | G117: =IF(conflict?, currentAssigned) -> FALSE | I117: =IF(conflict?, currentAssigned) -> FALSE | K117: =IF(conflict?, currentAssigned) -> FALSE | M117: =IF(conflict?, currentAssigned) -> FALSE | O117: =IF(conflict?, currentAssigned) -> FALSE
C118: =IF(conflict?, currentAssigned) -> FALSE | E118: =IF(conflict?, currentAssigned) -> FALSE | G118: =IF(conflict?, currentAssigned) -> FALSE | I118: =IF(conflict?, currentAssigned) -> FALSE | K118: =IF(conflict?, currentAssigned) -> FALSE | M118: =IF(conflict?, currentAssigned) -> FALSE | O118: =IF(conflict?, currentAssigned) -> FALSE
C119: =IF(conflict?, currentAssigned) -> FALSE | E119: =IF(conflict?, currentAssigned) -> FALSE | G119: =IF(conflict?, currentAssigned) -> FALSE | I119: =IF(conflict?, currentAssigned) -> FALSE | K119: =IF(conflict?, currentAssigned) -> FALSE | M119: =IF(conflict?, currentAssigned) -> FALSE | O119: =IF(conflict?, currentAssigned) -> FALSE
C120: =IF(conflict?, currentAssigned) -> FALSE | E120: =IF(conflict?, currentAssigned) -> FALSE | G120: =IF(conflict?, currentAssigned) -> FALSE | I120: =IF(conflict?, currentAssigned) -> FALSE | K120: =IF(conflict?, currentAssigned) -> FALSE | M120: =IF(conflict?, currentAssigned) -> FALSE | O120: =IF(conflict?, currentAssigned) -> FALSE
C121: =IF(conflict?, currentAssigned) -> FALSE | E121: =IF(conflict?, currentAssigned) -> FALSE | G121: =IF(conflict?, currentAssigned) -> FALSE | I121: =IF(conflict?, currentAssigned) -> FALSE | K121: =IF(conflict?, currentAssigned) -> FALSE | M121: =IF(conflict?, currentAssigned) -> FALSE | O121: =IF(conflict?, currentAssigned) -> FALSE
C122: =IF(conflict?, currentAssigned) -> FALSE | E122: =IF(conflict?, currentAssigned) -> FALSE | G122: =IF(conflict?, currentAssigned) -> FALSE | I122: =IF(conflict?, currentAssigned) -> FALSE | K122: =IF(conflict?, currentAssigned) -> FALSE | M122: =IF(conflict?, currentAssigned) -> FALSE | O122: =IF(conflict?, currentAssigned) -> FALSE
C123: =IF(conflict?, currentAssigned) -> FALSE | E123: =IF(conflict?, currentAssigned) -> FALSE | G123: =IF(conflict?, currentAssigned) -> FALSE | I123: =IF(conflict?, currentAssigned) -> FALSE | K123: =IF(conflict?, currentAssigned) -> FALSE | M123: =IF(conflict?, currentAssigned) -> FALSE | O123: =IF(conflict?, currentAssigned) -> FALSE
C124: =IF(conflict?, currentAssigned) -> FALSE | E124: =IF(conflict?, currentAssigned) -> FALSE | G124: =IF(conflict?, currentAssigned) -> FALSE | I124: =IF(conflict?, currentAssigned) -> FALSE | K124: =IF(conflict?, currentAssigned) -> FALSE | M124: =IF(conflict?, currentAssigned) -> FALSE | O124: =IF(conflict?, currentAssigned) -> FALSE
C125: =IF(conflict?, currentAssigned) -> FALSE | E125: =IF(conflict?, currentAssigned) -> FALSE | G125: =IF(conflict?, currentAssigned) -> FALSE | I125: =IF(conflict?, currentAssigned) -> FALSE | K125: =IF(conflict?, currentAssigned) -> FALSE | M125: =IF(conflict?, currentAssigned) -> FALSE | O125: =IF(conflict?, currentAssigned) -> FALSE
C126: =IF(conflict?, currentAssigned) -> FALSE | E126: =IF(conflict?, currentAssigned) -> FALSE | G126: =IF(conflict?, currentAssigned) -> FALSE | I126: =IF(conflict?, currentAssigned) -> FALSE | K126: =IF(conflict?, currentAssigned) -> FALSE | M126: =IF(conflict?, currentAssigned) -> FALSE | O126: =IF(conflict?, currentAssigned) -> FALSE
C127: =IF(conflict?, currentAssigned) -> FALSE | E127: =IF(conflict?, currentAssigned) -> FALSE | G127: =IF(conflict?, currentAssigned) -> FALSE | I127: =IF(conflict?, currentAssigned) -> FALSE | K127: =IF(conflict?, currentAssigned) -> FALSE | M127: =IF(conflict?, currentAssigned) -> FALSE | O127: =IF(conflict?, currentAssigned) -> FALSE

Sheet Teams
E1: Teams
B3: Staff | C3: Teams# | E3: =TRANSPOSE(ClientTbl[]) -> Client 1 | F3: Client 2 | G3: Client 3 | H3: Client 4 | I3: Client 5 | J3: Client 6 | K3: Client 7 | L3: Client 8 | M3: Client 9 | N3: Client 10 | O3: Client 11 | P3: Client 12 | Q3: Client 13 | R3: Client 14 | S3: Client 15 | T3: Client 16 | U3: Client 17 | V3: Client 18 | W3: Client 19 | X3: Client 20 | Y3: Client 21 | Z3: Client 22 | AA3: Client 23 | AB3: Client 24 | AC3: Client 25 | AD3: Client 26 | AE3: Client 27 | AF3: Client 28 | AG3: Client 29 | AH3: Client 30 | AI3: Client 31 | AJ3: Client 32 | AK3: Client 33 | AL3: Client 34 | AM3: Client 35 | AN3: Client 36 | AO3: Client 37 | AP3: Client 38 | AQ3: Client 39 | AR3: Client 40 | AS3: Client 41 | AT3: Client 42 | AU3: Client 43 | AV3: Client 44 | AW3: Client 45 | AX3: Client 46 | AY3: Client 47 | AZ3: Client 48 | BA3: Client 49 | BB3: Client 50 | BC3: Client 51 | BD3: Client 52 | BE3: Client 53 | BF3: Client 54 | BG3: Client 55 | BH3: Client 56 | BI3: Client 57 | BJ3: Client 58 | BK3: Client 59 | BL3: Client 60 | BM3: Client 61 | BN3: Client 62 | BO3: Client 63 | BP3: Client 64 | BQ3: Client 65 | BR3: Client 66 | BS3: Client 67 | BT3: Client 68 | BU3: Client 69 | BV3: Client 70 | BW3: Client 71 | BX3: Client 72 | BY3: Client 73 | BZ3: Client 74 | CA3: Client 75
B4: Staff 1 | C4: =COUNTIFS(Deployable, StaffTbl[]) -> 12 | E4: =B16 -> Staff 13 | F4: =B31 -> Staff 28 | G4: =B38 -> Staff 35 | H4: =B25 -> Staff 22 | I4: =B25 -> Staff 22 | J4: =B7 -> Staff 4 | K4: =B4 -> Staff 1 | L4: =B4 -> Staff 1 | M4: =B38 -> Staff 35 | N4: =B17 -> Staff 14 | O4: =B15 -> Staff 12 | P4: =B38 -> Staff 35 | Q4: =B15 -> Staff 12 | R4: =B29 -> Staff 26 | S4: =B38 -> Staff 35 | T4: =B17 -> Staff 14 | U4: =B17 -> Staff 14 | V4: Staff 2 | W4: =B26 -> Staff 23 | X4: =B26 -> Staff 23 | Y4: =B43 -> Staff 40 | AA4: =B39 -> Staff 36 | AC4: =B31 -> Staff 28 | AD4: =B31 -> Staff 28 | AE4: =B31 -> Staff 28 | AF4: =B31 -> Staff 28 | AG4: =B6 -> Staff 3 | AH4: =B6 -> Staff 3 | AI4: =B6 -> Staff 3 | AJ4: =B16 -> Staff 13 | AK4: =B16 -> Staff 13 | AL4: =B16 -> Staff 13 | AM4: =B4 -> Staff 1 | AN4: =B4 -> Staff 1 | AO4: =B9 -> Staff 6 | AP4: =B9 -> Staff 6 | AQ4: =B7 -> Staff 4 | AR4: =B7 -> Staff 4 | AS4: =B16 -> Staff 13 | AT4: =B8 -> Staff 5 | AU4: Staff 1 | AV4: Staff 5 | AW4: Staff 4 | AX4: Staff 2 | AY4: Staff 5 | AZ4: Staff 1 | BA4: Staff 1 | BB4: Staff 2 | BC4: Staff 1 | BD4: Staff 1 | BE4: Staff 2 | BF4: Staff 3 | BG4: Staff 4 | BH4: Staff 1 | BI4: Staff 5 | BJ4: Staff 4 | BK4: Staff 1 | BL4: Staff 5 | BM4: Staff 4 | BN4: Staff 2 | BO4: Staff 5 | BP4: Staff 1
B5: Staff 2 | C5: 14 | E5: =B22 -> Staff 19 | F5: =B36 -> Staff 33 | G5: =B27 -> Staff 24 | H5: =B38 -> Staff 35 | I5: =B38 -> Staff 35 | J5: =B41 -> Staff 38 | K5: =B5 -> Staff 2 | L5: =B5 -> Staff 2 | N5: =B25 -> Staff 22 | O5: =B29 -> Staff 26 | P5: =B20 -> Staff 17 | Q5: =B25 -> Staff 22 | R5: =B26 -> Staff 23 | S5: =B15 -> Staff 12 | T5: =B19 -> Staff 16 | U5: =B25 -> Staff 22 | V5: Staff 5 | W5: Staff 3 | X5: =B25 -> Staff 22 | AC5: =B28 -> Staff 25 | AD5: =B28 -> Staff 25 | AE5: =B28 -> Staff 25 | AF5: =B28 -> Staff 25 | AG5: =B22 -> Staff 19 | AH5: =B22 -> Staff 19 | AI5: =B22 -> Staff 19 | AJ5: =B17 -> Staff 14 | AK5: =B17 -> Staff 14 | AL5: =B17 -> Staff 14 | AM5: =B17 -> Staff 14 | AN5: =B17 -> Staff 14 | AO5: =B14 -> Staff 11 | AP5: =B14 -> Staff 11 | AQ5: =B19 -> Staff 16 | AR5: =B19 -> Staff 16 | AS5: =B7 -> Staff 4 | AT5: =B24 -> Staff 21 | AU5: Staff 5 | AV5: Staff 8 | AW5: Staff 5 | AX5: Staff 3 | AY5: Staff 9 | AZ5: Staff 2 | BA5: Staff 2 | BB5: Staff 5 | BC5: Staff 3 | BD5: Staff 5 | BE5: Staff 4 | BF5: Staff 6 | BG5: Staff 5 | BH5: Staff 3 | BI5: Staff 6 | BJ5: Staff 5 | BK5: Staff 5 | BL5: Staff 8 | BM5: Staff 5 | BN5: Staff 3 | BO5: Staff 9 | BP5: Staff 2
B6: Staff 3 | C6: 14 | E6: =B6 -> Staff 3 | F6: =B27 -> Staff 24 | G6: =B40 -> Staff 37 | H6: =B33 -> Staff 30 | I6: =B33 -> Staff 30 | J6: =B15 -> Staff 12 | K6: =B17 -> Staff 14 | L6: =B17 -> Staff 14 | N6: =B36 -> Staff 33 | O6: =B38 -> Staff 35 | P6: =B6 -> Staff 3 | Q6: =B33 -> Staff 30 | R6: =B36 -> Staff 33 | S6: =B29 -> Staff 26 | T6: =B7 -> Staff 4 | U6: =B26 -> Staff 23 | V6: Staff 6 | W6: Staff 5 | X6: =B33 -> Staff 30 | AC6: =B24 -> Staff 21 | AD6: =B24 -> Staff 21 | AE6: =B24 -> Staff 21 | AF6: =B24 -> Staff 21 | AG6: =B20 -> Staff 17 | AH6: =B20 -> Staff 17 | AI6: =B20 -> Staff 17 | AJ6: =B7 -> Staff 4 | AK6: =B7 -> Staff 4 | AL6: =B7 -> Staff 4 | AM6: =B16 -> Staff 13 | AN6: =B16 -> Staff 13 | AO6: =B20 -> Staff 17 | AP6: =B20 -> Staff 17 | AQ6: =B24 -> Staff 21 | AR6: =B24 -> Staff 21 | AS6: =B17 -> Staff 14 | AT6: =B28 -> Staff 25 | AU6: Staff 6 | AV6: Staff 9 | AW6: Staff 7 | AX6: Staff 5 | AY6: Staff 10 | AZ6: Staff 4 | BA6: Staff 3 | BB6: Staff 6 | BC6: Staff 5 | BD6: Staff 8 | BE6: Staff 7 | BF6: Staff 8 | BG6: Staff 7 | BH6: Staff 4 | BI6: Staff 7 | BJ6: Staff 8 | BK6: Staff 6 | BL6: Staff 9 | BM6: Staff 7 | BN6: Staff 5 | BO6: Staff 10 | BP6: Staff 4
B7: Staff 4 | C7: 17 | F7: =B28 -> Staff 25 | G7: =B35 -> Staff 32 | H7: =B36 -> Staff 33 | I7: =B36 -> Staff 33 | J7: =B17 -> Staff 14 | K7: =B36 -> Staff 33 | L7: =B36 -> Staff 33 | N7: =B29 -> Staff 26 | R7: =B25 -> Staff 22 | S7: =B17 -> Staff 14 | T7: =B15 -> Staff 12 | U7: =B29 -> Staff 26 | V7: Staff 9 | W7: Staff 8 | X7: =B38 -> Staff 35 | AC7: =B16 -> Staff 13 | AD7: =B16 -> Staff 13 | AE7: =B16 -> Staff 13 | AF7: =B16 -> Staff 13 | AG7: =B9 -> Staff 6 | AH7: =B9 -> Staff 6 | AI7: =B9 -> Staff 6 | AJ7: =B27 -> Staff 24 | AK7: =B27 -> Staff 24 | AL7: =B27 -> Staff 24 | AM7: =B42 -> Staff 39 | AN7: =B42 -> Staff 39 | AO7: =B6 -> Staff 3 | AP7: =B6 -> Staff 3 | AQ7: =B27 -> Staff 24 | AR7: =B27 -> Staff 24 | AS7: =B19 -> Staff 16 | AT7: =B31 -> Staff 28 | AU7: Staff 10 | AW7: Staff 10 | AX7: Staff 11 | AY7: Staff 13 | AZ7: Staff 6 | BA7: Staff 4 | BB7: Staff 9 | BC7: Staff 8 | BD7: Staff 12 | BE7: Staff 10 | BF7: Staff 13 | BG7: Staff 11 | BH7: Staff 5 | BI7: Staff 13 | BJ7: Staff 11 | BK7: Staff 10 | BM7: Staff 10 | BN7: Staff 11 | BO7: Staff 13 | BP7: Staff 6
B8: Staff 5 | C8: 23 | G8: =B5 -> Staff 2 | H8: =B5 -> Staff 2 | J8: =B36 -> Staff 33 | K8: =B26 -> Staff 23 | L8: =B26 -> Staff 23 | R8: =B33 -> Staff 30 | T8: =B29 -> Staff 26 | U8: =B33 -> Staff 30 | W8: Staff 13 | X8: =B34 -> Staff 31 | AG8: =B18 -> Staff 15 | AH8: =B18 -> Staff 15 | AI8: =B18 -> Staff 15 | AJ8: =B42 -> Staff 39 | AK8: =B42 -> Staff 39 | AL8: =B42 -> Staff 39 | AM8: =B24 -> Staff 21 | AN8: =B24 -> Staff 21 | AO8: =B5 -> Staff 2 | AP8: =B5 -> Staff 2 | AQ8: =B32 -> Staff 29 | AR8: =B32 -> Staff 29 | AS8: =B27 -> Staff 24 | AT8: =B35 -> Staff 32 | AW8: Staff 12 | AZ8: Staff 12 | BA8: Staff 11 | BC8: Staff 13 | BE8: Staff 11 | BG8: Staff 12 | BH8: Staff 11 | BM8: Staff 12 | BP8: Staff 12
B9: Staff 6 | C9: 15 | G9: =B9 -> Staff 6 | H9: =B9 -> Staff 6 | J9: =B26 -> Staff 23 | K9: =B34 -> Staff 31 | L9: =B34 -> Staff 31 | T9: =B36 -> Staff 33 | U9: =B34 -> Staff 31 | W9: Staff 14 | X9: =B29 -> Staff 26 | AI9: Big Dog | AK9: =B34 -> Staff 31 | AL9: =B34 -> Staff 31 | AM9: =B27 -> Staff 24 | AN9: =B27 -> Staff 24 | AO9: =B37 -> Staff 34 | AP9: =B37 -> Staff 34 | AQ9: =B41 -> Staff 38 | AR9: =B41 -> Staff 38 | AS9: =B31 -> Staff 28 | AT9: =B32 -> Staff 29 | AW9: Staff 13 | AZ9: Staff 14 | BA9: Staff 12 | BC9: Staff 14 | BE9: Staff 12 | BG9: Staff 14 | BM9: Staff 13 | BP9: Staff 14
B10: Staff 7 | C10: 5 | K10: =B38 -> Staff 35 | L10: =B38 -> Staff 35 | AI10: CPL | AM10: =B28 -> Staff 25 | AN10: =B28 -> Staff 25 | AO10: =B23 -> Staff 20 | AP10: =B23 -> Staff 20 | AQ10: =B8 -> Staff 5 | AR10: =B8 -> Staff 5 | AS10: =B35 -> Staff 32 | AT10: =B8 -> Staff 5 | AW10: Staff 14
B11: Staff 8 | C11: 7 | K11: =B29 -> Staff 26 | L11: =B29 -> Staff 26 | AM11: =B34 -> Staff 31 | AN11: =B34 -> Staff 31 | AQ11: =B15 -> Staff 12 | AR11: =B15 -> Staff 12 | AS11: =B32 -> Staff 29 | AT11: =B41 -> Staff 38
B12: Staff 9 | C12: 6 | K12: =B20 -> Staff 17 | L12: =B20 -> Staff 17
B13: Staff 10 | C13: 7
B14: Staff 11 | C14: 9 | T14: =B33 -> Staff 30 | U14: =B36 -> Staff 33 | X14: =B17 -> Staff 14 | BA14: Staff 13 | BE14: Staff 14 | BM14: Staff 14
B15: Staff 12 | C15: 15 | X15: =B36 -> Staff 33
B16: Staff 13 | C16: 20
B17: Staff 14 | C17: 22
B18: Staff 15 | C18: 3
B19: Staff 16 | C19: 4
B20: Staff 17 | C20: 8
B21: Staff 18 | C21: 0
B22: Staff 19 | C22: 4
B23: Staff 20 | C23: 2
B24: Staff 21 | C24: 9
B25: Staff 22 | C25: 7
B26: Staff 23 | C26: 7
B27: Staff 24 | C27: 10
B28: Staff 25 | C28: 8
B29: Staff 26 | C29: 9
B30: Staff 27 | C30: 0
B31: Staff 28 | C31: 7
B32: Staff 29 | C32: 4
B33: Staff 30 | C33: 7
B34: Staff 31 | C34: 8
B35: Staff 32 | C35: 3
B36: Staff 33 | C36: 11
B37: Staff 34 | C37: 2
B38: Staff 35 | C38: 10
B39: Staff 36 | C39: 1
B40: Staff 37 | C40: 1
B41: Staff 38 | C41: 4
B42: Staff 39 | C42: 5
B43: Staff 40 | C43: 1
B44: Staff 41 | C44: 0
B45: Staff 42 | C45: 0
B46: Staff 43 | C46: 0
B47: Staff 44 | C47: 0
B48: Staff 45 | C48: 0
B49: Staff 46 | C49: 0
B50: Staff 47 | C50: 0
B51: Staff 48 | C51: 0
B52: Staff 49 | C52: 0
B53: Staff 50 | C53: 0
B54: Staff 51
B55: Staff 52
B56: Staff 53
B57: Staff 54
B58: Staff 55
B59: Staff 56
B60: Staff 57

Sheet Data
B2: Times | D2: Staff | F2: Name
B3: 05:30:00 | D3: Staff 1 | F3: Client 1
B4: 05:45:00 | D4: Staff 2 | F4: Client 2
B5: 06:00:00 | D5: Staff 3 | F5: Client 3
B6: 06:15:00 | D6: Staff 4 | F6: Client 4
B7: 06:30:00 | D7: Staff 5 | F7: Client 5
B8: 06:45:00 | D8: Staff 6 | F8: Client 6
B9: 07:00:00 | D9: Staff 7 | F9: Client 7
B10: 07:15:00 | D10: Staff 8 | F10: Client 8
B11: 07:30:00 | D11: Staff 9 | F11: Client 9
B12: 07:45:00 | D12: Staff 10 | F12: Client 10
B13: 08:00:00 | D13: Staff 11 | F13: Client 11
B14: 08:15:00 | D14: Staff 12 | F14: Client 12
B15: 08:30:00 | D15: Staff 13 | F15: Client 13
B16: 08:45:00 | D16: Staff 14 | F16: Client 14
B17: 09:00:00 | D17: Staff 15 | F17: Client 15
B18: 09:15:00 | D18: Staff 16 | F18: Client 16
B19: 09:30:00 | D19: Staff 17 | F19: Client 17
B20: 09:45:00 | D20: Staff 18 | F20: Client 18
B21: 10:00:00 | D21: Staff 19 | F21: Client 19
B22: 10:15:00 | D22: Staff 20 | F22: Client 20
B23: 10:30:00 | D23: Staff 21 | F23: Client 21
B24: 10:45:00 | D24: Staff 22 | F24: Client 22
B25: 11:00:00 | D25: Staff 23 | F25: Client 23
B26: 11:15:00 | D26: Staff 24 | F26: Client 24
B27: 11:30:00 | D27: Staff 25 | F27: Client 25
B28: 11:45:00 | D28: Staff 26 | F28: Client 26
B29: 12:00:00 | D29: Staff 27 | F29: Client 27
B30: 12:15:00 | D30: Staff 28 | F30: Client 28
B31: 12:30:00 | D31: Staff 29 | F31: Client 29
B32: 12:45:00 | D32: Staff 30 | F32: Client 30
B33: 13:00:00 | D33: Staff 31 | F33: Client 31
B34: 13:15:00 | D34: Staff 32 | F34: Client 32
B35: 13:30:00 | D35: Staff 33 | F35: Client 33
B36: 13:45:00 | D36: Staff 34 | F36: Client 34
B37: 14:00:00 | D37: Staff 35 | F37: Client 35
B38: 14:15:00 | D38: Staff 36 | F38: Client 36
B39: 14:30:00 | D39: Staff 37 | F39: Client 37 | K39: Page of 1 | P39: 36 Records
B40: 14:45:00 | D40: Staff 38 | F40: Client 38
B41: 15:00:00 | D41: Staff 39 | F41: Client 39
B42: 15:15:00 | D42: Staff 40 | F42: Client 40
B43: 15:30:00 | D43: Staff 41 | F43: Client 41
B44: 15:45:00 | D44: Staff 42 | F44: Client 42
B45: 16:00:00 | D45: Staff 43 | F45: Client 43
B46: 16:15:00 | D46: Staff 44 | F46: Client 44
B47: 16:30:00 | D47: Staff 45 | F47: Client 45
B48: 16:45:00 | D48: Staff 46 | F48: Client 46
B49: 17:00:00 | D49: Staff 47 | F49: Client 47
B50: 17:15:00 | D50: Staff 48 | F50: Client 48
B51: 17:30:00 | D51: Staff 49 | F51: Client 49
B52: 17:45:00 | D52: Staff 50 | F52: Client 50
B53: 18:00:00 | F53: Client 51
B54: 18:15:00 | F54: Client 52
B55: 18:30:00 | F55: Client 53
B56: 18:45:00 | F56: Client 54
B57: 19:00:00 | F57: Client 55
B58: 19:15:00 | F58: Client 56
B59: 19:30:00 | F59: Client 57
B60: 19:45:00 | F60: Client 58
B61: 20:00:00 | F61: Client 59
B62: 20:15:00 | F62: Client 60
B63: 20:30:00 | F63: Client 61
B64: 20:45:00 | F64: Client 62
B65: 21:00:00 | F65: Client 63
B66: 21:15:00 | F66: Client 64
B67: 21:30:00 | F67: Client 65
B68: 21:45:00 | F68: Client 66
B69: 22:00:00 | F69: Client 67
B70: 22:15:00 | F70: Client 68
B71: 22:30:00 | F71: Client 69
B72: 22:45:00 | F72: Client 70
B73: 23:00:00 | F73: Client 71
F74: Client 72
F75: Client 73
F76: Client 74
F77: Client 75
